Workbook

Sheet Help
B2: For Help
B3: For Help watch the video o my Youtube Channel
B4: https://youtu.be/QWmVZqxh1yE
B5: OR search the youtube channel "Learn with ummed tarad"
B6: For my latest and updated usefull program visit links given bellow
B7: https://rajteachers.net/ummed-tarad-excel-software | C7: https://rajsevak.com/ummed-tarad-excel-software/
B8: https://shalaweb.com/ummed-tarad/ | C8: https://studywithrsm.com/ummed-tarad-excel-programmer-teacher/
B9: https://www.ashwinisharma.com/p/ummed-tarad-excel-programs.html | C9: https://shalasugam.com/mr-ummed-tarad-excel-software/
B10: नोट:-हालाँकि यह प्रोग्राम पूर्णतया सावधानी के साथ बनाया गया है फिर भी किसी त्रुटि की स्थिति में आपके विवेक के साथ विभागीय नियम ही अंतिम रूप से मान्य होंगे, इसे अंतिम रूप देने से पहले अच्छी तरह से अवश्य जाँच लेवें

Sheet Master
B2: t; fgUn | G2: oUns ekrje~ | N2: t; fgUn
B4: RESULT PREPARATION PROGRAM | Y4: 2019-20 | Z4: PRIMARY
K5: Subject Detail | M5: Staff Detail | Y5: 2019-21 | Z5: UPPER PRIMARY
B6: SESSION | D6: :- | E6: 2022-23 | K6: Sr. No. | L6: Subject's Name | M6: Sr. No. | N6: Teacher's Name | O6: Sr. No. | P6: Teacher's Name | Y6: 2019-22 | Z6: SECONDARY
K7: =IF(L7>1,1,0) -> 1 | L7: HINDI | M7: =IF(N7>1,1,0) -> 1 | N7: A | O7: =IF(P7>1,M20+1,0) -> 0 | Y7: 2019-21 | Z7: UPPER PRIMARY
B8: SCHOOL'S FULL NAME | D8: :- | E8: Govt. Sr. Secondary School | K8: =IF(L8>1,K7+1,0) -> 2 | L8: ENGLISH | M8: =IF(N8>1,M7+1,0) -> 2 | N8: B | O8: =IF(P8>1,O7+1,0) -> 0
K9: =IF(L9>1,K8+1,0) -> 3 | L9: SANSKRIT | M9: =IF(N9>1,M8+1,0) -> 3 | N9: C | O9: =IF(P9>1,O8+1,0) -> 0 | Y9: 2019-22 | Z9: SECONDARY
K10: =IF(L10>1,K9+1,0) -> 4 | L10: SCIENCE | M10: =IF(N10>1,M9+1,0) -> 4 | N10: D | O10: 0 | Y10: 2019-23 | Z10: SR. SECONDARY
B11: ADDRESS | D11: :- | E11: P.S.-Bapini (Jodhpur) | K11: =IF(L11>1,K10+1,0) -> 5 | L11: MATHEMATICS | M11: =IF(N11>1,M10+1,0) -> 5 | N11: E | O11: 0
K12: =IF(L12>1,K11+1,0) -> 6 | L12: SOCIAL SCIENCE | M12: =IF(N12>1,M11+1,0) -> 6 | N12: F | O12: 0 | R12: DEVLOPED BY:- | Y12: 2019-24
K13: =IF(L13>1,K12+1,0) -> 7 | L13: Fou. Of Info. Tech. | M13: 7 | N13: G | O13: 0 | Y13: 2019-23 | Z13: SR. SECONDARY
B14: U-DISE CODE | D14: :- | E14: 08151106901 | K14: 8 | L14: Health & Phy. Edu. | M14: 0 | O14: 0 | Y14: 2019-24
K15: 9 | L15: S.U.P.W. | M15: 0 | O15: 0 | R15: UMMED TARAD | Y15: 2019-25
B16: NAME OF PRINCIPAL | D16: :- | K16: 10 | L16: H & C RAJ | M16: 0 | O16: 0 | Y16: 2019-26
K17: 11 | L17: Art Education | M17: 0 | O17: 0 | R17: (GSSS RAIMALWADA)
B18: SCHOOL TYPE | D18: :- | E18: Sr. Secondary | K18: 0 | M18: 0 | O18: 0 | R18: MOBILE NO.-9166973141
K19: 0 | M19: 0 | O19: 0 | Y19: 2019-25
B20: Result Date | D20: :- | E20: 2023-04-25 | K20: 0 | M20: 0 | O20: 0 | R20: EMAIL ID-ummedtrdedu@gmail.com | Y20: 2019-26
A21: UPDATE ON 01-04-2023 | Y21: 2019-27

Sheet Result Entry
C1: =Master!E8 -> Govt. Sr. Secondary School | DP1: =Master!E8 -> Govt. Sr. Secondary School
L2: Result Entry
C3: School U-Dise Code :- | G3: =Master!E14 -> 08151106901 | I3: Session :- | J3: =Master!E6 -> 2022-23 | L3: HINDI | X3: ENGLISH | AJ3: SANSKRIT | AV3: SCIENCE | BH3: MATHEMATICS | BT3: SOCIAL SCIENCE | CF3: Fou. Of Info. Tech. | CS3: Health & Phy. Edu. | DP3: S.U.P.W. | DV3: Art Education | EB3: H & C RAJ | EL3: Attendance | EO3: Statics | EW3: Remark | EX3: Subject Wise Result | FD3: Subject Which Failed | FE3: Subject Which supplymentry | FF3: Subject Which 1 Grace | FG3: Subject Which 2 Grace | FH3: Subject Which Re-Exam
C4: Class - | G4: 9 | I4: Saction :- | J4: (A) | L4: 0 | X4: 0 | AJ4: 0 | AV4: 0 | BH4: 0 | BT4: 0 | CF4: B | CS4: D | DP4: B | DV4: A | EB4: D | EL4: Total Attendance | EM4: Student's Attendance | EN4: Attandance % | EO4: Total Maximum Marks | EP4: Obtained Marks | EQ4: Percentage | ER4: Overall Div. | ES4: Result | EU4: Position in Class
C5: Student Related Basic Details | L5: Tests | O5: Total Tests | P5: Half Yearly | Q5: Total (Tests+H.Y.) | R5: Yearly Exam | S5: Total | T5: MARKS % | U5: 2T+E OR 2E+T | V5: Result | W5: Div. | X5: Tests | AA5: Total Tests | AB5: Half Yearly | AC5: Total (Tests+H.Y.) | AD5: Yearly Exam | AE5: Total | AF5: MARKS % | AG5: 2T+E OR 2E+T | AH5: Result | AI5: Div. | AJ5: Tests | AM5: Total Tests | AN5: Half Yearly | AO5: Total (Tests+H.Y.) | AP5: Yearly Exam | AQ5: Total | AR5: MARKS % | AS5: 2T+E OR 2E+T | AT5: Result | AU5: Div. | AV5: Tests | AY5: Total Tests | AZ5: Half Yearly | BA5: Total (Tests+H.Y.) | BB5: Yearly Exam | BC5: Total | BD5: MARKS % | BE5: 2T+E OR 2E+T | BF5: Result | BG5: Div. | BH5: Tests | BK5: Total Tests | BL5: Half Yearly | BM5: Total (Tests+H.Y.) | BN5: Yearly Exam | BO5: Total | BP5: MARKS % | BQ5: 2T+E OR 2E+T | BR5: Result | BS5: Div. | BT5: Tests | BW5: Total Tests | BX5: Half Yearly | BY5: Total (Tests+H.Y.) | BZ5: Yearly Exam | CA5: Total | CB5: MARKS % | CC5: 2T+E OR 2E+T | CD5: Result | CE5: Div. | CF5: Tests | CI5: Total Tests | CJ5: Half Yearly | CM5: Yearly Exam | CP5: Total Marks | CQ5: MARKS % | CR5: Grd. | CS5: Tests | DD5: Total Tests | DE5: Half Yearly | DH5: Yearly Exam | DK5: Total Theory | DL5: Total Practical | DM5: Total Marks | DN5: MARKS % | DO5: Grd. | DP5: Compulsory Tendency | DQ5: Alternative Tendency | DR5: Camp | DS5: Total | DT5: MARKS % | DU5: Grd. | DV5: Theory | DW5: Practical | DX5: Presentation Work | DY5: Total | DZ5: MARKS % | EA5: Grd. | EB5: Tests | EE5: Total Tests | EF5: Half Yearly | EG5: Total (Tests+H.Y.) | EH5: Yearly Exam | EI5: Total | EJ5: MARKS % | EK5: Grd. | EX5: Hindi | EY5: English | EZ5: Sanskrit | FA5: Math | FB5: Science | FC5: social Science
C6: Sr. No. | D6: Class | E6: Scholar Number | F6: Cast/ Cat. | G6: Roll Number | H6: Student's Name | I6: Father's Name | J6: Mother's Name | K6: Date Of Birth | L6: First Test | M6: Second Test | N6: Third Test | W6: D/I/II/III/S | X6: First Test | Y6: Second Test | Z6: Third Test | AI6: D/I/II/III/S | AJ6: First Test | AK6: Second Test | AL6: Third Test | AU6: D/I/II/III/S | AV6: First Test | AW6: Second Test | AX6: Third Test | BG6: D/I/II/III/S | BH6: First Test | BI6: Second Test | BJ6: Third Test | BS6: D/I/II/III/S | BT6: First Test | BU6: Second Test | BV6: Third Test | CE6: D/I/II/III/S | CF6: First Test | CG6: Second Test | CH6: Third Test | CJ6: Theory | CK6: Practical | CL6: Total H.Y. | CM6: Theory | CN6: Practical | CO6: Total Yearly | CR6: A/B/C/D | CS6: First Theoty | CT6: First Prac. | CU6: Total First | CV6: SecondTheoty | CW6: SecondPrac. | CX6: Total Second | CY6: ThirdTheoty | CZ6: Third Prac. | DA6: Total Third | DB6: Total Theory | DC6: Total Prac. | DE6: ThirdTheoty | DF6: Third Prac. | DG6: Total H.Y. | DH6: ThirdTheoty | DI6: Third Prac. | DJ6: Total Yearly | DO6: A/B/C/D | DU6: A/B/C/D | EA6: A/B/C/D | EB6: First Test | EC6: Second Test | ED6: Third Test | EK6: A+/A/B/C/D
L7: 10 | M7: 10 | N7: 10 | O7: =SUM(L7:N7) -> 30 | P7: 70 | Q7: =SUM(O7,P7) -> 100 | R7: 100 | S7: =SUM(Q7,R7) -> 200 | X7: 10 | Y7: 10 | Z7: 10 | AA7: =SUM(X7:Z7) -> 30 | AB7: 70 | AC7: =SUM(AA7,AB7) -> 100 | AD7: 100 | AE7: =SUM(AC7,AD7) -> 200 | AJ7: 10 | AK7: 10 | AL7: 10 | AM7: =SUM(AJ7:AL7) -> 30 | AN7: 70 | AO7: =SUM(AM7,AN7) -> 100 | AP7: 100 | AQ7: =SUM(AO7,AP7) -> 200 | AV7: 10 | AW7: 10 | AX7: 10 | AY7: =SUM(AV7:AX7) -> 30 | AZ7: 70 | BA7: =SUM(AY7,AZ7) -> 100 | BB7: 100 | BC7: =SUM(BA7,BB7) -> 200 | BH7: 10 | BI7: 10 | BJ7: 10 | BK7: =SUM(BH7:BJ7) -> 30 | BL7: 70 | BM7: =SUM(BK7,BL7) -> 100 | BN7: 100 | BO7: =SUM(BM7,BN7) -> 200 | BT7: 10 | BU7: 10 | BV7: 10 | BW7: =SUM(BT7:BV7) -> 30 | BX7: 70 | BY7: =SUM(BW7,BX7) -> 100 | BZ7: 100 | CA7: =SUM(BY7,BZ7) -> 200 | CF7: 10 | CG7: 10 | CH7: 10 | CI7: =SUM(CF7:CH7) -> 30 | CJ7: 50 | CK7: 20 | CL7: =SUM(CJ7,CK7) -> 70 | CM7: 70 | CN7: 30 | CO7: =IF(CN7="NA",CM7,(CM7+CN7)) -> 100 | CP7: =SUM(CI7,CL7,CO7) -> 200 | CS7: 10 | CT7: 8 | CU7: =SUM(CS7:CT7) -> 18 | CV7: 10 | CW7: 7 | CX7: =SUM(CV7:CW7) -> 17 | CY7: 15 | CZ7: 10 | DA7: =SUM(CY7:CZ7) -> 25 | DB7: =SUM(CS7,CV7,CY7) -> 35 | DC7: =SUM(CT7,CW7,CZ7) -> 25 | DD7: =SUM(DB7:DC7) -> 60 | DE7: 25 | DF7: 15 | DG7: =SUM(DE7,DF7) -> 40 | DH7: 30 | DI7: 70 | DJ7: =SUM(DH7,DI7) -> 100 | DK7: =SUM(DB7,DE7,DH7) -> 90 | DL7: =SUM(DC7,DF7,DI7) -> 110 | DM7: =SUM(DK7:DL7) -> 200 | DP7: 25 | DQ7: 45 | DR7: 30 | DS7: =SUM(DP7:DR7) -> 100 | DV7: 25 | DW7: 60 | DX7: 15 | DY7: =SUM(DV7:DX7) -> 100 | EB7: 10 | EC7: 10 | ED7: 10 | EE7: =SUM(EB7:ED7) -> 30 | EF7: 70 | EG7: =SUM(EE7,EF7) -> 100 | EH7: 100 | EI7: =SUM(EG7,EH7) -> 200 | FK7: =CF3 -> Fou. Of Info. Tech. | FO7: =CS3 -> Health & Phy. Edu. | FS7: =DP3 -> S.U.P.W. | FW7: =DV3 -> Art Education | GA7: =EB3 -> H & C RAJ
C8: 0 | D8: 0 | E8: 0 | F8: 0 | H8: 0 | I8: 0 | J8: 0 | K8: 0 | N8: =SUM(L8:M8) -> 0 | O8: 0 | P8: =IF($P$7="NA",O8,IF($P$7<=100,ROUNDUP(O8*$P$7/$O$7,0))) -> 0 | Q8: =SUM(N8,O8) -> 0 | R8: =SUM(#REF!,P8) ->  | S8: 0 | T8: =IF(OR(#REF!="",#REF!=""),"",ROUNDUP(#REF!/#REF!*100,0)) ->  | U8: =IF(AND(OR(L8="ab",L8="ml"),OR(M8="ab",M8="ml"),OR(#REF!="ab",#REF!="ml")),"AB",IF(AND(OR(L8="ab",L8="ml"),OR(M8="ab",M8="ml"),OR(O8="ab",O8="ml")),"AB",IF(AND(OR(L8="ab",L8="ml"),OR(O8="ab",O8="ml"),OR(#REF!="ab",#REF!="ml")),"AB",IF(AND(OR(O8="ab",O8="ml"),OR(M8="ab",M8="ml"),OR(#REF!="ab",#REF!="ml")),"AB","")))) ->  | V8: =IF(OR($G8="NSO",$G8="",O8=""),"",IF(OR(U8="AB",O8="ab"),"AB",IF(T8>36,"P",IF(T8>34,"G2",IF(T8>31,"G1",IF(T8>25,"S","F")))))) ->  | W8: =IF(OR(V8="",V8=0,V8="S",V8="F",V8="AB"),V8,IF(T8>=75,"D",IF(T8>=60,"I",IF(T8>=48,"II",IF(T8>=36,"III",#REF!))))) ->  | Z8: =SUM(X8:Y8) -> 0 | AA8: 0 | AB8: =IF($P$7="NA",AA8,IF($P$7<=100,ROUNDUP(AA8*$P$7/$O$7,0))) -> 0 | AC8: =SUM(Z8,AA8) -> 0 | AD8: =SUM(#REF!,AB8) ->  | AE8: 0 | AF8: =IF(OR(#REF!="",#REF!=""),"",ROUNDUP(#REF!/#REF!*100,0)) ->  | AG8: =IF(AND(OR(X8="ab",X8="ml"),OR(Y8="ab",Y8="ml"),OR(#REF!="ab",#REF!="ml")),"AB",IF(AND(OR(X8="ab",X8="ml"),OR(Y8="ab",Y8="ml"),OR(AA8="ab",AA8="ml")),"AB",IF(AND(OR(X8="ab",X8="ml"),OR(AA8="ab",AA8="ml"),OR(#REF!="ab",#REF!="ml")),"AB",IF(AND(OR(AA8="ab",AA8="ml"),OR(Y8="ab",Y8="ml"),OR(#REF!="ab",#REF!="ml")),"AB","")))) ->  | AH8: =IF(OR($G8="NSO",$G8="",AA8=""),"",IF(OR(AG8="AB",AA8="ab"),"AB",IF(AF8>36,"P",IF(AF8>34,"G2",IF(AF8>31,"G1",IF(AF8>25,"S","F")))))) ->  | AI8: =IF(OR(AH8="",AH8=0,AH8="S",AH8="F",AH8="AB"),AH8,IF(AF8>=75,"D",IF(AF8>=60,"I",IF(AF8>=48,"II",IF(AF8>=36,"III",#REF!))))) ->  | AL8: =SUM(AJ8:AK8) -> 0 | AM8: 0 | AN8: =IF($P$7="NA",AM8,IF($P$7<=100,ROUNDUP(AM8*$P$7/$O$7,0))) -> 0 | AO8: =SUM(AL8,AM8) -> 0 | AP8: =SUM(#REF!,AN8) ->  | AQ8: 0 | AR8: =IF(OR(#REF!="",#REF!=""),"",ROUNDUP(#REF!/#REF!*100,0)) ->  | AS8: =IF(AND(OR(AJ8="ab",AJ8="ml"),OR(AK8="ab",AK8="ml"),OR(#REF!="ab",#REF!="ml")),"AB",IF(AND(OR(AJ8="ab",AJ8="ml"),OR(AK8="ab",AK8="ml"),OR(AM8="ab",AM8="ml")),"AB",IF(AND(OR(AJ8="ab",AJ8="ml"),OR(AM8="ab",AM8="ml"),OR(#REF!="ab",#REF!="ml")),"AB",IF(AND(OR(AM8="ab",AM8="ml"),OR(AK8="ab",AK8="ml"),OR(#REF!="ab",#REF!="ml")),"AB","")))) ->  | AT8: =IF(OR($G8="NSO",$G8="",AM8=""),"",IF(OR(AS8="AB",AM8="ab"),"AB",IF(AR8>36,"P",IF(AR8>34,"G2",IF(AR8>31,"G1",IF(AR8>25,"S","F")))))) ->  | AU8: =IF(OR(AT8="",AT8=0,AT8="S",AT8="F",AT8="AB"),AT8,IF(AR8>=75,"D",IF(AR8>=60,"I",IF(AR8>=48,"II",IF(AR8>=36,"III",#REF!))))) ->  | AX8: =SUM(AV8:AW8) -> 0 | AY8: 0 | AZ8: =IF($P$7="NA",AY8,IF($P$7<=100,ROUNDUP(AY8*$P$7/$O$7,0))) -> 0 | BA8: =SUM(AX8,AY8) -> 0 | BB8: =SUM(#REF!,AZ8) ->  | BC8: 0 | BD8: =IF(OR(#REF!="",#REF!=""),"",ROUNDUP(#REF!/#REF!*100,0)) ->  | BE8: =IF(AND(OR(AV8="ab",AV8="ml"),OR(AW8="ab",AW8="ml"),OR(#REF!="ab",#REF!="ml")),"AB",IF(AND(OR(AV8="ab",AV8="ml"),OR(AW8="ab",AW8="ml"),OR(AY8="ab",AY8="ml")),"AB",IF(AND(OR(AV8="ab",AV8="ml"),OR(AY8="ab",AY8="ml"),OR(#REF!="ab",#REF!="ml")),"AB",IF(AND(OR(AY8="ab",AY8="ml"),OR(AW8="ab",AW8="ml"),OR(#REF!="ab",#REF!="ml")),"AB","")))) ->  | BF8: =IF(OR($G8="NSO",$G8="",AY8=""),"",IF(OR(BE8="AB",AY8="ab"),"AB",IF(BD8>36,"P",IF(BD8>34,"G2",IF(BD8>31,"G1",IF(BD8>25,"S","F")))))) ->  | BG8: =IF(OR(BF8="",BF8=0,BF8="S",BF8="F",BF8="AB"),BF8,IF(BD8>=75,"D",IF(BD8>=60,"I",IF(BD8>=48,"II",IF(BD8>=36,"III",#REF!))))) ->  | BJ8: =SUM(BH8:BI8) -> 0 | BK8: 0 | BL8: =IF($P$7="NA",BK8,IF($P$7<=100,ROUNDUP(BK8*$P$7/$O$7,0))) -> 0 | BM8: =SUM(BJ8,BK8) -> 0 | BN8: =SUM(#REF!,BL8) ->  | BO8: 0 | BP8: =IF(OR(#REF!="",#REF!=""),"",ROUNDUP(#REF!/#REF!*100,0)) ->  | BQ8: =IF(AND(OR(BH8="ab",BH8="ml"),OR(BI8="ab",BI8="ml"),OR(#REF!="ab",#REF!="ml")),"AB",IF(AND(OR(BH8="ab",BH8="ml"),OR(BI8="ab",BI8="ml"),OR(BK8="ab",BK8="ml")),"AB",IF(AND(OR(BH8="ab",BH8="ml"),OR(BK8="ab",BK8="ml"),OR(#REF!="ab",#REF!="ml")),"AB",IF(AND(OR(BK8="ab",BK8="ml"),OR(BI8="ab",BI8="ml"),OR(#REF!="ab",#REF!="ml")),"AB","")))) ->  | BR8: =IF(OR($G8="NSO",$G8="",BK8=""),"",IF(OR(BQ8="AB",BK8="ab"),"AB",IF(BP8>36,"P",IF(BP8>34,"G2",IF(BP8>31,"G1",IF(BP8>25,"S","F")))))) ->  | BS8: =IF(OR(BR8="",BR8=0,BR8="S",BR8="F",BR8="AB"),BR8,IF(BP8>=75,"D",IF(BP8>=60,"I",IF(BP8>=48,"II",IF(BP8>=36,"III",#REF!))))) ->  | BV8: =SUM(BT8:BU8) -> 0 | BW8: 0 | BX8: =IF($P$7="NA",BW8,IF($P$7<=100,ROUNDUP(BW8*$P$7/$O$7,0))) -> 0 | BY8: =SUM(BV8,BW8) -> 0 | BZ8: =SUM(#REF!,BX8) ->  | CA8: 0 | CB8: =IF(OR(#REF!="",#REF!=""),"",ROUNDUP(#REF!/#REF!*100,0)) ->  | CC8: =IF(AND(OR(BT8="ab",BT8="ml"),OR(BU8="ab",BU8="ml"),OR(#REF!="ab",#REF!="ml")),"AB",IF(AND(OR(BT8="ab",BT8="ml"),OR(BU8="ab",BU8="ml"),OR(BW8="ab",BW8="ml")),"AB",IF(AND(OR(BT8="ab",BT8="ml"),OR(BW8="ab",BW8="ml"),OR(#REF!="ab",#REF!="ml")),"AB",IF(AND(OR(BW8="ab",BW8="ml"),OR(BU8="ab",BU8="ml"),OR(#REF!="ab",#REF!="ml")),"AB","")))) ->  | CD8: =IF(OR($G8="NSO",$G8="",BW8=""),"",IF(OR(CC8="AB",BW8="ab"),"AB",IF(CB8>36,"P",IF(CB8>34,"G2",IF(CB8>31,"G1",IF(CB8>25,"S","F")))))) ->  | CE8: =IF(OR(CD8="",CD8=0,CD8="S",CD8="F",CD8="AB"),CD8,IF(CB8>=75,"D",IF(CB8>=60,"I",IF(CB8>=48,"II",IF(CB8>=36,"III",#REF!))))) ->  | CI8: =SUM(CF8:CG8) -> 0 | CJ8: 0 | CK8: =IF($P$7="NA",CJ8,IF($P$7<=100,ROUNDUP(CJ8*$P$7/$O$7,0))) -> 0 | CL8: =SUM(CI8,CJ8) -> 0 | CM8: =SUM(#REF!,CK8) ->  | CN8: 0 | CO8: 0 | CP8: =IF($S$7="NA",#REF!+CK8+CO8,#REF!+CK8+CN8) ->  | CQ8: =IF(OR(CP8="",#REF!=""),"",ROUNDUP(CP8/#REF!*100,0)) ->  | CR8: =IF(OR(CQ8="",$G8="",$G8="ab",$G8="ml"),"",IF(CQ8>80,"A",IF(CQ8>60,"B",IF(CQ8>40,"C",IF(CQ8=0,0,"D"))))) ->  | DD8: =SUM(CS8:CV8) -> 0 | DE8: 0 | DF8: =IF($P$7="NA",DE8,IF($P$7<=100,ROUNDUP(DE8*$P$7/$O$7,0))) -> 0 | DG8: =SUM(DD8,DE8) -> 0 | DH8: =SUM(#REF!,DF8) ->  | DI8: 0 | DJ8: 0 | DM8: =IF($S$7="NA",#REF!+DF8+DJ8,#REF!+DF8+DI8) ->  | DN8: =IF(OR(DM8="",#REF!=""),"",ROUNDUP(DM8/#REF!*100,0)) ->  | DO8: =IF(OR(DN8="",$G8="",$G8="ab",$G8="ml"),"",IF(DN8>80,"A",IF(DN8>60,"B",IF(DN8>40,"C",IF(DN8=0,0,"D"))))) ->  | DP8: 0 | DQ8: 0 | DR8: 0 | DS8: =SUM(DP8:DR8) -> 0 | DU8: 0 | DV8: 0 | DW8: 0 | DX8: 0 | DY8: 0 | EA8: 0 | ED8: =SUM(EB8:EC8) -> 0 | EE8: 0 | EF8: =IF($P$7="NA",EE8,IF($P$7<=100,ROUNDUP(EE8*$P$7/$O$7,0))) -> 0 | EG8: =SUM(ED8,EE8) -> 0 | EH8: =SUM(#REF!,EF8) ->  | EI8: 0 | EJ8: =IF(OR(#REF!="",#REF!=""),"",ROUNDUP(#REF!/#REF!*100,0)) ->  | EK8: =IF(OR(EJ8="",$G8="",$G8="ab",$G8="ml"),"",IF(EJ8>80,"A",IF(EJ8>60,"B",IF(EJ8>40,"C",IF(EJ8=0,0,"D"))))) ->  | EL8: 0 | EM8: 0 | EN8: 0 | EO8: 0 | EP8: 0 | EQ8: 0 | ER8: =IF(AND(EQ8>=60,ES8="Pass"),"First",IF(AND(EQ8>=60,ES8="Pass With G"),"First",IF(AND(EQ8>=48,ES8="Pass"),"Second;",IF(AND(EQ8>=48,ES8="Pass With G"),"Second",IF(OR(ES8="Pass",ES8="Pass With G"),"Third",ES8))))) ->  | ES8: =IF($G8="NSO","NSO",IF(OR($G8="",$G8=0,O8="",AA8="",AM8="",AY8="",BK8="",BW8=""),"",IF(OR(FD8>0,(FE8+FF8+FG8)>2),"FAIL",IF(OR(FE8>0,FF8>1),"SUPP.",IF(AND(FF8>0,FG8>0),"SUPP.",IF((FF8+FG8),"PASS With G","PASS")))))) ->  | EU8: 0 | EW8: =IF(EQ8>81,"Excellent",IF(EQ8>60,"Verry Good",IF(EQ8>48,"Good",IF(EQ8>36,"Average",IF(EQ8=0,0,"Need Improvement"))))) -> 0 | EX8: =W8 ->  | EY8: =AI8 ->  | EZ8: =AU8 ->  | FA8: =BG8 ->  | FB8: =BS8 ->  | FC8: =CE8 ->  | FD8: =COUNTIF(EX8:FC8,"F")+COUNTIF(EX8:FC8,"AB") -> 0 | FE8: =COUNTIF(EX8:FC8,"S") -> 0 | FF8: =COUNTIF(EX8:FC8,"G1") -> 0 | FG8: =COUNTIF(EX8:FC8,"G2") -> 0
A9: =G9 -> nso | B9: 1 | C9: 1 | D9: =IF(E9>0,$G$4,0) -> 9 | E9: 793 | F9: OBC | G9: nso | H9: ABHISHEK | I9: RAMU KHAN | J9: SEEPA DEVI | K9: 2005-07-22 | L9: 2 | M9: 10 | N9: 10 | O9: =SUM(L9:N9) -> 22 | P9: 20 | Q9: =SUM(O9,P9) -> 42 | R9: 60 | S9: =SUM(Q9,R9) -> 102 | T9: =IF(OR(P9="",R9=""),"",S9/S$7*100) -> 51.00 | U9: =IF(R9="AB","AB",IF(AND(OR(L9="ab",L9="ml"),OR(M9="ab",M9="ml"),OR(O9="ab",O9="ml")),"AB",IF(AND(OR(L9="ab",L9="ml"),OR(O9="ab",O9="ml")),"AB",""))) ->  | V9: =IF(OR($G9="NSO",$G9="",R9=""),"",IF(OR(U9="AB",R9="ab"),"AB",IF(AND(T9>=36,R9>=20),"P",IF(AND(T9>=34,R9>=20,COUNTIF(N9:R9,"ml")=0),"G2",IF(AND(T9>=31,R9>=20,COUNTIF(N9:R9,"ml")=0),"G1",IF(T9>=25,"S","F")))))) ->  | W9: =IF(OR(V9="",V9=0,V9="S",V9="F",V9="AB"),V9,IF(T9>=75,"D",IF(T9>=60,"I",IF(T9>=48,"II",IF(T9>=36,"III",V9))))) ->  | X9: 2 | Y9: 10 | Z9: 8 | AA9: =SUM(X9:Z9) -> 20 | AB9: 20 | AC9: =SUM(AA9,AB9) -> 40 | AD9: 60 | AE9: =SUM(AC9,AD9) -> 100 | AF9: =IF(OR(AB9="",AD9=""),"",AE9/AE$7*100) -> 50.00 | AG9: =IF(AD9="AB","AB",IF(AND(OR(X9="ab",X9="ml"),OR(Y9="ab",Y9="ml"),OR(AA9="ab",AA9="ml")),"AB",IF(AND(OR(X9="ab",X9="ml"),OR(AA9="ab",AA9="ml")),"AB",""))) ->  | AH9: =IF(OR($G9="NSO",$G9="",AD9=""),"",IF(OR(AG9="AB",AD9="ab"),"AB",IF(AND(AF9>=36,AD9>=20),"P",IF(AND(AF9>=34,AD9>=20,COUNTIF(Z9:AD9,"ml")=0),"G2",IF(AND(AF9>=31,AD9>=20,COUNTIF(Z9:AD9,"ml")=0),"G1",IF(AF9>=25,"S","F")))))) ->  | AI9: =IF(OR(AH9="",AH9=0,AH9="S",AH9="F",AH9="AB"),AH9,IF(AF9>=75,"D",IF(AF9>=60,"I",IF(AF9>=48,"II",IF(AF9>=36,"III",AH9))))) ->  | AJ9: 2 | AK9: 10 | AL9: 5 | AM9: =SUM(AJ9:AL9) -> 17 | AN9: 20 | AO9: =SUM(AM9,AN9) -> 37 | AP9: 60 | AQ9: =SUM(AO9,AP9) -> 97 | AR9: =IF(OR(AN9="",AP9=""),"",AQ9/AQ$7*100) -> 48.50 | AS9: =IF(AP9="AB","AB",IF(AND(OR(AJ9="ab",AJ9="ml"),OR(AK9="ab",AK9="ml"),OR(AM9="ab",AM9="ml")),"AB",IF(AND(OR(AJ9="ab",AJ9="ml"),OR(AM9="ab",AM9="ml")),"AB",""))) ->  | AT9: =IF(OR($G9="NSO",$G9="",AP9=""),"",IF(OR(AS9="AB",AP9="ab"),"AB",IF(AND(AR9>=36,AP9>=20),"P",IF(AND(AR9>=34,AP9>=20,COUNTIF(AL9:AP9,"ml")=0),"G2",IF(AND(AR9>=31,AP9>=20,COUNTIF(AL9:AP9,"ml")=0),"G1",IF(AR9>=25,"S","F")))))) ->  | AU9: =IF(OR(AT9="",AT9=0,AT9="S",AT9="F",AT9="AB"),AT9,IF(AR9>=75,"D",IF(AR9>=60,"I",IF(AR9>=48,"II",IF(AR9>=36,"III",AT9))))) ->  | AV9: 2 | AW9: 10 | AX9: 10 | AY9: =SUM(AV9:AX9) -> 22 | AZ9: 20 | BA9: =SUM(AY9,AZ9) -> 42 | BB9: 60 | BC9: =SUM(BA9,BB9) -> 102 | BD9: =IF(OR(AZ9="",BB9=""),"",BC9/BC$7*100) -> 51.00 | BE9: =IF(BB9="AB","AB",IF(AND(OR(AV9="ab",AV9="ml"),OR(AW9="ab",AW9="ml"),OR(AY9="ab",AY9="ml")),"AB",IF(AND(OR(AV9="ab",AV9="ml"),OR(AY9="ab",AY9="ml")),"AB",""))) ->  | BF9: =IF(OR($G9="NSO",$G9="",BB9=""),"",IF(OR(BE9="AB",BB9="ab"),"AB",IF(AND(BD9>=36,BB9>=20),"P",IF(AND(BD9>=34,BB9>=20,COUNTIF(AX9:BB9,"ml")=0),"G2",IF(AND(BD9>=31,BB9>=20,COUNTIF(AX9:BB9,"ml")=0),"G1",IF(BD9>=25,"S","F")))))) ->  | BG9: =IF(OR(BF9="",BF9=0,BF9="S",BF9="F",BF9="AB"),BF9,IF(BD9>=75,"D",IF(BD9>=60,"I",IF(BD9>=48,"II",IF(BD9>=36,"III",BF9))))) ->  | BH9: 2 | BI9: 10 | BJ9: 0 | BK9: =SUM(BH9:BJ9) -> 12 | BL9: 20 | BM9: =SUM(BK9,BL9) -> 32 | BN9: 30 | BO9: =SUM(BM9,BN9) -> 62 | BP9: =IF(OR(BL9="",BN9=""),"",BO9/BO$7*100) -> 31.00 | BQ9: =IF(BN9="AB","AB",IF(AND(OR(BH9="ab",BH9="ml"),OR(BI9="ab",BI9="ml"),OR(BK9="ab",BK9="ml")),"AB",IF(AND(OR(BH9="ab",BH9="ml"),OR(BK9="ab",BK9="ml")),"AB",""))) ->  | BR9: =IF(OR($G9="NSO",$G9="",BN9=""),"",IF(OR(BQ9="AB",BN9="ab"),"AB",IF(AND(BP9>=36,BN9>=20),"P",IF(AND(BP9>=34,BN9>=20,COUNTIF(BJ9:BN9,"ml")=0),"G2",IF(AND(BP9>=31,BN9>=20,COUNTIF(BJ9:BN9,"ml")=0),"G1",IF(BP9>=25,"S","F")))))) ->  | BS9: =IF(OR(BR9="",BR9=0,BR9="S",BR9="F",BR9="AB"),BR9,IF(BP9>=75,"D",IF(BP9>=60,"I",IF(BP9>=48,"II",IF(BP9>=36,"III",BR9))))) ->  | BT9: 2 | BU9: 10 | BV9: 0 | BW9: =SUM(BT9:BV9) -> 12 | BX9: 20 | BY9: =SUM(BW9,BX9) -> 32 | BZ9: 30 | CA9: =SUM(BY9,BZ9) -> 62 | CB9: =IF(OR(BX9="",BZ9=""),"",CA9/CA$7*100) -> 31.00 | CC9: =IF(BZ9="AB","AB",IF(AND(OR(BT9="ab",BT9="ml"),OR(BU9="ab",BU9="ml"),OR(BW9="ab",BW9="ml")),"AB",IF(AND(OR(BT9="ab",BT9="ml"),OR(BW9="ab",BW9="ml")),"AB",""))) ->  | CD9: =IF(OR($G9="NSO",$G9="",BZ9=""),"",IF(OR(CC9="AB",BZ9="ab"),"AB",IF(AND(CB9>=36,BZ9>=20),"P",IF(AND(CB9>=34,BZ9>=20,COUNTIF(BV9:BZ9,"ml")=0),"G2",IF(AND(CB9>=31,BZ9>=20,COUNTIF(BV9:BZ9,"ml")=0),"G1",IF(CB9>=25,"S","F")))))) ->  | CE9: =IF(OR(CD9="",CD9=0,CD9="S",CD9="F",CD9="AB"),CD9,IF(CB9>=75,"D",IF(CB9>=60,"I",IF(CB9>=48,"II",IF(CB9>=36,"III",CD9))))) ->  | CF9: 2 | CG9: 10 | CI9: =SUM(CF9:CH9) -> 12 | CJ9: 3 | CK9: 10 | CL9: =SUM(CJ9,CK9) -> 13 | CM9: 38 | CN9: 10 | CO9: =SUM(CM9:CN9) -> 48 | CP9: =SUM(CI9,CL9,CO9) -> 73 | CQ9: =IF(OR(CL9="",CO9=""),"",CP9/CP$7*100) -> 36.50 | CR9: =IF(CQ9>=80,"A",IF(CQ9>=60,"B",IF(CQ9>=40,"C",IF(CQ9>=36,"D","")))) -> D | CS9: 2 | CT9: 0 | CU9: =IF(AND(CS9="",CT9=""),"",IF(AND(CS9="ml",CT9="ml"),"ml",IF(AND(CS9="AB",CT9="AB"),"AB",SUM(CS9:CT9)))) -> 2 | CV9: 10 | CX9: =IF(AND(CV9="",CW9=""),"",IF(AND(CV9="ml",CW9="ml"),"ml",IF(AND(CV9="AB",CW9="AB"),"AB",SUM(CV9:CW9)))) -> 10 | DA9: =IF(AND(CY9="",CZ9=""),"",IF(AND(CY9="ml",CZ9="ml"),"ml",IF(AND(CY9="AB",CZ9="AB"),"AB",SUM(CY9:CZ9)))) ->  | DB9: =SUM(CS9,CV9,CY9) -> 12 | DC9: =SUM(CT9,CW9,CZ9) -> 0 | DD9: =SUM(DB9:DC9) -> 12 | DE9: 25 | DF9: 10 | DG9: =IF(AND(DE9="",DF9=""),"",IF(AND(DE9="ml",DF9="ml"),"ml",IF(AND(DE9="AB",DF9="AB"),"AB",SUM(DE9:DF9)))) -> 35 | DH9: 38 | DI9: 15 | DJ9: =IF(AND(DH9="",DI9=""),"",IF(AND(DH9="ml",DI9="ml"),"ml",IF(AND(DH9="AB",DI9="AB"),"AB",SUM(DH9:DI9)))) -> 53 | DK9: =SUM(DB9,DE9,DH9) -> 75 | DL9: =SUM(DC9,DF9,DI9) -> 25 | DM9: =SUM(DK9:DL9) -> 100 | DN9: =IF(OR(DG9="",DJ9=""),"",DM9/DM$7*100) -> 50.00 | DO9: =IF(DN9>=80,"A",IF(DN9>=60,"B",IF(DN9>=40,"C",IF(DN9>=36,"D","")))) -> C | DP9: 14 | DQ9: 21 | DR9: 17 | DS9: =SUM(DP9:DR9) -> 52 | DT9: =IF(OR(DS9="",DS$7=""),"",DS9/DS$7*100) -> 52.00 | DU9: =IF(DT9>=80,"A",IF(DT9>=60,"B",IF(DT9>=40,"C",IF(DT9>=21,"D","")))) -> C | DV9: 15 | DW9: 40 | DX9: 11 | DY9: =SUM(DV9:DX9) -> 66 | DZ9: =IF(OR(DY9="",DY$7=""),"",DY9/DY$7*100) -> 66.00 | EA9: =IF(DZ9>=80,"A",IF(DZ9>=60,"B",IF(DZ9>=40,"C",IF(DZ9>=21,"D","")))) -> B | EB9: 2 | EC9: 10 | ED9: 10 | EE9: =SUM(EB9:ED9) -> 22 | EF9: 55 | EG9: =SUM(EE9,EF9) -> 77 | EH9: 38 | EI9: =SUM(EG9:EH9) -> 115 | EJ9: =IF(OR(EF9="",EH9=""),"",EI9/EI$7*100) -> 57.50 | EK9: =IF(EJ9>=80,"A",IF(EJ9>=60,"B",IF(EJ9>=40,"C",IF(EJ9>=36,"D","")))) -> C | EL9: 362 | EM9: 274 | EN9: =IF(OR(EL9="",EM9=""),"",EM9/EL9*100) -> 75.69 | EO9: =IF(G9="","",SUM($S$7,$AE$7,$AQ$7,$BC$7,$BO$7,$CA$7)) -> 1200 | EP9: =IF(G9="","",SUM(S9,AE9,AQ9,BC9,BO9,CA9)) -> 525 | EQ9: =IF(G9="","",IF(AND(ES9="Passed",EO9>0),EP9/EO9*100,"--")) -> -- | ER9: =IF(G9="","",IF(AND(EQ9>=60,ES9="Passed"),"First",IF(AND(EQ9>=60,ES9="Passed with G"),"First",IF(AND(EQ9>=48,ES9="Passed"),"Second",IF(AND(EQ9>=48,ES9="Passed With G"),"Second",IF(OR(ES9="Passed",ES9="Passed With G"),"Third","--")))))) -> -- | ES9: =IF(G9="TC","Transfered",IF($G9="NSO","NSO",IF(OR($G9="",$G9=0,O9="",P9="",R9="",AB9="",AD9="",AN9="",AP9="",AZ9="",BB9="",BL9="",BN9="",BX9="",BZ9=""),"",IF(OR(FD9>0,(FE9+FF9+FG9)>2),"FAILED",IF(OR(FE9>0,FF9>1),"SUPP.",IF(AND(FF9>0,FG9>0),"SUPP.",IF((FF9+FG9),"Passed With G","Passed"))))))) -> NSO | ET9: =IF(ES9="Passed",EQ9,"") ->  | EU9: =IF(ET9="","",SUMPRODUCT((ET9<ET$9:ET$108)/COUNTIF(ET$9:ET$108,ET$9:ET$108))) ->  | EV9: =IF(OR(G9="",G9="NSO",G9="TC"),"",IF(EQ9>81,"Excellent",IF(EQ9>60,"Very Good",IF(EQ9>48,"Good",IF(EQ9>36,"Average","Need Improvement"))))) ->  | EW9: =IF(G9="","",IF(G9="Tc","Transfered",IF(ES9="nso","Name Separated",IF(FD9>0,"Need Improvement",IF(FE9>0,"Need Improvement",IF(FF9>0,"Need Improvement",IF(EQ9>=80,"Excellent",IF(EQ9>=60,"Very Good",IF(EQ9>=48,"Good",IF(EQ9>=36,"Average",IF(EQ9=0,0,"Need Improvement"))))))))))) -> Name Separated | EX9: =W9 ->  | EY9: =AI9 ->  | EZ9: =AU9 ->  | FA9: =BG9 ->  | FB9: =BS9 ->  | FC9: =CE9 ->  | FD9: =COUNTIF(EX9:FC9,"F")+COUNTIF(EX9:FC9,"AB") -> 0 | FE9: =COUNTIF(EX9:FC9,"S") -> 0 | FF9: =COUNTIF(EX9:FC9,"G1") -> 0 | FG9: =COUNTIF(EX9:FC9,"G2") -> 0 | FK9: =CP9 -> 73 | FL9: / | FM9: =$CP$7 -> 200 | FN9: =CONCATENATE(FK9,FL9,FM9) -> 73/200 | FO9: =DM9 -> 100 | FP9: / | FQ9: =$DM$7 -> 200 | FR9: =CONCATENATE(FO9,FP9,FQ9) -> 100/200 | FS9: =DS9 -> 52 | FT9: / | FU9: =$DS$7 -> 100 | FV9: =CONCATENATE(FS9,FT9,FU9) -> 52/100 | FW9: =DY9 -> 66 | FX9: / | FY9: =$DY$7 -> 100 | FZ9: =CONCATENATE(FW9,FX9,FY9) -> 66/100 | GA9: =EI9 -> 115 | GB9: / | GC9: =$EI$7 -> 200 | GD9: =CONCATENATE(GA9,GB9,GC9) -> 115/200
A10: =G10 -> 902 | B10: 2 | C10: 2 | D10: =IF(E10>0,$G$4,0) -> 9 | E10: 123 | F10: GEN | G10: 902 | H10: KJJHJ | I10: HHHH | J10: HHHH | K10: 2005-04-22 | L10: 10 | M10: 10 | N10: 5 | O10: =SUM(L10:N10) -> 25 | P10: 20 | Q10: 45 | R10: 20 | S10: 65 | T10: =IF(OR(P10="",R10=""),"",S10/S$7*100) -> 32.50 | U10: =IF(R10="AB","AB",IF(AND(OR(L10="ab",L10="ml"),OR(M10="ab",M10="ml"),OR(O10="ab",O10="ml")),"AB",IF(AND(OR(L10="ab",L10="ml"),OR(O10="ab",O10="ml")),"AB",""))) ->  | V10: =IF(OR($G10="NSO",$G10="",R10=""),"",IF(OR(U10="AB",R10="ab"),"AB",IF(AND(T10>=36,R10>=20),"P",IF(AND(T10>=34,R10>=20,COUNTIF(N10:R10,"ml")=0),"G2",IF(AND(T10>=31,R10>=20,COUNTIF(N10:R10,"ml")=0),"G1",IF(T10>=25,"S","F")))))) -> G1 | W10: =IF(OR(V10="",V10=0,V10="S",V10="F",V10="AB"),V10,IF(T10>=75,"D",IF(T10>=60,"I",IF(T10>=48,"II",IF(T10>=36,"III",V10))))) -> G1 | X10: 10 | Y10: 10 | Z10: 0 | AA10: 20 | AB10: 20 | AC10: 40 | AD10: 20 | AE10: 60 | AF10: =IF(OR(AB10="",AD10=""),"",AE10/AE$7*100) -> 30.00 | AG10: =IF(AD10="AB","AB",IF(AND(OR(X10="ab",X10="ml"),OR(Y10="ab",Y10="ml"),OR(AA10="ab",AA10="ml")),"AB",IF(AND(OR(X10="ab",X10="ml"),OR(AA10="ab",AA10="ml")),"AB",""))) ->  | AH10: =IF(OR($G10="NSO",$G10="",AD10=""),"",IF(OR(AG10="AB",AD10="ab"),"AB",IF(AND(AF10>=36,AD10>=20),"P",IF(AND(AF10>=34,AD10>=20,COUNTIF(Z10:AD10,"ml")=0),"G2",IF(AND(AF10>=31,AD10>=20,COUNTIF(Z10:AD10,"ml")=0),"G1",IF(AF10>=25,"S","F")))))) -> S | AI10: =IF(OR(AH10="",AH10=0,AH10="S",AH10="F",AH10="AB"),AH10,IF(AF10>=75,"D",IF(AF10>=60,"I",IF(AF10>=48,"II",IF(AF10>=36,"III",AH10))))) -> S | AJ10: 12 | AK10: 10 | AL10: 0 | AM10: 22 | AN10: 20 | AO10: 42 | AP10: 20 | AQ10: 62 | AR10: =IF(OR(AN10="",AP10=""),"",AQ10/AQ$7*100) -> 31.00 | AS10: =IF(AP10="AB","AB",IF(AND(OR(AJ10="ab",AJ10="ml"),OR(AK10="ab",AK10="ml"),OR(AM10="ab",AM10="ml")),"AB",IF(AND(OR(AJ10="ab",AJ10="ml"),OR(AM10="ab",AM10="ml")),"AB",""))) ->  | AT10: =IF(OR($G10="NSO",$G10="",AP10=""),"",IF(OR(AS10="AB",AP10="ab"),"AB",IF(AND(AR10>=36,AP10>=20),"P",IF(AND(AR10>=34,AP10>=20,COUNTIF(AL10:AP10,"ml")=0),"G2",IF(AND(AR10>=31,AP10>=20,COUNTIF(AL10:AP10,"ml")=0),"G1",IF(AR10>=25,"S","F")))))) -> G1 | AU10: =IF(OR(AT10="",AT10=0,AT10="S",AT10="F",AT10="AB"),AT10,IF(AR10>=75,"D",IF(AR10>=60,"I",IF(AR10>=48,"II",IF(AR10>=36,"III",AT10))))) -> G1 | AV10: 10 | AW10: 10 | AX10: 0 | AY10: 20 | AZ10: 20 | BA10: 40 | BB10: 20 | BC10: 60 | BD10: =IF(OR(AZ10="",BB10=""),"",BC10/BC$7*100) -> 30.00 | BE10: =IF(BB10="AB","AB",IF(AND(OR(AV10="ab",AV10="ml"),OR(AW10="ab",AW10="ml"),OR(AY10="ab",AY10="ml")),"AB",IF(AND(OR(AV10="ab",AV10="ml"),OR(AY10="ab",AY10="ml")),"AB",""))) ->  | BF10: =IF(OR($G10="NSO",$G10="",BB10=""),"",IF(OR(BE10="AB",BB10="ab"),"AB",IF(AND(BD10>=36,BB10>=20),"P",IF(AND(BD10>=34,BB10>=20,COUNTIF(AX10:BB10,"ml")=0),"G2",IF(AND(BD10>=31,BB10>=20,COUNTIF(AX10:BB10,"ml")=0),"G1",IF(BD10>=25,"S","F")))))) -> S | BG10: =IF(OR(BF10="",BF10=0,BF10="S",BF10="F",BF10="AB"),BF10,IF(BD10>=75,"D",IF(BD10>=60,"I",IF(BD10>=48,"II",IF(BD10>=36,"III",BF10))))) -> S | BH10: 10 | BI10: 10 | BJ10: 0 | BK10: 20 | BL10: 20 | BM10: 40 | BN10: 20 | BO10: 60 | BP10: =IF(OR(BL10="",BN10=""),"",BO10/BO$7*100) -> 30.00 | BQ10: =IF(BN10="AB","AB",IF(AND(OR(BH10="ab",BH10="ml"),OR(BI10="ab",BI10="ml"),OR(BK10="ab",BK10="ml")),"AB",IF(AND(OR(BH10="ab",BH10="ml"),OR(BK10="ab",BK10="ml")),"AB",""))) ->  | BR10: =IF(OR($G10="NSO",$G10="",BN10=""),"",IF(OR(BQ10="AB",BN10="ab"),"AB",IF(AND(BP10>=36,BN10>=20),"P",IF(AND(BP10>=34,BN10>=20,COUNTIF(BJ10:BN10,"ml")=0),"G2",IF(AND(BP10>=31,BN10>=20,COUNTIF(BJ10:BN10,"ml")=0),"G1",IF(BP10>=25,"S","F")))))) -> S | BS10: =IF(OR(BR10="",BR10=0,BR10="S",BR10="F",BR10="AB"),BR10,IF(BP10>=75,"D",IF(BP10>=60,"I",IF(BP10>=48,"II",IF(BP10>=36,"III",BR10))))) -> S | BT10: 10 | BU10: 10 | BV10: 0 | BW10: 20 | BX10: 20 | BY10: 40 | BZ10: 20 | CA10: 60 | CB10: =IF(OR(BX10="",BZ10=""),"",CA10/CA$7*100) -> 30.00 | CC10: =IF(BZ10="AB","AB",IF(AND(OR(BT10="ab",BT10="ml"),OR(BU10="ab",BU10="ml"),OR(BW10="ab",BW10="ml")),"AB",IF(AND(OR(BT10="ab",BT10="ml"),OR(BW10="ab",BW10="ml")),"AB",""))) ->  | CD10: =IF(OR($G10="NSO",$G10="",BZ10=""),"",IF(OR(CC10="AB",BZ10="ab"),"AB",IF(AND(CB10>=36,BZ10>=20),"P",IF(AND(CB10>=34,BZ10>=20,COUNTIF(BV10:BZ10,"ml")=0),"G2",IF(AND(CB10>=31,BZ10>=20,COUNTIF(BV10:BZ10,"ml")=0),"G1",IF(CB10>=25,"S","F")))))) -> S | CE10: =IF(OR(CD10="",CD10=0,CD10="S",CD10="F",CD10="AB"),CD10,IF(CB10>=75,"D",IF(CB10>=60,"I",IF(CB10>=48,"II",IF(CB10>=36,"III",CD10))))) -> S | CF10: 20 | CG10: 10 | CI10: =SUM(CF10:CH10) -> 30 | CJ10: 30 | CK10: 10 | CL10: =SUM(CJ10,CK10) -> 40 | CM10: 60 | CN10: 10 | CO10: =SUM(CM10:CN10) -> 70 | CP10: =SUM(CI10,CL10,CO10) -> 140 | CQ10: =IF(OR(CL10="",CO10=""),"",CP10/CP$7*100) -> 70.00 | CR10: =IF(CQ10>=80,"A",IF(CQ10>=60,"B",IF(CQ10>=40,"C",IF(CQ10>=36,"D","")))) -> B | CS10: 20 | CT10: 0 | CU10: =IF(AND(CS10="",CT10=""),"",IF(AND(CS10="ml",CT10="ml"),"ml",IF(AND(CS10="AB",CT10="AB"),"AB",SUM(CS10:CT10)))) -> 20 | CV10: 10 | CX10: =IF(AND(CV10="",CW10=""),"",IF(AND(CV10="ml",CW10="ml"),"ml",IF(AND(CV10="AB",CW10="AB"),"AB",SUM(CV10:CW10)))) -> 10 | DA10: =IF(AND(CY10="",CZ10=""),"",IF(AND(CY10="ml",CZ10="ml"),"ml",IF(AND(CY10="AB",CZ10="AB"),"AB",SUM(CY10:CZ10)))) ->  | DB10: =SUM(CS10,CV10,CY10) -> 30 | DC10: =SUM(CT10,CW10,CZ10) -> 0 | DD10: =SUM(DB10:DC10) -> 30 | DE10: 30 | DF10: 10 | DG10: =IF(AND(DE10="",DF10=""),"",IF(AND(DE10="ml",DF10="ml"),"ml",IF(AND(DE10="AB",DF10="AB"),"AB",SUM(DE10:DF10)))) -> 40 | DH10: 60 | DI10: 15 | DJ10: =IF(AND(DH10="",DI10=""),"",IF(AND(DH10="ml",DI10="ml"),"ml",IF(AND(DH10="AB",DI10="AB"),"AB",SUM(DH10:DI10)))) -> 75 | DK10: =SUM(DB10,DE10,DH10) -> 120 | DL10: =SUM(DC10,DF10,DI10) -> 25 | DM10: =SUM(DK10:DL10) -> 145 | DN10: =IF(OR(DG10="",DJ10=""),"",DM10/DM$7*100) -> 72.50 | DO10: =IF(DN10>=80,"A",IF(DN10>=60,"B",IF(DN10>=40,"C",IF(DN10>=36,"D","")))) -> B | DP10: 14 | DQ10: 20 | DR10: 14 | DS10: =SUM(DP10:DR10) -> 48 | DT10: =IF(OR(DS10="",DS$7=""),"",DS10/DS$7*100) -> 48.00 | DU10: =IF(DT10>=80,"A",IF(DT10>=60,"B",IF(DT10>=40,"C",IF(DT10>=21,"D","")))) -> C | DV10: 15 | DW10: 40 | DX10: 10 | DY10: =SUM(DV10:DX10) -> 65 | DZ10: =IF(OR(DY10="",DY$7=""),"",DY10/DY$7*100) -> 65.00 | EA10: =IF(DZ10>=80,"A",IF(DZ10>=60,"B",IF(DZ10>=40,"C",IF(DZ10>=21,"D","")))) -> B | EB10: 10 | EC10: 10 | ED10: 8 | EE10: =SUM(EB10:ED10) -> 28 | EF10: 10 | EG10: =SUM(EE10,EF10) -> 38 | EH10: 15 | EI10: =SUM(EG10:EH10) -> 53 | EJ10: =IF(OR(EF10="",EH10=""),"",EI10/EI$7*100) -> 26.50 | EK10: =IF(EJ10>=80,"A",IF(EJ10>=60,"B",IF(EJ10>=40,"C",IF(EJ10>=36,"D","")))) ->  | EL10: 362 | EM10: 210 | EN10: =IF(OR(EL10="",EM10=""),"",EM10/EL10*100) -> 58.01 | EO10: =IF(G10="","",SUM($S$7,$AE$7,$AQ$7,$BC$7,$BO$7,$CA$7)) -> 1200 | EP10: =IF(G10="","",SUM(S10,AE10,AQ10,BC10,BO10,CA10)) -> 367 | EQ10: =IF(G10="","",IF(AND(ES10="Passed",EO10>0),EP10/EO10*100,"--")) -> -- | ER10: =IF(G10="","",IF(AND(EQ10>=60,ES10="Passed"),"First",IF(AND(EQ10>=60,ES10="Passed with G"),"First",IF(AND(EQ10>=48,ES10="Passed"),"Second",IF(AND(EQ10>=48,ES10="Passed With G"),"Second",IF(OR(ES10="Passed",ES10="Passed With G"),"Third","--")))))) -> -- | ES10: =IF(G10="TC","Transfered",IF($G10="NSO","NSO",IF(OR($G10="",$G10=0,O10="",P10="",R10="",AB10="",AD10="",AN10="",AP10="",AZ10="",BB10="",BL10="",BN10="",BX10="",BZ10=""),"",IF(OR(FD10>0,(FE10+FF10+FG10)>2),"FAILED",IF(OR(FE10>0,FF10>1),"SUPP.",IF(AND(FF10>0,FG10>0),"SUPP.",IF((FF10+FG10),"Passed With G","Passed"))))))) -> FAILED | ET10: =IF(ES10="Passed",EQ10,"") ->  | EU10: =IF(ET10="","",SUMPRODUCT((ET10<ET$9:ET$108)/COUNTIF(ET$9:ET$108,ET$9:ET$108))) ->  | EV10: =IF(OR(G10="",G10="NSO",G10="TC"),"",IF(EQ10>81,"Excellent",IF(EQ10>60,"Very Good",IF(EQ10>48,"Good",IF(EQ10>36,"Average","Need Improvement"))))) -> Excellent | EW10: =IF(G10="","",IF(G10="Tc","Transfered",IF(ES10="nso","Name Separated",IF(FD10>0,"Need Improvement",IF(FE10>0,"Need Improvement",IF(FF10>0,"Need Improvement",IF(EQ10>=80,"Excellent",IF(EQ10>=60,"Very Good",IF(EQ10>=48,"Good",IF(EQ10>=36,"Average",IF(EQ10=0,0,"Need Improvement"))))))))))) -> Need Improvement | EX10: =W10 -> G1 | EY10: =AI10 -> S | EZ10: =AU10 -> G1 | FA10: =BG10 -> S | FB10: =BS10 -> S | FC10: =CE10 -> S | FD10: =COUNTIF(EX10:FC10,"F")+COUNTIF(EX10:FC10,"AB") -> 0 | FE10: =COUNTIF(EX10:FC10,"S") -> 4 | FF10: =COUNTIF(EX10:FC10,"G1") -> 2 | FG10: =COUNTIF(EX10:FC10,"G2") -> 0 | FK10: =CP10 -> 140 | FL10: / | FM10: =$CP$7 -> 200 | FN10: =CONCATENATE(FK10,FL10,FM10) -> 140/200 | FO10: =DM10 -> 145 | FP10: / | FQ10: =$DM$7 -> 200 | FR10: =CONCATENATE(FO10,FP10,FQ10) -> 145/200 | FS10: =DS10 -> 48 | FT10: / | FU10: =$DS$7 -> 100 | FV10: =CONCATENATE(FS10,FT10,FU10) -> 48/100 | FW10: =DY10 -> 65 | FX10: / | FY10: =$DY$7 -> 100 | FZ10: =CONCATENATE(FW10,FX10,FY10) -> 65/100 | GA10: =EI10 -> 53 | GB10: / | GC10: =$EI$7 -> 200 | GD10: 53/200
A11: 0 | B11: 3 | C11: 3 | D11: 0 | L11: 0 | M11: 0 | N11: 0 | O11: 0 | P11: 0 | Q11: 0 | R11: 0 | S11: 0 | T11: 0.00 | X11: 0 | Y11: 0 | Z11: 0 | AA11: 0 | AB11: 0 | AC11: 0 | AD11: 0 | AE11: 0 | AF11: 0.00 | AJ11: 0 | AK11: 0 | AL11: 0 | AM11: 0 | AN11: 0 | AO11: 0 | AP11: 0 | AQ11: 0 | AR11: 0.00 | AV11: 0 | AW11: 0 | AX11: 0 | AY11: 0 | AZ11: 0 | BA11: 0 | BB11: 0 | BC11: 0 | BD11: 0.00 | BH11: 0 | BI11: 0 | BJ11: 0 | BK11: 0 | BL11: 0 | BM11: 0 | BN11: 0 | BO11: 0 | BP11: 0.00 | BT11: 0 | BU11: 0 | BV11: 0 | BW11: 0 | BX11: 0 | BY11: 0 | BZ11: 0 | CA11: 0 | CB11: 0.00 | CF11: 0 | CG11: 0 | CI11: 0 | CJ11: 0 | CK11: 0 | CL11: =SUM(CJ11,CK11) -> 0 | CM11: 0 | CN11: =IF($S$7="NA","NA",0) -> 0 | CO11: 0 | CP11: 0 | CQ11: 0.00 | CS11: 0 | CT11: 0 | CU11: 0 | CV11: 0 | CX11: 0 | DB11: 0 | DC11: 0 | DD11: 0 | DE11: 0 | DF11: 0 | DG11: 0 | DH11: 0 | DI11: =IF($S$7="NA","NA",0) -> 0 | DJ11: 0 | DK11: 0 | DL11: 0 | DM11: 0 | DN11: 0.00 | DP11: 0 | DQ11: 0 | DR11: 0 | DS11: =SUM(DP11:DR11) -> 0 | DT11: 0.00 | DV11: 0 | DW11: 0 | DX11: 0 | DY11: =SUM(DV11:DX11) -> 0 | DZ11: 0.00 | EB11: 0 | EC11: 0 | ED11: 0 | EE11: =SUM(EB11:ED11) -> 0 | EF11: 0 | EG11: 0 | EH11: 0 | EI11: 0 | EJ11: 0.00 | FD11: 0 | FE11: 0 | FF11: 0 | FG11: 0 | FK11: 0 | FL11: / | FM11: 200 | FN11: 0/200 | FO11: 0 | FP11: / | FQ11: 200 | FR11: 0/200 | FS11: 0 | FT11: / | FU11: 100 | FV11: 0/100 | FW11: 0 | FX11: / | FY11: 100 | FZ11: 0/100 | GA11: 0 | GB11: / | GC11: 200 | GD11: 0/200
A12: 0 | B12: 4 | C12: 4 | D12: 0 | L12: 0 | M12: 0 | N12: 0 | O12: 0 | P12: 0 | Q12: 0 | R12: 0 | S12: 0 | T12: 0.00 | X12: 0 | Y12: 0 | Z12: 0 | AA12: 0 | AB12: 0 | AC12: 0 | AD12: 0 | AE12: 0 | AF12: 0.00 | AJ12: 0 | AK12: 0 | AL12: 0 | AM12: 0 | AN12: 0 | AO12: 0 | AP12: 0 | AQ12: 0 | AR12: 0.00 | AV12: 0 | AW12: 0 | AX12: 0 | AY12: 0 | AZ12: 0 | BA12: 0 | BB12: 0 | BC12: 0 | BD12: 0.00 | BH12: 0 | BI12: 0 | BJ12: 0 | BK12: 0 | BL12: 0 | BM12: 0 | BN12: 0 | BO12: 0 | BP12: 0.00 | BT12: 0 | BU12: 0 | BV12: 0 | BW12: 0 | BX12: 0 | BY12: 0 | BZ12: 0 | CA12: 0 | CB12: 0.00 | CF12: 0 | CG12: 0 | CI12: 0 | CJ12: 0 | CK12: 0 | CL12: 0 | CM12: 0 | CN12: =IF($S$7="NA","NA",0) -> 0 | CO12: 0 | CP12: 0 | CQ12: 0.00 | CS12: 0 | CT12: 0 | CU12: 0 | CV12: 0 | CX12: 0 | DB12: 0 | DC12: 0 | DD12: 0 | DE12: 0 | DF12: 0 | DG12: 0 | DH12: 0 | DI12: =IF($S$7="NA","NA",0) -> 0 | DJ12: 0 | DK12: 0 | DL12: 0 | DM12: 0 | DN12: 0.00 | DP12: 0 | DQ12: 0 | DR12: 0 | DS12: 0 | DT12: 0.00 | DV12: 0 | DW12: 0 | DX12: 0 | DY12: 0 | DZ12: 0.00 | EB12: 0 | EC12: 0 | ED12: 0 | EE12: 0 | EF12: 0 | EG12: 0 | EH12: 0 | EI12: 0 | EJ12: 0.00 | EN12: =IF(OR(EL12="",EM12=""),"",EM12/EL12*100) ->  | FD12: 0 | FE12: 0 | FF12: 0 | FG12: 0 | FK12: 0 | FL12: / | FM12: 200 | FN12: 0/200 | FO12: 0 | FP12: / | FQ12: 200 | FR12: 0/200 | FS12: 0 | FT12: / | FU12: 100 | FV12: 0/100 | FW12: 0 | FX12: / | FY12: 100 | FZ12: 0/100 | GA12: 0 | GB12: / | GC12: 200 | GD12: 0/200
A13: 0 | B13: 5 | C13: 5 | D13: =IF(E13>0,$G$4,0) -> 0 | L13: 0 | M13: 0 | N13: 0 | O13: 0 | P13: 0 | Q13: 0 | R13: 0 | S13: 0 | T13: 0.00 | X13: 0 | Y13: 0 | Z13: 0 | AA13: 0 | AB13: 0 | AC13: 0 | AD13: 0 | AE13: 0 | AF13: 0.00 | AJ13: 0 | AK13: 0 | AL13: 0 | AM13: 0 | AN13: 0 | AO13: 0 | AP13: 0 | AQ13: 0 | AR13: 0.00 | AV13: 0 | AW13: 0 | AX13: 0 | AY13: 0 | AZ13: 0 | BA13: 0 | BB13: 0 | BC13: 0 | BD13: 0.00 | BH13: 0 | BI13: 0 | BJ13: 0 | BK13: 0 | BL13: 0 | BM13: 0 | BN13: 0 | BO13: 0 | BP13: 0.00 | BT13: 0 | BU13: 0 | BV13: 0 | BW13: 0 | BX13: 0 | BY13: 0 | BZ13: 0 | CA13: 0 | CB13: 0.00 | CF13: 0 | CG13: 0 | CI13: 0 | CJ13: 0 | CK13: 0 | CL13: 0 | CM13: 0 | CN13: 0 | CO13: 0 | CP13: 0 | CQ13: 0.00 | CS13: 0 | CT13: 0 | CU13: 0 | CV13: 0 | CX13: 0 | DB13: 0 | DC13: 0 | DD13: 0 | DE13: 0 | DF13: 0 | DG13: 0 | DH13: 0 | DI13: 0 | DJ13: 0 | DK13: 0 | DL13: 0 | DM13: 0 | DN13: 0.00 | DP13: 0 | DQ13: 0 | DR13: 0 | DS13: =SUM(DP13:DR13) -> 0 | DT13: 0.00 | DV13: 0 | DW13: 0 | DX13: 0 | DY13: =SUM(DV13:DX13) -> 0 | DZ13: 0.00 | EB13: 0 | EC13: 0 | ED13: 0 | EE13: 0 | EF13: 0 | EG13: 0 | EH13: 0 | EI13: 0 | EJ13: 0.00 | FD13: 0 | FE13: 0 | FF13: 0 | FG13: 0 | FK13: 0 | FL13: / | FM13: 200 | FN13: 0/200 | FO13: 0 | FP13: / | FQ13: 200 | FR13: 0/200 | FS13: 0 | FT13: / | FU13: 100 | FV13: 0/100 | FW13: 0 | FX13: / | FY13: 100 | FZ13: 0/100 | GA13: 0 | GB13: / | GC13: 200 | GD13: 0/200
A14: 0 | B14: 6 | C14: 6 | D14: 0 | L14: 0 | M14: 0 | N14: 0 | O14: 0 | P14: 0 | Q14: 0 | R14: 0 | S14: 0 | T14: 0.00 | X14: 0 | Y14: 0 | Z14: 0 | AA14: 0 | AB14: 0 | AC14: 0 | AD14: 0 | AE14: 0 | AF14: 0.00 | AJ14: 0 | AK14: 0 | AL14: 0 | AM14: 0 | AN14: 0 | AO14: 0 | AP14: 0 | AQ14: 0 | AR14: 0.00 | AV14: 0 | AW14: 0 | AX14: 0 | AY14: 0 | AZ14: 0 | BA14: 0 | BB14: 0 | BC14: 0 | BD14: 0.00 | BH14: 0 | BI14: 0 | BJ14: 0 | BK14: 0 | BL14: 0 | BM14: 0 | BN14: 0 | BO14: 0 | BP14: 0.00 | BT14: 0 | BU14: 0 | BV14: 0 | BW14: 0 | BX14: 0 | BY14: 0 | BZ14: 0 | CA14: 0 | CB14: 0.00 | CF14: 0 | CG14: 0 | CI14: 0 | CJ14: 0 | CK14: 0 | CL14: 0 | CM14: 0 | CN14: 0 | CO14: 0 | CP14: 0 | CQ14: 0.00 | CS14: 0 | CT14: 0 | CU14: 0 | CV14: 0 | CX14: 0 | DB14: 0 | DC14: 0 | DD14: 0 | DE14: 0 | DF14: 0 | DG14: 0 | DH14: 0 | DI14: 0 | DJ14: 0 | DK14: 0 | DL14: 0 | DM14: 0 | DN14: 0.00 | DP14: 0 | DQ14: 0 | DR14: 0 | DS14: 0 | DT14: 0.00 | DV14: 0 | DW14: 0 | DX14: 0 | DY14: 0 | DZ14: 0.00 | EB14: 0 | EC14: 0 | ED14: 0 | EE14: 0 | EF14: 0 | EG14: 0 | EH14: 0 | EI14: 0 | EJ14: 0.00 | FD14: 0 | FE14: 0 | FF14: 0 | FG14: 0 | FK14: 0 | FL14: / | FM14: 200 | FN14: 0/200 | FO14: 0 | FP14: / | FQ14: 200 | FR14: 0/200 | FS14: 0 | FT14: / | FU14: 100 | FV14: 0/100 | FW14: 0 | FX14: / | FY14: 100 | FZ14: 0/100 | GA14: 0 | GB14: / | GC14: 200 | GD14: 0/200
A15: 0 | B15: 7 | C15: 7 | D15: 0 | L15: 0 | M15: 0 | N15: 0 | O15: 0 | P15: 0 | Q15: 0 | R15: 0 | S15: 0 | T15: 0.00 | X15: 0 | Y15: 0 | Z15: 0 | AA15: 0 | AB15: 0 | AC15: 0 | AD15: 0 | AE15: 0 | AF15: 0.00 | AJ15: 0 | AK15: 0 | AL15: 0 | AM15: 0 | AN15: 0 | AO15: 0 | AP15: 0 | AQ15: 0 | AR15: 0.00 | AV15: 0 | AW15: 0 | AX15: 0 | AY15: 0 | AZ15: 0 | BA15: 0 | BB15: 0 | BC15: 0 | BD15: 0.00 | BH15: 0 | BI15: 0 | BJ15: 0 | BK15: 0 | BL15: 0 | BM15: 0 | BN15: 0 | BO15: 0 | BP15: 0.00 | BT15: 0 | BU15: 0 | BV15: 0 | BW15: 0 | BX15: 0 | BY15: 0 | BZ15: 0 | CA15: 0 | CB15: 0.00 | CF15: 0 | CG15: 0 | CI15: 0 | CJ15: 0 | CK15: 0 | CL15: 0 | CM15: 0 | CN15: 0 | CO15: 0 | CP15: 0 | CQ15: 0.00 | CS15: 0 | CT15: 0 | CU15: 0 | CV15: 0 | CX15: 0 | DB15: 0 | DC15: 0 | DD15: 0 | DE15: 0 | DF15: 0 | DG15: 0 | DH15: 0 | DI15: 0 | DJ15: 0 | DK15: 0 | DL15: 0 | DM15: 0 | DN15: 0.00 | DP15: 0 | DQ15: 0 | DR15: 0 | DS15: 0 | DT15: 0.00 | DV15: 0 | DW15: 0 | DX15: 0 | DY15: 0 | DZ15: 0.00 | EB15: 0 | EC15: 0 | ED15: 0 | EE15: 0 | EF15: 0 | EG15: 0 | EH15: 0 | EI15: 0 | EJ15: 0.00 | FD15: 0 | FE15: 0 | FF15: 0 | FG15: 0 | FK15: 0 | FL15: / | FM15: 200 | FN15: 0/200 | FO15: 0 | FP15: / | FQ15: 200 | FR15: 0/200 | FS15: 0 | FT15: / | FU15: 100 | FV15: 0/100 | FW15: 0 | FX15: / | FY15: 100 | FZ15: 0/100 | GA15: 0 | GB15: / | GC15: 200 | GD15: 0/200
A16: 0 | B16: 8 | C16: 8 | D16: 0 | L16: 0 | M16: 0 | N16: 0 | O16: 0 | P16: 0 | Q16: 0 | R16: 0 | S16: 0 | T16: 0.00 | X16: 0 | Y16: 0 | Z16: 0 | AA16: 0 | AB16: 0 | AC16: 0 | AD16: 0 | AE16: 0 | AF16: 0.00 | AJ16: 0 | AK16: 0 | AL16: 0 | AM16: 0 | AN16: 0 | AO16: 0 | AP16: 0 | AQ16: 0 | AR16: 0.00 | AV16: 0 | AW16: 0 | AX16: 0 | AY16: 0 | AZ16: 0 | BA16: 0 | BB16: 0 | BC16: 0 | BD16: 0.00 | BH16: 0 | BI16: 0 | BJ16: 0 | BK16: 0 | BL16: 0 | BM16: 0 | BN16: 0 | BO16: 0 | BP16: 0.00 | BT16: 0 | BU16: 0 | BV16: 0 | BW16: 0 | BX16: 0 | BY16: 0 | BZ16: 0 | CA16: 0 | CB16: 0.00 | CF16: 0 | CG16: 0 | CI16: 0 | CJ16: 0 | CK16: 0 | CL16: 0 | CM16: 0 | CN16: 0 | CO16: 0 | CP16: 0 | CQ16: 0.00 | CS16: 0 | CT16: 0 | CU16: 0 | CV16: 0 | CX16: 0 | DB16: 0 | DC16: 0 | DD16: 0 | DE16: 0 | DF16: 0 | DG16: 0 | DH16: 0 | DI16: 0 | DJ16: 0 | DK16: 0 | DL16: 0 | DM16: 0 | DN16: 0.00 | DP16: 0 | DQ16: 0 | DR16: 0 | DS16: 0 | DT16: 0.00 | DV16: 0 | DW16: 0 | DX16: 0 | DY16: 0 | DZ16: 0.00 | EB16: 0 | EC16: 0 | ED16: 0 | EE16: 0 | EF16: 0 | EG16: 0 | EH16: 0 | EI16: 0 | EJ16: 0.00 | FD16: 0 | FE16: 0 | FF16: 0 | FG16: 0 | FK16: 0 | FL16: / | FM16: 200 | FN16: 0/200 | FO16: 0 | FP16: / | FQ16: 200 | FR16: 0/200 | FS16: 0 | FT16: / | FU16: 100 | FV16: 0/100 | FW16: 0 | FX16: / | FY16: 100 | FZ16: 0/100 | GA16: 0 | GB16: / | GC16: 200 | GD16: 0/200
A17: 0 | B17: 9 | C17: 9 | D17: 0 | L17: 0 | M17: 0 | N17: 0 | O17: 0 | P17: 0 | Q17: 0 | R17: 0 | S17: 0 | T17: 0.00 | X17: 0 | Y17: 0 | Z17: 0 | AA17: 0 | AB17: 0 | AC17: 0 | AD17: 0 | AE17: 0 | AF17: 0.00 | AJ17: 0 | AK17: 0 | AL17: 0 | AM17: 0 | AN17: 0 | AO17: 0 | AP17: 0 | AQ17: 0 | AR17: 0.00 | AV17: 0 | AW17: 0 | AX17: 0 | AY17: 0 | AZ17: 0 | BA17: 0 | BB17: 0 | BC17: 0 | BD17: 0.00 | BH17: 0 | BI17: 0 | BJ17: 0 | BK17: 0 | BL17: 0 | BM17: 0 | BN17: 0 | BO17: 0 | BP17: 0.00 | BT17: 0 | BU17: 0 | BV17: 0 | BW17: 0 | BX17: 0 | BY17: 0 | BZ17: 0 | CA17: 0 | CB17: 0.00 | CF17: 0 | CG17: 0 | CI17: 0 | CJ17: 0 | CK17: 0 | CL17: 0 | CM17: 0 | CN17: 0 | CO17: 0 | CP17: 0 | CQ17: 0.00 | CS17: 0 | CT17: 0 | CU17: 0 | CV17: 0 | CX17: 0 | DB17: 0 | DC17: 0 | DD17: 0 | DE17: 0 | DF17: 0 | DG17: 0 | DH17: 0 | DI17: 0 | DJ17: 0 | DK17: 0 | DL17: 0 | DM17: 0 | DN17: 0.00 | DP17: 0 | DQ17: 0 | DR17: 0 | DS17: 0 | DT17: 0.00 | DV17: 0 | DW17: 0 | DX17: 0 | DY17: 0 | DZ17: 0.00 | EB17: 0 | EC17: 0 | ED17: 0 | EE17: 0 | EF17: 0 | EG17: 0 | EH17: 0 | EI17: 0 | EJ17: 0.00 | FD17: 0 | FE17: 0 | FF17: 0 | FG17: 0 | FK17: 0 | FL17: / | FM17: 200 | FN17: 0/200 | FO17: 0 | FP17: / | FQ17: 200 | FR17: 0/200 | FS17: 0 | FT17: / | FU17: 100 | FV17: 0/100 | FW17: 0 | FX17: / | FY17: 100 | FZ17: 0/100 | GA17: 0 | GB17: / | GC17: 200 | GD17: 0/200
A18: 0 | B18: 10 | C18: 10 | D18: 0 | L18: 0 | M18: 0 | N18: 0 | O18: 0 | P18: 0 | Q18: 0 | R18: 0 | S18: 0 | T18: 0.00 | X18: 0 | Y18: 0 | Z18: 0 | AA18: 0 | AB18: 0 | AC18: 0 | AD18: 0 | AE18: 0 | AF18: 0.00 | AJ18: 0 | AK18: 0 | AL18: 0 | AM18: 0 | AN18: 0 | AO18: 0 | AP18: 0 | AQ18: 0 | AR18: 0.00 | AV18: 0 | AW18: 0 | AX18: 0 | AY18: 0 | AZ18: 0 | BA18: 0 | BB18: 0 | BC18: 0 | BD18: 0.00 | BH18: 0 | BI18: 0 | BJ18: 0 | BK18: 0 | BL18: 0 | BM18: 0 | BN18: 0 | BO18: 0 | BP18: 0.00 | BT18: 0 | BU18: 0 | BV18: 0 | BW18: 0 | BX18: 0 | BY18: 0 | BZ18: 0 | CA18: 0 | CB18: 0.00 | CF18: 0 | CG18: 0 | CI18: 0 | CJ18: 0 | CK18: 0 | CL18: 0 | CM18: 0 | CN18: 0 | CO18: 0 | CP18: 0 | CQ18: 0.00 | CS18: 0 | CT18: 0 | CU18: 0 | CV18: 0 | CX18: 0 | DB18: 0 | DC18: 0 | DD18: 0 | DE18: 0 | DF18: 0 | DG18: 0 | DH18: 0 | DI18: 0 | DJ18: 0 | DK18: 0 | DL18: 0 | DM18: 0 | DN18: 0.00 | DP18: 0 | DQ18: 0 | DR18: 0 | DS18: 0 | DT18: 0.00 | DV18: 0 | DW18: 0 | DX18: 0 | DY18: 0 | DZ18: 0.00 | EB18: 0 | EC18: 0 | ED18: 0 | EE18: 0 | EF18: 0 | EG18: 0 | EH18: 0 | EI18: 0 | EJ18: 0.00 | FD18: 0 | FE18: 0 | FF18: 0 | FG18: 0 | FK18: 0 | FL18: / | FM18: 200 | FN18: 0/200 | FO18: 0 | FP18: / | FQ18: 200 | FR18: 0/200 | FS18: 0 | FT18: / | FU18: 100 | FV18: 0/100 | FW18: 0 | FX18: / | FY18: 100 | FZ18: 0/100 | GA18: 0 | GB18: / | GC18: 200 | GD18: 0/200
A19: 0 | B19: 11 | C19: 11 | D19: 0 | L19: 0 | M19: 0 | N19: 0 | O19: 0 | P19: 0 | Q19: 0 | R19: 0 | S19: 0 | T19: 0.00 | X19: 0 | Y19: 0 | Z19: 0 | AA19: 0 | AB19: 0 | AC19: 0 | AD19: 0 | AE19: 0 | AF19: 0.00 | AJ19: 0 | AK19: 0 | AL19: 0 | AM19: 0 | AN19: 0 | AO19: 0 | AP19: 0 | AQ19: 0 | AR19: 0.00 | AV19: 0 | AW19: 0 | AX19: 0 | AY19: 0 | AZ19: 0 | BA19: 0 | BB19: 0 | BC19: 0 | BD19: 0.00 | BH19: 0 | BI19: 0 | BJ19: 0 | BK19: 0 | BL19: 0 | BM19: 0 | BN19: 0 | BO19: 0 | BP19: 0.00 | BT19: 0 | BU19: 0 | BV19: 0 | BW19: 0 | BX19: 0 | BY19: 0 | BZ19: 0 | CA19: 0 | CB19: 0.00 | CF19: 0 | CG19: 0 | CI19: 0 | CJ19: 0 | CK19: 0 | CL19: 0 | CM19: 0 | CN19: 0 | CO19: 0 | CP19: 0 | CQ19: 0.00 | CS19: 0 | CT19: 0 | CU19: 0 | CV19: 0 | CX19: 0 | DB19: 0 | DC19: 0 | DD19: 0 | DE19: 0 | DF19: 0 | DG19: 0 | DH19: 0 | DI19: 0 | DJ19: 0 | DK19: 0 | DL19: 0 | DM19: 0 | DN19: 0.00 | DP19: 0 | DQ19: 0 | DR19: 0 | DS19: 0 | DT19: 0.00 | DV19: 0 | DW19: 0 | DX19: 0 | DY19: 0 | DZ19: 0.00 | EB19: 0 | EC19: 0 | ED19: 0 | EE19: 0 | EF19: 0 | EG19: 0 | EH19: 0 | EI19: 0 | EJ19: 0.00 | FD19: 0 | FE19: 0 | FF19: 0 | FG19: 0 | FK19: 0 | FL19: / | FM19: 200 | FN19: 0/200 | FO19: 0 | FP19: / | FQ19: 200 | FR19: 0/200 | FS19: 0 | FT19: / | FU19: 100 | FV19: 0/100 | FW19: 0 | FX19: / | FY19: 100 | FZ19: 0/100 | GA19: 0 | GB19: / | GC19: 200 | GD19: 0/200
A20: 0 | B20: 12 | C20: 12 | D20: 0 | L20: 0 | M20: 0 | N20: 0 | O20: 0 | P20: 0 | Q20: 0 | R20: 0 | S20: 0 | T20: 0.00 | X20: 0 | Y20: 0 | Z20: 0 | AA20: 0 | AB20: 0 | AC20: 0 | AD20: 0 | AE20: 0 | AF20: 0.00 | AJ20: 0 | AK20: 0 | AL20: 0 | AM20: 0 | AN20: 0 | AO20: 0 | AP20: 0 | AQ20: 0 | AR20: 0.00 | AV20: 0 | AW20: 0 | AX20: 0 | AY20: 0 | AZ20: 0 | BA20: 0 | BB20: 0 | BC20: 0 | BD20: 0.00 | BH20: 0 | BI20: 0 | BJ20: 0 | BK20: 0 | BL20: 0 | BM20: 0 | BN20: 0 | BO20: 0 | BP20: 0.00 | BT20: 0 | BU20: 0 | BV20: 0 | BW20: 0 | BX20: 0 | BY20: 0 | BZ20: 0 | CA20: 0 | CB20: 0.00 | CF20: 0 | CG20: 0 | CI20: 0 | CJ20: 0 | CK20: 0 | CL20: 0 | CM20: 0 | CN20: 0 | CO20: 0 | CP20: 0 | CQ20: 0.00 | CS20: 0 | CT20: 0 | CU20: 0 | CV20: 0 | CX20: 0 | DB20: 0 | DC20: 0 | DD20: 0 | DE20: 0 | DF20: 0 | DG20: 0 | DH20: 0 | DI20: 0 | DJ20: 0 | DK20: 0 | DL20: 0 | DM20: 0 | DN20: 0.00 | DP20: 0 | DQ20: 0 | DR20: 0 | DS20: 0 | DT20: 0.00 | DV20: 0 | DW20: 0 | DX20: 0 | DY20: 0 | DZ20: 0.00 | EB20: 0 | EC20: 0 | ED20: 0 | EE20: 0 | EF20: 0 | EG20: 0 | EH20: 0 | EI20: 0 | EJ20: 0.00 | FD20: 0 | FE20: 0 | FF20: 0 | FG20: 0 | FK20: 0 | FL20: / | FM20: 200 | FN20: 0/200 | FO20: 0 | FP20: / | FQ20: 200 | FR20: 0/200 | FS20: 0 | FT20: / | FU20: 100 | FV20: 0/100 | FW20: 0 | FX20: / | FY20: 100 | FZ20: 0/100 | GA20: 0 | GB20: / | GC20: 200 | GD20: 0/200
A21: 0 | B21: 13 | C21: 13 | D21: 0 | L21: 0 | M21: 0 | N21: 0 | O21: 0 | P21: 0 | Q21: 0 | R21: 0 | S21: 0 | T21: 0.00 | X21: 0 | Y21: 0 | Z21: 0 | AA21: 0 | AB21: 0 | AC21: 0 | AD21: 0 | AE21: 0 | AF21: 0.00 | AJ21: 0 | AK21: 0 | AL21: 0 | AM21: 0 | AN21: 0 | AO21: 0 | AP21: 0 | AQ21: 0 | AR21: 0.00 | AV21: 0 | AW21: 0 | AX21: 0 | AY21: 0 | AZ21: 0 | BA21: 0 | BB21: 0 | BC21: 0 | BD21: 0.00 | BH21: 0 | BI21: 0 | BJ21: 0 | BK21: 0 | BL21: 0 | BM21: 0 | BN21: 0 | BO21: 0 | BP21: 0.00 | BT21: 0 | BU21: 0 | BV21: 0 | BW21: 0 | BX21: 0 | BY21: 0 | BZ21: 0 | CA21: 0 | CB21: 0.00 | CF21: 0 | CG21: 0 | CI21: 0 | CJ21: 0 | CK21: 0 | CL21: 0 | CM21: 0 | CN21: 0 | CO21: 0 | CP21: 0 | CQ21: 0.00 | CS21: 0 | CT21: 0 | CU21: 0 | CV21: 0 | CX21: 0 | DB21: 0 | DC21: 0 | DD21: 0 | DE21: 0 | DF21: 0 | DG21: 0 | DH21: 0 | DI21: 0 | DJ21: 0 | DK21: 0 | DL21: 0 | DM21: 0 | DN21: 0.00 | DP21: 0 | DQ21: 0 | DR21: 0 | DS21: 0 | DT21: 0.00 | DV21: 0 | DW21: 0 | DX21: 0 | DY21: 0 | DZ21: 0.00 | EB21: 0 | EC21: 0 | ED21: 0 | EE21: 0 | EF21: 0 | EG21: 0 | EH21: 0 | EI21: 0 | EJ21: 0.00 | FD21: 0 | FE21: 0 | FF21: 0 | FG21: 0 | FK21: 0 | FL21: / | FM21: 200 | FN21: 0/200 | FO21: 0 | FP21: / | FQ21: 200 | FR21: 0/200 | FS21: 0 | FT21: / | FU21: 100 | FV21: 0/100 | FW21: 0 | FX21: / | FY21: 100 | FZ21: 0/100 | GA21: 0 | GB21: / | GC21: 200 | GD21: 0/200
A22: 0 | B22: 14 | C22: 14 | D22: 0 | L22: 0 | M22: 0 | N22: 0 | O22: 0 | P22: 0 | Q22: 0 | R22: 0 | S22: 0 | T22: 0.00 | X22: 0 | Y22: 0 | Z22: 0 | AA22: 0 | AB22: 0 | AC22: 0 | AD22: 0 | AE22: 0 | AF22: 0.00 | AJ22: 0 | AK22: 0 | AL22: 0 | AM22: 0 | AN22: 0 | AO22: 0 | AP22: 0 | AQ22: 0 | AR22: 0.00 | AV22: 0 | AW22: 0 | AX22: 0 | AY22: 0 | AZ22: 0 | BA22: 0 | BB22: 0 | BC22: 0 | BD22: 0.00 | BH22: 0 | BI22: 0 | BJ22: 0 | BK22: 0 | BL22: 0 | BM22: 0 | BN22: 0 | BO22: 0 | BP22: 0.00 | BT22: 0 | BU22: 0 | BV22: 0 | BW22: 0 | BX22: 0 | BY22: 0 | BZ22: 0 | CA22: 0 | CB22: 0.00 | CF22: 0 | CG22: 0 | CI22: 0 | CJ22: 0 | CK22: 0 | CL22: 0 | CM22: 0 | CN22: 0 | CO22: 0 | CP22: 0 | CQ22: 0.00 | CS22: 0 | CT22: 0 | CU22: 0 | CV22: 0 | CX22: 0 | DB22: 0 | DC22: 0 | DD22: 0 | DE22: 0 | DF22: 0 | DG22: 0 | DH22: 0 | DI22: 0 | DJ22: 0 | DK22: 0 | DL22: 0 | DM22: 0 | DN22: 0.00 | DP22: 0 | DQ22: 0 | DR22: 0 | DS22: 0 | DT22: 0.00 | DV22: 0 | DW22: 0 | DX22: 0 | DY22: 0 | DZ22: 0.00 | EB22: 0 | EC22: 0 | ED22: 0 | EE22: 0 | EF22: 0 | EG22: 0 | EH22: 0 | EI22: 0 | EJ22: 0.00 | FD22: 0 | FE22: 0 | FF22: 0 | FG22: 0 | FK22: 0 | FL22: / | FM22: 200 | FN22: 0/200 | FO22: 0 | FP22: / | FQ22: 200 | FR22: 0/200 | FS22: 0 | FT22: / | FU22: 100 | FV22: 0/100 | FW22: 0 | FX22: / | FY22: 100 | FZ22: 0/100 | GA22: 0 | GB22: / | GC22: 200 | GD22: 0/200
A23: 0 | B23: 15 | C23: 15 | D23: 0 | L23: 0 | M23: 0 | N23: 0 | O23: 0 | P23: 0 | Q23: 0 | R23: 0 | S23: 0 | T23: 0.00 | X23: 0 | Y23: 0 | Z23: 0 | AA23: 0 | AB23: 0 | AC23: 0 | AD23: 0 | AE23: 0 | AF23: 0.00 | AJ23: 0 | AK23: 0 | AL23: 0 | AM23: 0 | AN23: 0 | AO23: 0 | AP23: 0 | AQ23: 0 | AR23: 0.00 | AV23: 0 | AW23: 0 | AX23: 0 | AY23: 0 | AZ23: 0 | BA23: 0 | BB23: 0 | BC23: 0 | BD23: 0.00 | BH23: 0 | BI23: 0 | BJ23: 0 | BK23: 0 | BL23: 0 | BM23: 0 | BN23: 0 | BO23: 0 | BP23: 0.00 | BT23: 0 | BU23: 0 | BV23: 0 | BW23: 0 | BX23: 0 | BY23: 0 | BZ23: 0 | CA23: 0 | CB23: 0.00 | CF23: 0 | CG23: 0 | CI23: 0 | CJ23: 0 | CK23: 0 | CL23: 0 | CM23: 0 | CN23: 0 | CO23: 0 | CP23: 0 | CQ23: 0.00 | CS23: 0 | CT23: 0 | CU23: 0 | CV23: 0 | CX23: 0 | DB23: 0 | DC23: 0 | DD23: 0 | DE23: 0 | DF23: 0 | DG23: 0 | DH23: 0 | DI23: 0 | DJ23: 0 | DK23: 0 | DL23: 0 | DM23: 0 | DN23: 0.00 | DP23: 0 | DQ23: 0 | DR23: 0 | DS23: 0 | DT23: 0.00 | DV23: 0 | DW23: 0 | DX23: 0 | DY23: 0 | DZ23: 0.00 | EB23: 0 | EC23: 0 | ED23: 0 | EE23: 0 | EF23: 0 | EG23: 0 | EH23: 0 | EI23: 0 | EJ23: 0.00 | FD23: 0 | FE23: 0 | FF23: 0 | FG23: 0 | FK23: 0 | FL23: / | FM23: 200 | FN23: 0/200 | FO23: 0 | FP23: / | FQ23: 200 | FR23: 0/200 | FS23: 0 | FT23: / | FU23: 100 | FV23: 0/100 | FW23: 0 | FX23: / | FY23: 100 | FZ23: 0/100 | GA23: 0 | GB23: / | GC23: 200 | GD23: 0/200
A24: 0 | B24: 16 | C24: 16 | D24: 0 | L24: 0 | M24: 0 | N24: 0 | O24: 0 | P24: 0 | Q24: 0 | R24: 0 | S24: 0 | T24: 0.00 | X24: 0 | Y24: 0 | Z24: 0 | AA24: 0 | AB24: 0 | AC24: 0 | AD24: 0 | AE24: 0 | AF24: 0.00 | AJ24: 0 | AK24: 0 | AL24: 0 | AM24: 0 | AN24: 0 | AO24: 0 | AP24: 0 | AQ24: 0 | AR24: 0.00 | AV24: 0 | AW24: 0 | AX24: 0 | AY24: 0 | AZ24: 0 | BA24: 0 | BB24: 0 | BC24: 0 | BD24: 0.00 | BH24: 0 | BI24: 0 | BJ24: 0 | BK24: 0 | BL24: 0 | BM24: 0 | BN24: 0 | BO24: 0 | BP24: 0.00 | BT24: 0 | BU24: 0 | BV24: 0 | BW24: 0 | BX24: 0 | BY24: 0 | BZ24: 0 | CA24: 0 | CB24: 0.00 | CF24: 0 | CG24: 0 | CI24: 0 | CJ24: 0 | CK24: 0 | CL24: 0 | CM24: 0 | CN24: 0 | CO24: 0 | CP24: 0 | CQ24: 0.00 | CS24: 0 | CT24: 0 | CU24: 0 | CV24: 0 | CX24: 0 | DB24: 0 | DC24: 0 | DD24: 0 | DE24: 0 | DF24: 0 | DG24: 0 | DH24: 0 | DI24: 0 | DJ24: 0 | DK24: 0 | DL24: 0 | DM24: 0 | DN24: 0.00 | DP24: 0 | DQ24: 0 | DR24: 0 | DS24: 0 | DT24: 0.00 | DV24: 0 | DW24: 0 | DX24: 0 | DY24: 0 | DZ24: 0.00 | EB24: 0 | EC24: 0 | ED24: 0 | EE24: 0 | EF24: 0 | EG24: 0 | EH24: 0 | EI24: 0 | EJ24: 0.00 | FD24: 0 | FE24: 0 | FF24: 0 | FG24: 0 | FK24: 0 | FL24: / | FM24: 200 | FN24: 0/200 | FO24: 0 | FP24: / | FQ24: 200 | FR24: 0/200 | FS24: 0 | FT24: / | FU24: 100 | FV24: 0/100 | FW24: 0 | FX24: / | FY24: 100 | FZ24: 0/100 | GA24: 0 | GB24: / | GC24: 200 | GD24: 0/200
A25: 0 | B25: 17 | C25: 17 | D25: 0 | L25: 0 | M25: 0 | N25: 0 | O25: 0 | P25: 0 | Q25: 0 | R25: 0 | S25: 0 | T25: 0.00 | X25: 0 | Y25: 0 | Z25: 0 | AA25: 0 | AB25: 0 | AC25: 0 | AD25: 0 | AE25: 0 | AF25: 0.00 | AJ25: 0 | AK25: 0 | AL25: 0 | AM25: 0 | AN25: 0 | AO25: 0 | AP25: 0 | AQ25: 0 | AR25: 0.00 | AV25: 0 | AW25: 0 | AX25: 0 | AY25: 0 | AZ25: 0 | BA25: 0 | BB25: 0 | BC25: 0 | BD25: 0.00 | BH25: 0 | BI25: 0 | BJ25: 0 | BK25: 0 | BL25: 0 | BM25: 0 | BN25: 0 | BO25: 0 | BP25: 0.00 | BT25: 0 | BU25: 0 | BV25: 0 | BW25: 0 | BX25: 0 | BY25: 0 | BZ25: 0 | CA25: 0 | CB25: 0.00 | CF25: 0 | CG25: 0 | CI25: 0 | CJ25: 0 | CK25: 0 | CL25: 0 | CM25: 0 | CN25: 0 | CO25: 0 | CP25: 0 | CQ25: 0.00 | CS25: 0 | CT25: 0 | CU25: 0 | CV25: 0 | CX25: 0 | DB25: 0 | DC25: 0 | DD25: 0 | DE25: 0 | DF25: 0 | DG25: 0 | DH25: 0 | DI25: 0 | DJ25: 0 | DK25: 0 | DL25: 0 | DM25: 0 | DN25: 0.00 | DP25: 0 | DQ25: 0 | DR25: 0 | DS25: 0 | DT25: 0.00 | DV25: 0 | DW25: 0 | DX25: 0 | DY25: 0 | DZ25: 0.00 | EB25: 0 | EC25: 0 | ED25: 0 | EE25: 0 | EF25: 0 | EG25: 0 | EH25: 0 | EI25: 0 | EJ25: 0.00 | FD25: 0 | FE25: 0 | FF25: 0 | FG25: 0 | FK25: 0 | FL25: / | FM25: 200 | FN25: 0/200 | FO25: 0 | FP25: / | FQ25: 200 | FR25: 0/200 | FS25: 0 | FT25: / | FU25: 100 | FV25: 0/100 | FW25: 0 | FX25: / | FY25: 100 | FZ25: 0/100 | GA25: 0 | GB25: / | GC25: 200 | GD25: 0/200
A26: 0 | B26: 18 | C26: 18 | D26: 0 | L26: 0 | M26: 0 | N26: 0 | O26: 0 | P26: 0 | Q26: 0 | R26: 0 | S26: 0 | T26: 0.00 | X26: 0 | Y26: 0 | Z26: 0 | AA26: 0 | AB26: 0 | AC26: 0 | AD26: 0 | AE26: 0 | AF26: 0.00 | AJ26: 0 | AK26: 0 | AL26: 0 | AM26: 0 | AN26: 0 | AO26: 0 | AP26: 0 | AQ26: 0 | AR26: 0.00 | AV26: 0 | AW26: 0 | AX26: 0 | AY26: 0 | AZ26: 0 | BA26: 0 | BB26: 0 | BC26: 0 | BD26: 0.00 | BH26: 0 | BI26: 0 | BJ26: 0 | BK26: 0 | BL26: 0 | BM26: 0 | BN26: 0 | BO26: 0 | BP26: 0.00 | BT26: 0 | BU26: 0 | BV26: 0 | BW26: 0 | BX26: 0 | BY26: 0 | BZ26: 0 | CA26: 0 | CB26: 0.00 | CF26: 0 | CG26: 0 | CI26: 0 | CJ26: 0 | CK26: 0 | CL26: 0 | CM26: 0 | CN26: 0 | CO26: 0 | CP26: 0 | CQ26: 0.00 | CS26: 0 | CT26: 0 | CU26: 0 | CV26: 0 | CX26: 0 | DB26: 0 | DC26: 0 | DD26: 0 | DE26: 0 | DF26: 0 | DG26: 0 | DH26: 0 | DI26: 0 | DJ26: 0 | DK26: 0 | DL26: 0 | DM26: 0 | DN26: 0.00 | DP26: 0 | DQ26: 0 | DR26: 0 | DS26: 0 | DT26: 0.00 | DV26: 0 | DW26: 0 | DX26: 0 | DY26: 0 | DZ26: 0.00 | EB26: 0 | EC26: 0 | ED26: 0 | EE26: 0 | EF26: 0 | EG26: 0 | EH26: 0 | EI26: 0 | EJ26: 0.00 | FD26: 0 | FE26: 0 | FF26: 0 | FG26: 0 | FK26: 0 | FL26: / | FM26: 200 | FN26: 0/200 | FO26: 0 | FP26: / | FQ26: 200 | FR26: 0/200 | FS26: 0 | FT26: / | FU26: 100 | FV26: 0/100 | FW26: 0 | FX26: / | FY26: 100 | FZ26: 0/100 | GA26: 0 | GB26: / | GC26: 200 | GD26: 0/200
A27: 0 | B27: 19 | C27: 19 | D27: 0 | L27: 0 | M27: 0 | N27: 0 | O27: 0 | P27: 0 | Q27: 0 | R27: 0 | S27: 0 | T27: 0.00 | X27: 0 | Y27: 0 | Z27: 0 | AA27: 0 | AB27: 0 | AC27: 0 | AD27: 0 | AE27: 0 | AF27: 0.00 | AJ27: 0 | AK27: 0 | AL27: 0 | AM27: 0 | AN27: 0 | AO27: 0 | AP27: 0 | AQ27: 0 | AR27: 0.00 | AV27: 0 | AW27: 0 | AX27: 0 | AY27: 0 | AZ27: 0 | BA27: 0 | BB27: 0 | BC27: 0 | BD27: 0.00 | BH27: 0 | BI27: 0 | BJ27: 0 | BK27: 0 | BL27: 0 | BM27: 0 | BN27: 0 | BO27: 0 | BP27: 0.00 | BT27: 0 | BU27: 0 | BV27: 0 | BW27: 0 | BX27: 0 | BY27: 0 | BZ27: 0 | CA27: 0 | CB27: 0.00 | CF27: 0 | CG27: 0 | CI27: 0 | CJ27: 0 | CK27: 0 | CL27: 0 | CM27: 0 | CN27: 0 | CO27: 0 | CP27: 0 | CQ27: 0.00 | CS27: 0 | CT27: 0 | CU27: 0 | CV27: 0 | CX27: 0 | DB27: 0 | DC27: 0 | DD27: 0 | DE27: 0 | DF27: 0 | DG27: 0 | DH27: 0 | DI27: 0 | DJ27: 0 | DK27: 0 | DL27: 0 | DM27: 0 | DN27: 0.00 | DP27: 0 | DQ27: 0 | DR27: 0 | DS27: 0 | DT27: 0.00 | DV27: 0 | DW27: 0 | DX27: 0 | DY27: 0 | DZ27: 0.00 | EB27: 0 | EC27: 0 | ED27: 0 | EE27: 0 | EF27: 0 | EG27: 0 | EH27: 0 | EI27: 0 | EJ27: 0.00 | FD27: 0 | FE27: 0 | FF27: 0 | FG27: 0 | FK27: 0 | FL27: / | FM27: 200 | FN27: 0/200 | FO27: 0 | FP27: / | FQ27: 200 | FR27: 0/200 | FS27: 0 | FT27: / | FU27: 100 | FV27: 0/100 | FW27: 0 | FX27: / | FY27: 100 | FZ27: 0/100 | GA27: 0 | GB27: / | GC27: 200 | GD27: 0/200
A28: 0 | B28: 20 | C28: 20 | D28: 0 | L28: 0 | M28: 0 | N28: 0 | O28: 0 | P28: 0 | Q28: 0 | R28: 0 | S28: 0 | T28: 0.00 | X28: 0 | Y28: 0 | Z28: 0 | AA28: 0 | AB28: 0 | AC28: 0 | AD28: 0 | AE28: 0 | AF28: 0.00 | AJ28: 0 | AK28: 0 | AL28: 0 | AM28: 0 | AN28: 0 | AO28: 0 | AP28: 0 | AQ28: 0 | AR28: 0.00 | AV28: 0 | AW28: 0 | AX28: 0 | AY28: 0 | AZ28: 0 | BA28: 0 | BB28: 0 | BC28: 0 | BD28: 0.00 | BH28: 0 | BI28: 0 | BJ28: 0 | BK28: 0 | BL28: 0 | BM28: 0 | BN28: 0 | BO28: 0 | BP28: 0.00 | BT28: 0 | BU28: 0 | BV28: 0 | BW28: 0 | BX28: 0 | BY28: 0 | BZ28: 0 | CA28: 0 | CB28: 0.00 | CF28: 0 | CG28: 0 | CI28: 0 | CJ28: 0 | CK28: 0 | CL28: 0 | CM28: 0 | CN28: 0 | CO28: 0 | CP28: 0 | CQ28: 0.00 | CS28: 0 | CT28: 0 | CU28: 0 | CV28: 0 | CX28: 0 | DB28: 0 | DC28: 0 | DD28: 0 | DE28: 0 | DF28: 0 | DG28: 0 | DH28: 0 | DI28: 0 | DJ28: 0 | DK28: 0 | DL28: 0 | DM28: 0 | DN28: 0.00 | DP28: 0 | DQ28: 0 | DR28: 0 | DS28: 0 | DT28: 0.00 | DV28: 0 | DW28: 0 | DX28: 0 | DY28: 0 | DZ28: 0.00 | EB28: 0 | EC28: 0 | ED28: 0 | EE28: 0 | EF28: 0 | EG28: 0 | EH28: 0 | EI28: 0 | EJ28: 0.00 | FD28: 0 | FE28: 0 | FF28: 0 | FG28: 0 | FK28: 0 | FL28: / | FM28: 200 | FN28: 0/200 | FO28: 0 | FP28: / | FQ28: 200 | FR28: 0/200 | FS28: 0 | FT28: / | FU28: 100 | FV28: 0/100 | FW28: 0 | FX28: / | FY28: 100 | FZ28: 0/100 | GA28: 0 | GB28: / | GC28: 200 | GD28: 0/200
A29: 0 | B29: 21 | C29: 21 | D29: 0 | L29: 0 | M29: 0 | N29: 0 | O29: 0 | P29: 0 | Q29: 0 | R29: 0 | S29: 0 | T29: 0.00 | X29: 0 | Y29: 0 | Z29: 0 | AA29: 0 | AB29: 0 | AC29: 0 | AD29: 0 | AE29: 0 | AF29: 0.00 | AJ29: 0 | AK29: 0 | AL29: 0 | AM29: 0 | AN29: 0 | AO29: 0 | AP29: 0 | AQ29: 0 | AR29: 0.00 | AV29: 0 | AW29: 0 | AX29: 0 | AY29: 0 | AZ29: 0 | BA29: 0 | BB29: 0 | BC29: 0 | BD29: 0.00 | BH29: 0 | BI29: 0 | BJ29: 0 | BK29: 0 | BL29: 0 | BM29: 0 | BN29: 0 | BO29: 0 | BP29: 0.00 | BT29: 0 | BU29: 0 | BV29: 0 | BW29: 0 | BX29: 0 | BY29: 0 | BZ29: 0 | CA29: 0 | CB29: 0.00 | CF29: 0 | CG29: 0 | CI29: 0 | CJ29: 0 | CK29: 0 | CL29: 0 | CM29: 0 | CN29: 0 | CO29: 0 | CP29: 0 | CQ29: 0.00 | CS29: 0 | CT29: 0 | CU29: 0 | CV29: 0 | CX29: 0 | DB29: 0 | DC29: 0 | DD29: 0 | DE29: 0 | DF29: 0 | DG29: 0 | DH29: 0 | DI29: 0 | DJ29: 0 | DK29: 0 | DL29: 0 | DM29: 0 | DN29: 0.00 | DP29: 0 | DQ29: 0 | DR29: 0 | DS29: 0 | DT29: 0.00 | DV29: 0 | DW29: 0 | DX29: 0 | DY29: 0 | DZ29: 0.00 | EB29: 0 | EC29: 0 | ED29: 0 | EE29: 0 | EF29: 0 | EG29: 0 | EH29: 0 | EI29: 0 | EJ29: 0.00 | FD29: 0 | FE29: 0 | FF29: 0 | FG29: 0 | FK29: 0 | FL29: / | FM29: 200 | FN29: 0/200 | FO29: 0 | FP29: / | FQ29: 200 | FR29: 0/200 | FS29: 0 | FT29: / | FU29: 100 | FV29: 0/100 | FW29: 0 | FX29: / | FY29: 100 | FZ29: 0/100 | GA29: 0 | GB29: / | GC29: 200 | GD29: 0/200
A30: 0 | B30: 22 | C30: 22 | D30: 0 | L30: 0 | M30: 0 | N30: 0 | O30: 0 | P30: 0 | Q30: 0 | R30: 0 | S30: 0 | T30: 0.00 | X30: 0 | Y30: 0 | Z30: 0 | AA30: 0 | AB30: 0 | AC30: 0 | AD30: 0 | AE30: 0 | AF30: 0.00 | AJ30: 0 | AK30: 0 | AL30: 0 | AM30: 0 | AN30: 0 | AO30: 0 | AP30: 0 | AQ30: 0 | AR30: 0.00 | AV30: 0 | AW30: 0 | AX30: 0 | AY30: 0 | AZ30: 0 | BA30: 0 | BB30: 0 | BC30: 0 | BD30: 0.00 | BH30: 0 | BI30: 0 | BJ30: 0 | BK30: 0 | BL30: 0 | BM30: 0 | BN30: 0 | BO30: 0 | BP30: 0.00 | BT30: 0 | BU30: 0 | BV30: 0 | BW30: 0 | BX30: 0 | BY30: 0 | BZ30: 0 | CA30: 0 | CB30: 0.00 | CF30: 0 | CG30: 0 | CI30: 0 | CJ30: 0 | CK30: 0 | CL30: 0 | CM30: 0 | CN30: 0 | CO30: 0 | CP30: 0 | CQ30: 0.00 | CS30: 0 | CT30: 0 | CU30: 0 | CV30: 0 | CX30: 0 | DB30: 0 | DC30: 0 | DD30: 0 | DE30: 0 | DF30: 0 | DG30: 0 | DH30: 0 | DI30: 0 | DJ30: 0 | DK30: 0 | DL30: 0 | DM30: 0 | DN30: 0.00 | DP30: 0 | DQ30: 0 | DR30: 0 | DS30: 0 | DT30: 0.00 | DV30: 0 | DW30: 0 | DX30: 0 | DY30: 0 | DZ30: 0.00 | EB30: 0 | EC30: 0 | ED30: 0 | EE30: 0 | EF30: 0 | EG30: 0 | EH30: 0 | EI30: 0 | EJ30: 0.00 | FD30: 0 | FE30: 0 | FF30: 0 | FG30: 0 | FK30: 0 | FL30: / | FM30: 200 | FN30: 0/200 | FO30: 0 | FP30: / | FQ30: 200 | FR30: 0/200 | FS30: 0 | FT30: / | FU30: 100 | FV30: 0/100 | FW30: 0 | FX30: / | FY30: 100 | FZ30: 0/100 | GA30: 0 | GB30: / | GC30: 200 | GD30: 0/200
A31: 0 | B31: 23 | C31: 23 | D31: 0 | L31: 0 | M31: 0 | N31: 0 | O31: 0 | P31: 0 | Q31: 0 | R31: 0 | S31: 0 | T31: 0.00 | X31: 0 | Y31: 0 | Z31: 0 | AA31: 0 | AB31: 0 | AC31: 0 | AD31: 0 | AE31: 0 | AF31: 0.00 | AJ31: 0 | AK31: 0 | AL31: 0 | AM31: 0 | AN31: 0 | AO31: 0 | AP31: 0 | AQ31: 0 | AR31: 0.00 | AV31: 0 | AW31: 0 | AX31: 0 | AY31: 0 | AZ31: 0 | BA31: 0 | BB31: 0 | BC31: 0 | BD31: 0.00 | BH31: 0 | BI31: 0 | BJ31: 0 | BK31: 0 | BL31: 0 | BM31: 0 | BN31: 0 | BO31: 0 | BP31: 0.00 | BT31: 0 | BU31: 0 | BV31: 0 | BW31: 0 | BX31: 0 | BY31: 0 | BZ31: 0 | CA31: 0 | CB31: 0.00 | CF31: 0 | CG31: 0 | CI31: 0 | CJ31: 0 | CK31: 0 | CL31: 0 | CM31: 0 | CN31: 0 | CO31: 0 | CP31: 0 | CQ31: 0.00 | CS31: 0 | CT31: 0 | CU31: 0 | CV31: 0 | CX31: 0 | DB31: 0 | DC31: 0 | DD31: 0 | DE31: 0 | DF31: 0 | DG31: 0 | DH31: 0 | DI31: 0 | DJ31: 0 | DK31: 0 | DL31: 0 | DM31: 0 | DN31: 0.00 | DP31: 0 | DQ31: 0 | DR31: 0 | DS31: 0 | DT31: 0.00 | DV31: 0 | DW31: 0 | DX31: 0 | DY31: 0 | DZ31: 0.00 | EB31: 0 | EC31: 0 | ED31: 0 | EE31: 0 | EF31: 0 | EG31: 0 | EH31: 0 | EI31: 0 | EJ31: 0.00 | FD31: 0 | FE31: 0 | FF31: 0 | FG31: 0 | FK31: 0 | FL31: / | FM31: 200 | FN31: 0/200 | FO31: 0 | FP31: / | FQ31: 200 | FR31: 0/200 | FS31: 0 | FT31: / | FU31: 100 | FV31: 0/100 | FW31: 0 | FX31: / | FY31: 100 | FZ31: 0/100 | GA31: 0 | GB31: / | GC31: 200 | GD31: 0/200
A32: 0 | B32: 24 | C32: 24 | D32: 0 | L32: 0 | M32: 0 | N32: 0 | O32: 0 | P32: 0 | Q32: 0 | R32: 0 | S32: 0 | T32: 0.00 | X32: 0 | Y32: 0 | Z32: 0 | AA32: 0 | AB32: 0 | AC32: 0 | AD32: 0 | AE32: 0 | AF32: 0.00 | AJ32: 0 | AK32: 0 | AL32: 0 | AM32: 0 | AN32: 0 | AO32: 0 | AP32: 0 | AQ32: 0 | AR32: 0.00 | AV32: 0 | AW32: 0 | AX32: 0 | AY32: 0 | AZ32: 0 | BA32: 0 | BB32: 0 | BC32: 0 | BD32: 0.00 | BH32: 0 | BI32: 0 | BJ32: 0 | BK32: 0 | BL32: 0 | BM32: 0 | BN32: 0 | BO32: 0 | BP32: 0.00 | BT32: 0 | BU32: 0 | BV32: 0 | BW32: 0 | BX32: 0 | BY32: 0 | BZ32: 0 | CA32: 0 | CB32: 0.00 | CF32: 0 | CG32: 0 | CI32: 0 | CJ32: 0 | CK32: 0 | CL32: 0 | CM32: 0 | CN32: 0 | CO32: 0 | CP32: 0 | CQ32: 0.00 | CS32: 0 | CT32: 0 | CU32: 0 | CV32: 0 | CX32: 0 | DB32: 0 | DC32: 0 | DD32: 0 | DE32: 0 | DF32: 0 | DG32: 0 | DH32: 0 | DI32: 0 | DJ32: 0 | DK32: 0 | DL32: 0 | DM32: 0 | DN32: 0.00 | DP32: 0 | DQ32: 0 | DR32: 0 | DS32: 0 | DT32: 0.00 | DV32: 0 | DW32: 0 | DX32: 0 | DY32: 0 | DZ32: 0.00 | EB32: 0 | EC32: 0 | ED32: 0 | EE32: 0 | EF32: 0 | EG32: 0 | EH32: 0 | EI32: 0 | EJ32: 0.00 | FD32: 0 | FE32: 0 | FF32: 0 | FG32: 0 | FK32: 0 | FL32: / | FM32: 200 | FN32: 0/200 | FO32: 0 | FP32: / | FQ32: 200 | FR32: 0/200 | FS32: 0 | FT32: / | FU32: 100 | FV32: 0/100 | FW32: 0 | FX32: / | FY32: 100 | FZ32: 0/100 | GA32: 0 | GB32: / | GC32: 200 | GD32: 0/200
A33: 0 | B33: 25 | C33: 25 | D33: 0 | L33: 0 | M33: 0 | N33: 0 | O33: 0 | P33: 0 | Q33: 0 | R33: 0 | S33: 0 | T33: 0.00 | X33: 0 | Y33: 0 | Z33: 0 | AA33: 0 | AB33: 0 | AC33: 0 | AD33: 0 | AE33: 0 | AF33: 0.00 | AJ33: 0 | AK33: 0 | AL33: 0 | AM33: 0 | AN33: 0 | AO33: 0 | AP33: 0 | AQ33: 0 | AR33: 0.00 | AV33: 0 | AW33: 0 | AX33: 0 | AY33: 0 | AZ33: 0 | BA33: 0 | BB33: 0 | BC33: 0 | BD33: 0.00 | BH33: 0 | BI33: 0 | BJ33: 0 | BK33: 0 | BL33: 0 | BM33: 0 | BN33: 0 | BO33: 0 | BP33: 0.00 | BT33: 0 | BU33: 0 | BV33: 0 | BW33: 0 | BX33: 0 | BY33: 0 | BZ33: 0 | CA33: 0 | CB33: 0.00 | CF33: 0 | CG33: 0 | CI33: 0 | CJ33: 0 | CK33: 0 | CL33: 0 | CM33: 0 | CN33: 0 | CO33: 0 | CP33: 0 | CQ33: 0.00 | CS33: 0 | CT33: 0 | CU33: 0 | CV33: 0 | CX33: 0 | DB33: 0 | DC33: 0 | DD33: 0 | DE33: 0 | DF33: 0 | DG33: 0 | DH33: 0 | DI33: 0 | DJ33: 0 | DK33: 0 | DL33: 0 | DM33: 0 | DN33: 0.00 | DP33: 0 | DQ33: 0 | DR33: 0 | DS33: 0 | DT33: 0.00 | DV33: 0 | DW33: 0 | DX33: 0 | DY33: 0 | DZ33: 0.00 | EB33: 0 | EC33: 0 | ED33: 0 | EE33: 0 | EF33: 0 | EG33: 0 | EH33: 0 | EI33: 0 | EJ33: 0.00 | FD33: 0 | FE33: 0 | FF33: 0 | FG33: 0 | FK33: 0 | FL33: / | FM33: 200 | FN33: 0/200 | FO33: 0 | FP33: / | FQ33: 200 | FR33: 0/200 | FS33: 0 | FT33: / | FU33: 100 | FV33: 0/100 | FW33: 0 | FX33: / | FY33: 100 | FZ33: 0/100 | GA33: 0 | GB33: / | GC33: 200 | GD33: 0/200
A34: 0 | B34: 26 | C34: 26 | D34: 0 | L34: 0 | M34: 0 | N34: 0 | O34: 0 | P34: 0 | Q34: 0 | R34: 0 | S34: 0 | T34: 0.00 | X34: 0 | Y34: 0 | Z34: 0 | AA34: 0 | AB34: 0 | AC34: 0 | AD34: 0 | AE34: 0 | AF34: 0.00 | AJ34: 0 | AK34: 0 | AL34: 0 | AM34: 0 | AN34: 0 | AO34: 0 | AP34: 0 | AQ34: 0 | AR34: 0.00 | AV34: 0 | AW34: 0 | AX34: 0 | AY34: 0 | AZ34: 0 | BA34: 0 | BB34: 0 | BC34: 0 | BD34: 0.00 | BH34: 0 | BI34: 0 | BJ34: 0 | BK34: 0 | BL34: 0 | BM34: 0 | BN34: 0 | BO34: 0 | BP34: 0.00 | BT34: 0 | BU34: 0 | BV34: 0 | BW34: 0 | BX34: 0 | BY34: 0 | BZ34: 0 | CA34: 0 | CB34: 0.00 | CF34: 0 | CG34: 0 | CI34: 0 | CJ34: 0 | CK34: 0 | CL34: 0 | CM34: 0 | CN34: 0 | CO34: 0 | CP34: 0 | CQ34: 0.00 | CS34: 0 | CT34: 0 | CU34: 0 | CV34: 0 | CX34: 0 | DB34: 0 | DC34: 0 | DD34: 0 | DE34: 0 | DF34: 0 | DG34: 0 | DH34: 0 | DI34: 0 | DJ34: 0 | DK34: 0 | DL34: 0 | DM34: 0 | DN34: 0.00 | DP34: 0 | DQ34: 0 | DR34: 0 | DS34: 0 | DT34: 0.00 | DV34: 0 | DW34: 0 | DX34: 0 | DY34: 0 | DZ34: 0.00 | EB34: 0 | EC34: 0 | ED34: 0 | EE34: 0 | EF34: 0 | EG34: 0 | EH34: 0 | EI34: 0 | EJ34: 0.00 | FD34: 0 | FE34: 0 | FF34: 0 | FG34: 0 | FK34: 0 | FL34: / | FM34: 200 | FN34: 0/200 | FO34: 0 | FP34: / | FQ34: 200 | FR34: 0/200 | FS34: 0 | FT34: / | FU34: 100 | FV34: 0/100 | FW34: 0 | FX34: / | FY34: 100 | FZ34: 0/100 | GA34: 0 | GB34: / | GC34: 200 | GD34: 0/200
A35: 0 | B35: 27 | C35: 27 | D35: 0 | L35: 0 | M35: 0 | N35: 0 | O35: 0 | P35: 0 | Q35: 0 | R35: 0 | S35: 0 | T35: 0.00 | X35: 0 | Y35: 0 | Z35: 0 | AA35: 0 | AB35: 0 | AC35: 0 | AD35: 0 | AE35: 0 | AF35: 0.00 | AJ35: 0 | AK35: 0 | AL35: 0 | AM35: 0 | AN35: 0 | AO35: 0 | AP35: 0 | AQ35: 0 | AR35: 0.00 | AV35: 0 | AW35: 0 | AX35: 0 | AY35: 0 | AZ35: 0 | BA35: 0 | BB35: 0 | BC35: 0 | BD35: 0.00 | BH35: 0 | BI35: 0 | BJ35: 0 | BK35: 0 | BL35: 0 | BM35: 0 | BN35: 0 | BO35: 0 | BP35: 0.00 | BT35: 0 | BU35: 0 | BV35: 0 | BW35: 0 | BX35: 0 | BY35: 0 | BZ35: 0 | CA35: 0 | CB35: 0.00 | CF35: 0 | CG35: 0 | CI35: 0 | CJ35: 0 | CK35: 0 | CL35: 0 | CM35: 0 | CN35: 0 | CO35: 0 | CP35: 0 | CQ35: 0.00 | CS35: 0 | CT35: 0 | CU35: 0 | CV35: 0 | CX35: 0 | DB35: 0 | DC35: 0 | DD35: 0 | DE35: 0 | DF35: 0 | DG35: 0 | DH35: 0 | DI35: 0 | DJ35: 0 | DK35: 0 | DL35: 0 | DM35: 0 | DN35: 0.00 | DP35: 0 | DQ35: 0 | DR35: 0 | DS35: 0 | DT35: 0.00 | DV35: 0 | DW35: 0 | DX35: 0 | DY35: 0 | DZ35: 0.00 | EB35: 0 | EC35: 0 | ED35: 0 | EE35: 0 | EF35: 0 | EG35: 0 | EH35: 0 | EI35: 0 | EJ35: 0.00 | FD35: 0 | FE35: 0 | FF35: 0 | FG35: 0 | FK35: 0 | FL35: / | FM35: 200 | FN35: 0/200 | FO35: 0 | FP35: / | FQ35: 200 | FR35: 0/200 | FS35: 0 | FT35: / | FU35: 100 | FV35: 0/100 | FW35: 0 | FX35: / | FY35: 100 | FZ35: 0/100 | GA35: 0 | GB35: / | GC35: 200 | GD35: 0/200
A36: 0 | B36: 28 | C36: 28 | D36: 0 | L36: 0 | M36: 0 | N36: 0 | O36: 0 | P36: 0 | Q36: 0 | R36: 0 | S36: 0 | T36: 0.00 | X36: 0 | Y36: 0 | Z36: 0 | AA36: 0 | AB36: 0 | AC36: 0 | AD36: 0 | AE36: 0 | AF36: 0.00 | AJ36: 0 | AK36: 0 | AL36: 0 | AM36: 0 | AN36: 0 | AO36: 0 | AP36: 0 | AQ36: 0 | AR36: 0.00 | AV36: 0 | AW36: 0 | AX36: 0 | AY36: 0 | AZ36: 0 | BA36: 0 | BB36: 0 | BC36: 0 | BD36: 0.00 | BH36: 0 | BI36: 0 | BJ36: 0 | BK36: 0 | BL36: 0 | BM36: 0 | BN36: 0 | BO36: 0 | BP36: 0.00 | BT36: 0 | BU36: 0 | BV36: 0 | BW36: 0 | BX36: 0 | BY36: 0 | BZ36: 0 | CA36: 0 | CB36: 0.00 | CF36: 0 | CG36: 0 | CI36: 0 | CJ36: 0 | CK36: 0 | CL36: 0 | CM36: 0 | CN36: 0 | CO36: 0 | CP36: 0 | CQ36: 0.00 | CS36: 0 | CT36: 0 | CU36: 0 | CV36: 0 | CX36: 0 | DB36: 0 | DC36: 0 | DD36: 0 | DE36: 0 | DF36: 0 | DG36: 0 | DH36: 0 | DI36: 0 | DJ36: 0 | DK36: 0 | DL36: 0 | DM36: 0 | DN36: 0.00 | DP36: 0 | DQ36: 0 | DR36: 0 | DS36: 0 | DT36: 0.00 | DV36: 0 | DW36: 0 | DX36: 0 | DY36: 0 | DZ36: 0.00 | EB36: 0 | EC36: 0 | ED36: 0 | EE36: 0 | EF36: 0 | EG36: 0 | EH36: 0 | EI36: 0 | EJ36: 0.00 | FD36: 0 | FE36: 0 | FF36: 0 | FG36: 0 | FK36: 0 | FL36: / | FM36: 200 | FN36: 0/200 | FO36: 0 | FP36: / | FQ36: 200 | FR36: 0/200 | FS36: 0 | FT36: / | FU36: 100 | FV36: 0/100 | FW36: 0 | FX36: / | FY36: 100 | FZ36: 0/100 | GA36: 0 | GB36: / | GC36: 200 | GD36: 0/200
A37: 0 | B37: 29 | C37: 29 | D37: 0 | L37: 0 | M37: 0 | N37: 0 | O37: 0 | P37: 0 | Q37: 0 | R37: 0 | S37: 0 | T37: 0.00 | X37: 0 | Y37: 0 | Z37: 0 | AA37: 0 | AB37: 0 | AC37: 0 | AD37: 0 | AE37: 0 | AF37: 0.00 | AJ37: 0 | AK37: 0 | AL37: 0 | AM37: 0 | AN37: 0 | AO37: 0 | AP37: 0 | AQ37: 0 | AR37: 0.00 | AV37: 0 | AW37: 0 | AX37: 0 | AY37: 0 | AZ37: 0 | BA37: 0 | BB37: 0 | BC37: 0 | BD37: 0.00 | BH37: 0 | BI37: 0 | BJ37: 0 | BK37: 0 | BL37: 0 | BM37: 0 | BN37: 0 | BO37: 0 | BP37: 0.00 | BT37: 0 | BU37: 0 | BV37: 0 | BW37: 0 | BX37: 0 | BY37: 0 | BZ37: 0 | CA37: 0 | CB37: 0.00 | CF37: 0 | CG37: 0 | CI37: 0 | CJ37: 0 | CK37: 0 | CL37: 0 | CM37: 0 | CN37: 0 | CO37: 0 | CP37: 0 | CQ37: 0.00 | CS37: 0 | CT37: 0 | CU37: 0 | CV37: 0 | CX37: 0 | DB37: 0 | DC37: 0 | DD37: 0 | DE37: 0 | DF37: 0 | DG37: 0 | DH37: 0 | DI37: 0 | DJ37: 0 | DK37: 0 | DL37: 0 | DM37: 0 | DN37: 0.00 | DP37: 0 | DQ37: 0 | DR37: 0 | DS37: 0 | DT37: 0.00 | DV37: 0 | DW37: 0 | DX37: 0 | DY37: 0 | DZ37: 0.00 | EB37: 0 | EC37: 0 | ED37: 0 | EE37: 0 | EF37: 0 | EG37: 0 | EH37: 0 | EI37: 0 | EJ37: 0.00 | FD37: 0 | FE37: 0 | FF37: 0 | FG37: 0 | FK37: 0 | FL37: / | FM37: 200 | FN37: 0/200 | FO37: 0 | FP37: / | FQ37: 200 | FR37: 0/200 | FS37: 0 | FT37: / | FU37: 100 | FV37: 0/100 | FW37: 0 | FX37: / | FY37: 100 | FZ37: 0/100 | GA37: 0 | GB37: / | GC37: 200 | GD37: 0/200
A38: 0 | B38: 30 | C38: 30 | D38: 0 | L38: 0 | M38: 0 | N38: 0 | O38: 0 | P38: 0 | Q38: 0 | R38: 0 | S38: 0 | T38: 0.00 | X38: 0 | Y38: 0 | Z38: 0 | AA38: 0 | AB38: 0 | AC38: 0 | AD38: 0 | AE38: 0 | AF38: 0.00 | AJ38: 0 | AK38: 0 | AL38: 0 | AM38: 0 | AN38: 0 | AO38: 0 | AP38: 0 | AQ38: 0 | AR38: 0.00 | AV38: 0 | AW38: 0 | AX38: 0 | AY38: 0 | AZ38: 0 | BA38: 0 | BB38: 0 | BC38: 0 | BD38: 0.00 | BH38: 0 | BI38: 0 | BJ38: 0 | BK38: 0 | BL38: 0 | BM38: 0 | BN38: 0 | BO38: 0 | BP38: 0.00 | BT38: 0 | BU38: 0 | BV38: 0 | BW38: 0 | BX38: 0 | BY38: 0 | BZ38: 0 | CA38: 0 | CB38: 0.00 | CF38: 0 | CG38: 0 | CI38: 0 | CJ38: 0 | CK38: 0 | CL38: 0 | CM38: 0 | CN38: 0 | CO38: 0 | CP38: 0 | CQ38: 0.00 | CS38: 0 | CT38: 0 | CU38: 0 | CV38: 0 | CX38: 0 | DB38: 0 | DC38: 0 | DD38: 0 | DE38: 0 | DF38: 0 | DG38: 0 | DH38: 0 | DI38: 0 | DJ38: 0 | DK38: 0 | DL38: 0 | DM38: 0 | DN38: 0.00 | DP38: 0 | DQ38: 0 | DR38: 0 | DS38: 0 | DT38: 0.00 | DV38: 0 | DW38: 0 | DX38: 0 | DY38: 0 | DZ38: 0.00 | EB38: 0 | EC38: 0 | ED38: 0 | EE38: 0 | EF38: 0 | EG38: 0 | EH38: 0 | EI38: 0 | EJ38: 0.00 | FD38: 0 | FE38: 0 | FF38: 0 | FG38: 0 | FK38: 0 | FL38: / | FM38: 200 | FN38: 0/200 | FO38: 0 | FP38: / | FQ38: 200 | FR38: 0/200 | FS38: 0 | FT38: / | FU38: 100 | FV38: 0/100 | FW38: 0 | FX38: / | FY38: 100 | FZ38: 0/100 | GA38: 0 | GB38: / | GC38: 200 | GD38: 0/200
A39: 0 | B39: 31 | C39: 31 | D39: 0 | L39: 0 | M39: 0 | N39: 0 | O39: 0 | P39: 0 | Q39: 0 | R39: 0 | S39: 0 | T39: 0.00 | X39: 0 | Y39: 0 | Z39: 0 | AA39: 0 | AB39: 0 | AC39: 0 | AD39: 0 | AE39: 0 | AF39: 0.00 | AJ39: 0 | AK39: 0 | AL39: 0 | AM39: 0 | AN39: 0 | AO39: 0 | AP39: 0 | AQ39: 0 | AR39: 0.00 | AV39: 0 | AW39: 0 | AX39: 0 | AY39: 0 | AZ39: 0 | BA39: 0 | BB39: 0 | BC39: 0 | BD39: 0.00 | BH39: 0 | BI39: 0 | BJ39: 0 | BK39: 0 | BL39: 0 | BM39: 0 | BN39: 0 | BO39: 0 | BP39: 0.00 | BT39: 0 | BU39: 0 | BV39: 0 | BW39: 0 | BX39: 0 | BY39: 0 | BZ39: 0 | CA39: 0 | CB39: 0.00 | CF39: 0 | CG39: 0 | CI39: 0 | CJ39: 0 | CK39: 0 | CL39: 0 | CM39: 0 | CN39: 0 | CO39: 0 | CP39: 0 | CQ39: 0.00 | CS39: 0 | CT39: 0 | CU39: 0 | CV39: 0 | CX39: 0 | DB39: 0 | DC39: 0 | DD39: 0 | DE39: 0 | DF39: 0 | DG39: 0 | DH39: 0 | DI39: 0 | DJ39: 0 | DK39: 0 | DL39: 0 | DM39: 0 | DN39: 0.00 | DP39: 0 | DQ39: 0 | DR39: 0 | DS39: 0 | DT39: 0.00 | DV39: 0 | DW39: 0 | DX39: 0 | DY39: 0 | DZ39: 0.00 | EB39: 0 | EC39: 0 | ED39: 0 | EE39: 0 | EF39: 0 | EG39: 0 | EH39: 0 | EI39: 0 | EJ39: 0.00 | FD39: 0 | FE39: 0 | FF39: 0 | FG39: 0 | FK39: 0 | FL39: / | FM39: 200 | FN39: 0/200 | FO39: 0 | FP39: / | FQ39: 200 | FR39: 0/200 | FS39: 0 | FT39: / | FU39: 100 | FV39: 0/100 | FW39: 0 | FX39: / | FY39: 100 | FZ39: 0/100 | GA39: 0 | GB39: / | GC39: 200 | GD39: 0/200
A40: 0 | B40: 32 | C40: 32 | D40: 0 | L40: 0 | M40: 0 | N40: 0 | O40: 0 | P40: 0 | Q40: 0 | R40: 0 | S40: 0 | T40: 0.00 | X40: 0 | Y40: 0 | Z40: 0 | AA40: 0 | AB40: 0 | AC40: 0 | AD40: 0 | AE40: 0 | AF40: 0.00 | AJ40: 0 | AK40: 0 | AL40: 0 | AM40: 0 | AN40: 0 | AO40: 0 | AP40: 0 | AQ40: 0 | AR40: 0.00 | AV40: 0 | AW40: 0 | AX40: 0 | AY40: 0 | AZ40: 0 | BA40: 0 | BB40: 0 | BC40: 0 | BD40: 0.00 | BH40: 0 | BI40: 0 | BJ40: 0 | BK40: 0 | BL40: 0 | BM40: 0 | BN40: 0 | BO40: 0 | BP40: 0.00 | BT40: 0 | BU40: 0 | BV40: 0 | BW40: 0 | BX40: 0 | BY40: 0 | BZ40: 0 | CA40: 0 | CB40: 0.00 | CF40: 0 | CG40: 0 | CI40: 0 | CJ40: 0 | CK40: 0 | CL40: 0 | CM40: 0 | CN40: 0 | CO40: 0 | CP40: 0 | CQ40: 0.00 | CS40: 0 | CT40: 0 | CU40: 0 | CV40: 0 | CX40: 0 | DB40: 0 | DC40: 0 | DD40: 0 | DE40: 0 | DF40: 0 | DG40: 0 | DH40: 0 | DI40: 0 | DJ40: 0 | DK40: 0 | DL40: 0 | DM40: 0 | DN40: 0.00 | DP40: 0 | DQ40: 0 | DR40: 0 | DS40: 0 | DT40: 0.00 | DV40: 0 | DW40: 0 | DX40: 0 | DY40: 0 | DZ40: 0.00 | EB40: 0 | EC40: 0 | ED40: 0 | EE40: 0 | EF40: 0 | EG40: 0 | EH40: 0 | EI40: 0 | EJ40: 0.00 | FD40: 0 | FE40: 0 | FF40: 0 | FG40: 0 | FK40: 0 | FL40: / | FM40: 200 | FN40: 0/200 | FO40: 0 | FP40: / | FQ40: 200 | FR40: 0/200 | FS40: 0 | FT40: / | FU40: 100 | FV40: 0/100 | FW40: 0 | FX40: / | FY40: 100 | FZ40: 0/100 | GA40: 0 | GB40: / | GC40: 200 | GD40: 0/200
A41: 0 | B41: 33 | C41: 33 | D41: 0 | L41: 0 | M41: 0 | N41: 0 | O41: 0 | P41: 0 | Q41: 0 | R41: 0 | S41: 0 | T41: 0.00 | X41: 0 | Y41: 0 | Z41: 0 | AA41: 0 | AB41: 0 | AC41: 0 | AD41: 0 | AE41: 0 | AF41: 0.00 | AJ41: 0 | AK41: 0 | AL41: 0 | AM41: 0 | AN41: 0 | AO41: 0 | AP41: 0 | AQ41: 0 | AR41: 0.00 | AV41: 0 | AW41: 0 | AX41: 0 | AY41: 0 | AZ41: 0 | BA41: 0 | BB41: 0 | BC41: 0 | BD41: 0.00 | BH41: 0 | BI41: 0 | BJ41: 0 | BK41: 0 | BL41: 0 | BM41: 0 | BN41: 0 | BO41: 0 | BP41: 0.00 | BT41: 0 | BU41: 0 | BV41: 0 | BW41: 0 | BX41: 0 | BY41: 0 | BZ41: 0 | CA41: 0 | CB41: 0.00 | CF41: 0 | CG41: 0 | CI41: 0 | CJ41: 0 | CK41: 0 | CL41: 0 | CM41: 0 | CN41: 0 | CO41: 0 | CP41: 0 | CQ41: 0.00 | CS41: 0 | CT41: 0 | CU41: 0 | CV41: 0 | CX41: 0 | DB41: 0 | DC41: 0 | DD41: 0 | DE41: 0 | DF41: 0 | DG41: 0 | DH41: 0 | DI41: 0 | DJ41: 0 | DK41: 0 | DL41: 0 | DM41: 0 | DN41: 0.00 | DP41: 0 | DQ41: 0 | DR41: 0 | DS41: 0 | DT41: 0.00 | DV41: 0 | DW41: 0 | DX41: 0 | DY41: 0 | DZ41: 0.00 | EB41: 0 | EC41: 0 | ED41: 0 | EE41: 0 | EF41: 0 | EG41: 0 | EH41: 0 | EI41: 0 | EJ41: 0.00 | FD41: 0 | FE41: 0 | FF41: 0 | FG41: 0 | FK41: 0 | FL41: / | FM41: 200 | FN41: 0/200 | FO41: 0 | FP41: / | FQ41: 200 | FR41: 0/200 | FS41: 0 | FT41: / | FU41: 100 | FV41: 0/100 | FW41: 0 | FX41: / | FY41: 100 | FZ41: 0/100 | GA41: 0 | GB41: / | GC41: 200 | GD41: 0/200
A42: 0 | B42: 34 | C42: 34 | D42: 0 | L42: 0 | M42: 0 | N42: 0 | O42: 0 | P42: 0 | Q42: 0 | R42: 0 | S42: 0 | T42: 0.00 | X42: 0 | Y42: 0 | Z42: 0 | AA42: 0 | AB42: 0 | AC42: 0 | AD42: 0 | AE42: 0 | AF42: 0.00 | AJ42: 0 | AK42: 0 | AL42: 0 | AM42: 0 | AN42: 0 | AO42: 0 | AP42: 0 | AQ42: 0 | AR42: 0.00 | AV42: 0 | AW42: 0 | AX42: 0 | AY42: 0 | AZ42: 0 | BA42: 0 | BB42: 0 | BC42: 0 | BD42: 0.00 | BH42: 0 | BI42: 0 | BJ42: 0 | BK42: 0 | BL42: 0 | BM42: 0 | BN42: 0 | BO42: 0 | BP42: 0.00 | BT42: 0 | BU42: 0 | BV42: 0 | BW42: 0 | BX42: 0 | BY42: 0 | BZ42: 0 | CA42: 0 | CB42: 0.00 | CF42: 0 | CG42: 0 | CI42: 0 | CJ42: 0 | CK42: 0 | CL42: 0 | CM42: 0 | CN42: 0 | CO42: 0 | CP42: 0 | CQ42: 0.00 | CS42: 0 | CT42: 0 | CU42: 0 | CV42: 0 | CX42: 0 | DB42: 0 | DC42: 0 | DD42: 0 | DE42: 0 | DF42: 0 | DG42: 0 | DH42: 0 | DI42: 0 | DJ42: 0 | DK42: 0 | DL42: 0 | DM42: 0 | DN42: 0.00 | DP42: 0 | DQ42: 0 | DR42: 0 | DS42: 0 | DT42: 0.00 | DV42: 0 | DW42: 0 | DX42: 0 | DY42: 0 | DZ42: 0.00 | EB42: 0 | EC42: 0 | ED42: 0 | EE42: 0 | EF42: 0 | EG42: 0 | EH42: 0 | EI42: 0 | EJ42: 0.00 | FD42: 0 | FE42: 0 | FF42: 0 | FG42: 0 | FK42: 0 | FL42: / | FM42: 200 | FN42: 0/200 | FO42: 0 | FP42: / | FQ42: 200 | FR42: 0/200 | FS42: 0 | FT42: / | FU42: 100 | FV42: 0/100 | FW42: 0 | FX42: / | FY42: 100 | FZ42: 0/100 | GA42: 0 | GB42: / | GC42: 200 | GD42: 0/200
A43: 0 | B43: 35 | C43: 35 | D43: 0 | L43: 0 | M43: 0 | N43: 0 | O43: 0 | P43: 0 | Q43: 0 | R43: 0 | S43: 0 | T43: 0.00 | X43: 0 | Y43: 0 | Z43: 0 | AA43: 0 | AB43: 0 | AC43: 0 | AD43: 0 | AE43: 0 | AF43: 0.00 | AJ43: 0 | AK43: 0 | AL43: 0 | AM43: 0 | AN43: 0 | AO43: 0 | AP43: 0 | AQ43: 0 | AR43: 0.00 | AV43: 0 | AW43: 0 | AX43: 0 | AY43: 0 | AZ43: 0 | BA43: 0 | BB43: 0 | BC43: 0 | BD43: 0.00 | BH43: 0 | BI43: 0 | BJ43: 0 | BK43: 0 | BL43: 0 | BM43: 0 | BN43: 0 | BO43: 0 | BP43: 0.00 | BT43: 0 | BU43: 0 | BV43: 0 | BW43: 0 | BX43: 0 | BY43: 0 | BZ43: 0 | CA43: 0 | CB43: 0.00 | CF43: 0 | CG43: 0 | CI43: 0 | CJ43: 0 | CK43: 0 | CL43: 0 | CM43: 0 | CN43: 0 | CO43: 0 | CP43: 0 | CQ43: 0.00 | CS43: 0 | CT43: 0 | CU43: 0 | CV43: 0 | CX43: 0 | DB43: 0 | DC43: 0 | DD43: 0 | DE43: 0 | DF43: 0 | DG43: 0 | DH43: 0 | DI43: 0 | DJ43: 0 | DK43: 0 | DL43: 0 | DM43: 0 | DN43: 0.00 | DP43: 0 | DQ43: 0 | DR43: 0 | DS43: 0 | DT43: 0.00 | DV43: 0 | DW43: 0 | DX43: 0 | DY43: 0 | DZ43: 0.00 | EB43: 0 | EC43: 0 | ED43: 0 | EE43: 0 | EF43: 0 | EG43: 0 | EH43: 0 | EI43: 0 | EJ43: 0.00 | FD43: 0 | FE43: 0 | FF43: 0 | FG43: 0 | FK43: 0 | FL43: / | FM43: 200 | FN43: 0/200 | FO43: 0 | FP43: / | FQ43: 200 | FR43: 0/200 | FS43: 0 | FT43: / | FU43: 100 | FV43: 0/100 | FW43: 0 | FX43: / | FY43: 100 | FZ43: 0/100 | GA43: 0 | GB43: / | GC43: 200 | GD43: 0/200
A44: 0 | B44: 36 | C44: 36 | D44: 0 | L44: 0 | M44: 0 | N44: 0 | O44: 0 | P44: 0 | Q44: 0 | R44: 0 | S44: 0 | T44: 0.00 | X44: 0 | Y44: 0 | Z44: 0 | AA44: 0 | AB44: 0 | AC44: 0 | AD44: 0 | AE44: 0 | AF44: 0.00 | AJ44: 0 | AK44: 0 | AL44: 0 | AM44: 0 | AN44: 0 | AO44: 0 | AP44: 0 | AQ44: 0 | AR44: 0.00 | AV44: 0 | AW44: 0 | AX44: 0 | AY44: 0 | AZ44: 0 | BA44: 0 | BB44: 0 | BC44: 0 | BD44: 0.00 | BH44: 0 | BI44: 0 | BJ44: 0 | BK44: 0 | BL44: 0 | BM44: 0 | BN44: 0 | BO44: 0 | BP44: 0.00 | BT44: 0 | BU44: 0 | BV44: 0 | BW44: 0 | BX44: 0 | BY44: 0 | BZ44: 0 | CA44: 0 | CB44: 0.00 | CF44: 0 | CG44: 0 | CI44: 0 | CJ44: 0 | CK44: 0 | CL44: 0 | CM44: 0 | CN44: 0 | CO44: 0 | CP44: 0 | CQ44: 0.00 | CS44: 0 | CT44: 0 | CU44: 0 | CV44: 0 | CX44: 0 | DB44: 0 | DC44: 0 | DD44: 0 | DE44: 0 | DF44: 0 | DG44: 0 | DH44: 0 | DI44: 0 | DJ44: 0 | DK44: 0 | DL44: 0 | DM44: 0 | DN44: 0.00 | DP44: 0 | DQ44: 0 | DR44: 0 | DS44: 0 | DT44: 0.00 | DV44: 0 | DW44: 0 | DX44: 0 | DY44: 0 | DZ44: 0.00 | EB44: 0 | EC44: 0 | ED44: 0 | EE44: 0 | EF44: 0 | EG44: 0 | EH44: 0 | EI44: 0 | EJ44: 0.00 | FD44: 0 | FE44: 0 | FF44: 0 | FG44: 0 | FK44: 0 | FL44: / | FM44: 200 | FN44: 0/200 | FO44: 0 | FP44: / | FQ44: 200 | FR44: 0/200 | FS44: 0 | FT44: / | FU44: 100 | FV44: 0/100 | FW44: 0 | FX44: / | FY44: 100 | FZ44: 0/100 | GA44: 0 | GB44: / | GC44: 200 | GD44: 0/200
A45: 0 | B45: 37 | C45: 37 | D45: 0 | L45: 0 | M45: 0 | N45: 0 | O45: 0 | P45: 0 | Q45: 0 | R45: 0 | S45: 0 | T45: 0.00 | X45: 0 | Y45: 0 | Z45: 0 | AA45: 0 | AB45: 0 | AC45: 0 | AD45: 0 | AE45: 0 | AF45: 0.00 | AJ45: 0 | AK45: 0 | AL45: 0 | AM45: 0 | AN45: 0 | AO45: 0 | AP45: 0 | AQ45: 0 | AR45: 0.00 | AV45: 0 | AW45: 0 | AX45: 0 | AY45: 0 | AZ45: 0 | BA45: 0 | BB45: 0 | BC45: 0 | BD45: 0.00 | BH45: 0 | BI45: 0 | BJ45: 0 | BK45: 0 | BL45: 0 | BM45: 0 | BN45: 0 | BO45: 0 | BP45: 0.00 | BT45: 0 | BU45: 0 | BV45: 0 | BW45: 0 | BX45: 0 | BY45: 0 | BZ45: 0 | CA45: 0 | CB45: 0.00 | CF45: 0 | CG45: 0 | CI45: 0 | CJ45: 0 | CK45: 0 | CL45: 0 | CM45: 0 | CN45: 0 | CO45: 0 | CP45: 0 | CQ45: 0.00 | CS45: 0 | CT45: 0 | CU45: 0 | CV45: 0 | CX45: 0 | DB45: 0 | DC45: 0 | DD45: 0 | DE45: 0 | DF45: 0 | DG45: 0 | DH45: 0 | DI45: 0 | DJ45: 0 | DK45: 0 | DL45: 0 | DM45: 0 | DN45: 0.00 | DP45: 0 | DQ45: 0 | DR45: 0 | DS45: 0 | DT45: 0.00 | DV45: 0 | DW45: 0 | DX45: 0 | DY45: 0 | DZ45: 0.00 | EB45: 0 | EC45: 0 | ED45: 0 | EE45: 0 | EF45: 0 | EG45: 0 | EH45: 0 | EI45: 0 | EJ45: 0.00 | FD45: 0 | FE45: 0 | FF45: 0 | FG45: 0 | FK45: 0 | FL45: / | FM45: 200 | FN45: 0/200 | FO45: 0 | FP45: / | FQ45: 200 | FR45: 0/200 | FS45: 0 | FT45: / | FU45: 100 | FV45: 0/100 | FW45: 0 | FX45: / | FY45: 100 | FZ45: 0/100 | GA45: 0 | GB45: / | GC45: 200 | GD45: 0/200
A46: 0 | B46: 38 | C46: 38 | D46: 0 | L46: 0 | M46: 0 | N46: 0 | O46: 0 | P46: 0 | Q46: 0 | R46: 0 | S46: 0 | T46: 0.00 | X46: 0 | Y46: 0 | Z46: 0 | AA46: 0 | AB46: 0 | AC46: 0 | AD46: 0 | AE46: 0 | AF46: 0.00 | AJ46: 0 | AK46: 0 | AL46: 0 | AM46: 0 | AN46: 0 | AO46: 0 | AP46: 0 | AQ46: 0 | AR46: 0.00 | AV46: 0 | AW46: 0 | AX46: 0 | AY46: 0 | AZ46: 0 | BA46: 0 | BB46: 0 | BC46: 0 | BD46: 0.00 | BH46: 0 | BI46: 0 | BJ46: 0 | BK46: 0 | BL46: 0 | BM46: 0 | BN46: 0 | BO46: 0 | BP46: 0.00 | BT46: 0 | BU46: 0 | BV46: 0 | BW46: 0 | BX46: 0 | BY46: 0 | BZ46: 0 | CA46: 0 | CB46: 0.00 | CF46: 0 | CG46: 0 | CI46: 0 | CJ46: 0 | CK46: 0 | CL46: 0 | CM46: 0 | CN46: 0 | CO46: 0 | CP46: 0 | CQ46: 0.00 | CS46: 0 | CT46: 0 | CU46: 0 | CV46: 0 | CX46: 0 | DB46: 0 | DC46: 0 | DD46: 0 | DE46: 0 | DF46: 0 | DG46: 0 | DH46: 0 | DI46: 0 | DJ46: 0 | DK46: 0 | DL46: 0 | DM46: 0 | DN46: 0.00 | DP46: 0 | DQ46: 0 | DR46: 0 | DS46: 0 | DT46: 0.00 | DV46: 0 | DW46: 0 | DX46: 0 | DY46: 0 | DZ46: 0.00 | EB46: 0 | EC46: 0 | ED46: 0 | EE46: 0 | EF46: 0 | EG46: 0 | EH46: 0 | EI46: 0 | EJ46: 0.00 | FD46: 0 | FE46: 0 | FF46: 0 | FG46: 0 | FK46: 0 | FL46: / | FM46: 200 | FN46: 0/200 | FO46: 0 | FP46: / | FQ46: 200 | FR46: 0/200 | FS46: 0 | FT46: / | FU46: 100 | FV46: 0/100 | FW46: 0 | FX46: / | FY46: 100 | FZ46: 0/100 | GA46: 0 | GB46: / | GC46: 200 | GD46: 0/200
A47: 0 | B47: 39 | C47: 39 | D47: 0 | L47: 0 | M47: 0 | N47: 0 | O47: 0 | P47: 0 | Q47: 0 | R47: 0 | S47: 0 | T47: 0.00 | X47: 0 | Y47: 0 | Z47: 0 | AA47: 0 | AB47: 0 | AC47: 0 | AD47: 0 | AE47: 0 | AF47: 0.00 | AJ47: 0 | AK47: 0 | AL47: 0 | AM47: 0 | AN47: 0 | AO47: 0 | AP47: 0 | AQ47: 0 | AR47: 0.00 | AV47: 0 | AW47: 0 | AX47: 0 | AY47: 0 | AZ47: 0 | BA47: 0 | BB47: 0 | BC47: 0 | BD47: 0.00 | BH47: 0 | BI47: 0 | BJ47: 0 | BK47: 0 | BL47: 0 | BM47: 0 | BN47: 0 | BO47: 0 | BP47: 0.00 | BT47: 0 | BU47: 0 | BV47: 0 | BW47: 0 | BX47: 0 | BY47: 0 | BZ47: 0 | CA47: 0 | CB47: 0.00 | CF47: 0 | CG47: 0 | CI47: 0 | CJ47: 0 | CK47: 0 | CL47: 0 | CM47: 0 | CN47: 0 | CO47: 0 | CP47: 0 | CQ47: 0.00 | CS47: 0 | CT47: 0 | CU47: 0 | CV47: 0 | CX47: 0 | DB47: 0 | DC47: 0 | DD47: 0 | DE47: 0 | DF47: 0 | DG47: 0 | DH47: 0 | DI47: 0 | DJ47: 0 | DK47: 0 | DL47: 0 | DM47: 0 | DN47: 0.00 | DP47: 0 | DQ47: 0 | DR47: 0 | DS47: 0 | DT47: 0.00 | DV47: 0 | DW47: 0 | DX47: 0 | DY47: 0 | DZ47: 0.00 | EB47: 0 | EC47: 0 | ED47: 0 | EE47: 0 | EF47: 0 | EG47: 0 | EH47: 0 | EI47: 0 | EJ47: 0.00 | FD47: 0 | FE47: 0 | FF47: 0 | FG47: 0 | FK47: 0 | FL47: / | FM47: 200 | FN47: 0/200 | FO47: 0 | FP47: / | FQ47: 200 | FR47: 0/200 | FS47: 0 | FT47: / | FU47: 100 | FV47: 0/100 | FW47: 0 | FX47: / | FY47: 100 | FZ47: 0/100 | GA47: 0 | GB47: / | GC47: 200 | GD47: 0/200
A48: 0 | B48: 40 | C48: 40 | D48: 0 | L48: 0 | M48: 0 | N48: 0 | O48: 0 | P48: 0 | Q48: 0 | R48: 0 | S48: 0 | T48: 0.00 | X48: 0 | Y48: 0 | Z48: 0 | AA48: 0 | AB48: 0 | AC48: 0 | AD48: 0 | AE48: 0 | AF48: 0.00 | AJ48: 0 | AK48: 0 | AL48: 0 | AM48: 0 | AN48: 0 | AO48: 0 | AP48: 0 | AQ48: 0 | AR48: 0.00 | AV48: 0 | AW48: 0 | AX48: 0 | AY48: 0 | AZ48: 0 | BA48: 0 | BB48: 0 | BC48: 0 | BD48: 0.00 | BH48: 0 | BI48: 0 | BJ48: 0 | BK48: 0 | BL48: 0 | BM48: 0 | BN48: 0 | BO48: 0 | BP48: 0.00 | BT48: 0 | BU48: 0 | BV48: 0 | BW48: 0 | BX48: 0 | BY48: 0 | BZ48: 0 | CA48: 0 | CB48: 0.00 | CF48: 0 | CG48: 0 | CI48: 0 | CJ48: 0 | CK48: 0 | CL48: 0 | CM48: 0 | CN48: =IF($S$7="NA","NA",0) -> 0 | CO48: 0 | CP48: 0 | CQ48: 0.00 | CS48: 0 | CT48: 0 | CU48: 0 | CV48: 0 | CX48: 0 | DB48: 0 | DC48: 0 | DD48: 0 | DE48: 0 | DF48: 0 | DG48: 0 | DH48: 0 | DI48: =IF($S$7="NA","NA",0) -> 0 | DJ48: 0 | DK48: 0 | DL48: 0 | DM48: 0 | DN48: 0.00 | DP48: 0 | DQ48: 0 | DR48: 0 | DS48: 0 | DT48: 0.00 | DV48: 0 | DW48: 0 | DX48: 0 | DY48: 0 | DZ48: 0.00 | EB48: 0 | EC48: 0 | ED48: 0 | EE48: 0 | EF48: 0 | EG48: 0 | EH48: 0 | EI48: 0 | EJ48: 0.00 | FD48: 0 | FE48: 0 | FF48: 0 | FG48: 0 | FK48: 0 | FL48: / | FM48: 200 | FN48: 0/200 | FO48: 0 | FP48: / | FQ48: 200 | FR48: 0/200 | FS48: 0 | FT48: / | FU48: 100 | FV48: 0/100 | FW48: 0 | FX48: / | FY48: 100 | FZ48: 0/100 | GA48: 0 | GB48: / | GC48: 200 | GD48: 0/200
A49: 0 | B49: 41 | C49: 41 | D49: 0 | L49: 0 | M49: 0 | N49: 0 | O49: 0 | P49: 0 | Q49: 0 | R49: 0 | S49: 0 | T49: 0.00 | X49: 0 | Y49: 0 | Z49: 0 | AA49: 0 | AB49: 0 | AC49: 0 | AD49: 0 | AE49: 0 | AF49: 0.00 | AJ49: 0 | AK49: 0 | AL49: 0 | AM49: 0 | AN49: 0 | AO49: 0 | AP49: 0 | AQ49: 0 | AR49: 0.00 | AV49: 0 | AW49: 0 | AX49: 0 | AY49: 0 | AZ49: 0 | BA49: 0 | BB49: 0 | BC49: 0 | BD49: 0.00 | BH49: 0 | BI49: 0 | BJ49: 0 | BK49: 0 | BL49: 0 | BM49: 0 | BN49: 0 | BO49: 0 | BP49: 0.00 | BT49: 0 | BU49: 0 | BV49: 0 | BW49: 0 | BX49: 0 | BY49: 0 | BZ49: 0 | CA49: 0 | CB49: 0.00 | CF49: 0 | CG49: 0 | CI49: 0 | CJ49: 0 | CK49: 0 | CL49: 0 | CM49: 0 | CN49: =IF($S$7="NA","NA",0) -> 0 | CO49: 0 | CP49: 0 | CQ49: 0.00 | CS49: 0 | CT49: 0 | CU49: 0 | CV49: 0 | CX49: 0 | DB49: 0 | DC49: 0 | DD49: 0 | DE49: 0 | DF49: 0 | DG49: 0 | DH49: 0 | DI49: =IF($S$7="NA","NA",0) -> 0 | DJ49: 0 | DK49: 0 | DL49: 0 | DM49: 0 | DN49: 0.00 | DP49: 0 | DQ49: 0 | DR49: 0 | DS49: 0 | DT49: 0.00 | DV49: 0 | DW49: 0 | DX49: 0 | DY49: 0 | DZ49: 0.00 | EB49: 0 | EC49: 0 | ED49: 0 | EE49: 0 | EF49: 0 | EG49: 0 | EH49: 0 | EI49: 0 | EJ49: 0.00 | FD49: 0 | FE49: 0 | FF49: 0 | FG49: 0 | FK49: 0 | FL49: / | FM49: 200 | FN49: 0/200 | FO49: 0 | FP49: / | FQ49: 200 | FR49: 0/200 | FS49: 0 | FT49: / | FU49: 100 | FV49: 0/100 | FW49: 0 | FX49: / | FY49: 100 | FZ49: 0/100 | GA49: 0 | GB49: / | GC49: 200 | GD49: 0/200
A50: 0 | B50: 42 | C50: 42 | D50: 0 | L50: 0 | M50: 0 | N50: 0 | O50: 0 | P50: 0 | Q50: 0 | R50: 0 | S50: 0 | T50: 0.00 | X50: 0 | Y50: 0 | Z50: 0 | AA50: 0 | AB50: 0 | AC50: 0 | AD50: 0 | AE50: 0 | AF50: 0.00 | AJ50: 0 | AK50: 0 | AL50: 0 | AM50: 0 | AN50: 0 | AO50: 0 | AP50: 0 | AQ50: 0 | AR50: 0.00 | AV50: 0 | AW50: 0 | AX50: 0 | AY50: 0 | AZ50: 0 | BA50: 0 | BB50: 0 | BC50: 0 | BD50: 0.00 | BH50: 0 | BI50: 0 | BJ50: 0 | BK50: 0 | BL50: 0 | BM50: 0 | BN50: 0 | BO50: 0 | BP50: 0.00 | BT50: 0 | BU50: 0 | BV50: 0 | BW50: 0 | BX50: 0 | BY50: 0 | BZ50: 0 | CA50: 0 | CB50: 0.00 | CF50: 0 | CG50: 0 | CI50: 0 | CJ50: 0 | CK50: 0 | CL50: 0 | CM50: 0 | CN50: =IF($S$7="NA","NA",0) -> 0 | CO50: 0 | CP50: 0 | CQ50: 0.00 | CS50: 0 | CT50: 0 | CU50: 0 | CV50: 0 | CX50: 0 | DB50: 0 | DC50: 0 | DD50: 0 | DE50: 0 | DF50: 0 | DG50: 0 | DH50: 0 | DI50: =IF($S$7="NA","NA",0) -> 0 | DJ50: 0 | DK50: 0 | DL50: 0 | DM50: 0 | DN50: 0.00 | DP50: 0 | DQ50: 0 | DR50: 0 | DS50: 0 | DT50: 0.00 | DV50: 0 | DW50: 0 | DX50: 0 | DY50: 0 | DZ50: 0.00 | EB50: 0 | EC50: 0 | ED50: 0 | EE50: 0 | EF50: 0 | EG50: 0 | EH50: 0 | EI50: 0 | EJ50: 0.00 | EN50: =IF(OR(EL50="",EM50=""),"",EM50/EL50*100) ->  | FD50: 0 | FE50: 0 | FF50: 0 | FG50: 0 | FK50: 0 | FL50: / | FM50: 200 | FN50: 0/200 | FO50: 0 | FP50: / | FQ50: 200 | FR50: 0/200 | FS50: 0 | FT50: / | FU50: 100 | FV50: 0/100 | FW50: 0 | FX50: / | FY50: 100 | FZ50: 0/100 | GA50: 0 | GB50: / | GC50: 200 | GD50: 0/200
A51: 0 | B51: 43 | C51: 43 | D51: 0 | L51: 0 | M51: 0 | N51: 0 | O51: 0 | P51: 0 | Q51: 0 | R51: 0 | S51: 0 | T51: 0.00 | X51: 0 | Y51: 0 | Z51: 0 | AA51: 0 | AB51: 0 | AC51: 0 | AD51: 0 | AE51: 0 | AF51: 0.00 | AJ51: 0 | AK51: 0 | AL51: 0 | AM51: 0 | AN51: 0 | AO51: 0 | AP51: 0 | AQ51: 0 | AR51: 0.00 | AV51: 0 | AW51: 0 | AX51: 0 | AY51: 0 | AZ51: 0 | BA51: 0 | BB51: 0 | BC51: 0 | BD51: 0.00 | BH51: 0 | BI51: 0 | BJ51: 0 | BK51: 0 | BL51: 0 | BM51: 0 | BN51: 0 | BO51: 0 | BP51: 0.00 | BT51: 0 | BU51: 0 | BV51: 0 | BW51: 0 | BX51: 0 | BY51: 0 | BZ51: 0 | CA51: 0 | CB51: 0.00 | CF51: 0 | CG51: 0 | CI51: 0 | CJ51: 0 | CK51: 0 | CL51: 0 | CM51: 0 | CN51: 0 | CO51: 0 | CP51: 0 | CQ51: 0.00 | CS51: 0 | CT51: 0 | CU51: 0 | CV51: 0 | CX51: 0 | DB51: 0 | DC51: 0 | DD51: 0 | DE51: 0 | DF51: 0 | DG51: 0 | DH51: 0 | DI51: 0 | DJ51: 0 | DK51: 0 | DL51: 0 | DM51: 0 | DN51: 0.00 | DP51: 0 | DQ51: 0 | DR51: 0 | DS51: =SUM(DP51:DR51) -> 0 | DT51: 0.00 | DV51: 0 | DW51: 0 | DX51: 0 | DY51: =SUM(DV51:DX51) -> 0 | DZ51: 0.00 | EB51: 0 | EC51: 0 | ED51: 0 | EE51: 0 | EF51: 0 | EG51: 0 | EH51: 0 | EI51: 0 | EJ51: 0.00 | FD51: 0 | FE51: 0 | FF51: 0 | FG51: 0 | FK51: 0 | FL51: / | FM51: 200 | FN51: 0/200 | FO51: 0 | FP51: / | FQ51: 200 | FR51: 0/200 | FS51: 0 | FT51: / | FU51: 100 | FV51: 0/100 | FW51: 0 | FX51: / | FY51: 100 | FZ51: 0/100 | GA51: 0 | GB51: / | GC51: 200 | GD51: 0/200
A52: 0 | B52: 44 | C52: 44 | D52: 0 | L52: 0 | M52: 0 | N52: 0 | O52: 0 | P52: 0 | Q52: 0 | R52: 0 | S52: 0 | T52: 0.00 | X52: 0 | Y52: 0 | Z52: 0 | AA52: 0 | AB52: 0 | AC52: 0 | AD52: 0 | AE52: 0 | AF52: 0.00 | AJ52: 0 | AK52: 0 | AL52: 0 | AM52: 0 | AN52: 0 | AO52: 0 | AP52: 0 | AQ52: 0 | AR52: 0.00 | AV52: 0 | AW52: 0 | AX52: 0 | AY52: 0 | AZ52: 0 | BA52: 0 | BB52: 0 | BC52: 0 | BD52: 0.00 | BH52: 0 | BI52: 0 | BJ52: 0 | BK52: 0 | BL52: 0 | BM52: 0 | BN52: 0 | BO52: 0 | BP52: 0.00 | BT52: 0 | BU52: 0 | BV52: 0 | BW52: 0 | BX52: 0 | BY52: 0 | BZ52: 0 | CA52: 0 | CB52: 0.00 | CF52: 0 | CG52: 0 | CI52: 0 | CJ52: 0 | CK52: 0 | CL52: 0 | CM52: 0 | CN52: 0 | CO52: 0 | CP52: 0 | CQ52: 0.00 | CS52: 0 | CT52: 0 | CU52: 0 | CV52: 0 | CX52: 0 | DB52: 0 | DC52: 0 | DD52: 0 | DE52: 0 | DF52: 0 | DG52: 0 | DH52: 0 | DI52: 0 | DJ52: 0 | DK52: 0 | DL52: 0 | DM52: 0 | DN52: 0.00 | DP52: 0 | DQ52: 0 | DR52: 0 | DS52: 0 | DT52: 0.00 | DV52: 0 | DW52: 0 | DX52: 0 | DY52: 0 | DZ52: 0.00 | EB52: 0 | EC52: 0 | ED52: 0 | EE52: 0 | EF52: 0 | EG52: 0 | EH52: 0 | EI52: 0 | EJ52: 0.00 | FD52: 0 | FE52: 0 | FF52: 0 | FG52: 0 | FK52: 0 | FL52: / | FM52: 200 | FN52: 0/200 | FO52: 0 | FP52: / | FQ52: 200 | FR52: 0/200 | FS52: 0 | FT52: / | FU52: 100 | FV52: 0/100 | FW52: 0 | FX52: / | FY52: 100 | FZ52: 0/100 | GA52: 0 | GB52: / | GC52: 200 | GD52: 0/200
A53: 0 | B53: 45 | C53: 45 | D53: 0 | L53: 0 | M53: 0 | N53: 0 | O53: 0 | P53: 0 | Q53: 0 | R53: 0 | S53: 0 | T53: 0.00 | X53: 0 | Y53: 0 | Z53: 0 | AA53: 0 | AB53: 0 | AC53: 0 | AD53: 0 | AE53: 0 | AF53: 0.00 | AJ53: 0 | AK53: 0 | AL53: 0 | AM53: 0 | AN53: 0 | AO53: 0 | AP53: 0 | AQ53: 0 | AR53: 0.00 | AV53: 0 | AW53: 0 | AX53: 0 | AY53: 0 | AZ53: 0 | BA53: 0 | BB53: 0 | BC53: 0 | BD53: 0.00 | BH53: 0 | BI53: 0 | BJ53: 0 | BK53: 0 | BL53: 0 | BM53: 0 | BN53: 0 | BO53: 0 | BP53: 0.00 | BT53: 0 | BU53: 0 | BV53: 0 | BW53: 0 | BX53: 0 | BY53: 0 | BZ53: 0 | CA53: 0 | CB53: 0.00 | CF53: 0 | CG53: 0 | CI53: 0 | CJ53: 0 | CK53: 0 | CL53: 0 | CM53: 0 | CN53: 0 | CO53: 0 | CP53: 0 | CQ53: 0.00 | CS53: 0 | CT53: 0 | CU53: 0 | CV53: 0 | CX53: 0 | DB53: 0 | DC53: 0 | DD53: 0 | DE53: 0 | DF53: 0 | DG53: 0 | DH53: 0 | DI53: 0 | DJ53: 0 | DK53: 0 | DL53: 0 | DM53: 0 | DN53: 0.00 | DP53: 0 | DQ53: 0 | DR53: 0 | DS53: 0 | DT53: 0.00 | DV53: 0 | DW53: 0 | DX53: 0 | DY53: 0 | DZ53: 0.00 | EB53: 0 | EC53: 0 | ED53: 0 | EE53: 0 | EF53: 0 | EG53: 0 | EH53: 0 | EI53: 0 | EJ53: 0.00 | FD53: 0 | FE53: 0 | FF53: 0 | FG53: 0 | FK53: 0 | FL53: / | FM53: 200 | FN53: 0/200 | FO53: 0 | FP53: / | FQ53: 200 | FR53: 0/200 | FS53: 0 | FT53: / | FU53: 100 | FV53: 0/100 | FW53: 0 | FX53: / | FY53: 100 | FZ53: 0/100 | GA53: 0 | GB53: / | GC53: 200 | GD53: 0/200
A54: 0 | B54: 46 | C54: 46 | D54: 0 | L54: 0 | M54: 0 | N54: 0 | O54: 0 | P54: 0 | Q54: 0 | R54: 0 | S54: 0 | T54: 0.00 | X54: 0 | Y54: 0 | Z54: 0 | AA54: 0 | AB54: 0 | AC54: 0 | AD54: 0 | AE54: 0 | AF54: 0.00 | AJ54: 0 | AK54: 0 | AL54: 0 | AM54: 0 | AN54: 0 | AO54: 0 | AP54: 0 | AQ54: 0 | AR54: 0.00 | AV54: 0 | AW54: 0 | AX54: 0 | AY54: 0 | AZ54: 0 | BA54: 0 | BB54: 0 | BC54: 0 | BD54: 0.00 | BH54: 0 | BI54: 0 | BJ54: 0 | BK54: 0 | BL54: 0 | BM54: 0 | BN54: 0 | BO54: 0 | BP54: 0.00 | BT54: 0 | BU54: 0 | BV54: 0 | BW54: 0 | BX54: 0 | BY54: 0 | BZ54: 0 | CA54: 0 | CB54: 0.00 | CF54: 0 | CG54: 0 | CI54: 0 | CJ54: 0 | CK54: 0 | CL54: 0 | CM54: 0 | CN54: 0 | CO54: 0 | CP54: 0 | CQ54: 0.00 | CS54: 0 | CT54: 0 | CU54: 0 | CV54: 0 | CX54: 0 | DB54: 0 | DC54: 0 | DD54: 0 | DE54: 0 | DF54: 0 | DG54: 0 | DH54: 0 | DI54: 0 | DJ54: 0 | DK54: 0 | DL54: 0 | DM54: 0 | DN54: 0.00 | DP54: 0 | DQ54: 0 | DR54: 0 | DS54: 0 | DT54: 0.00 | DV54: 0 | DW54: 0 | DX54: 0 | DY54: 0 | DZ54: 0.00 | EB54: 0 | EC54: 0 | ED54: 0 | EE54: 0 | EF54: 0 | EG54: 0 | EH54: 0 | EI54: 0 | EJ54: 0.00 | FD54: 0 | FE54: 0 | FF54: 0 | FG54: 0 | FK54: 0 | FL54: / | FM54: 200 | FN54: 0/200 | FO54: 0 | FP54: / | FQ54: 200 | FR54: 0/200 | FS54: 0 | FT54: / | FU54: 100 | FV54: 0/100 | FW54: 0 | FX54: / | FY54: 100 | FZ54: 0/100 | GA54: 0 | GB54: / | GC54: 200 | GD54: 0/200
A55: 0 | B55: 47 | C55: 47 | D55: 0 | L55: 0 | M55: 0 | N55: 0 | O55: 0 | P55: 0 | Q55: 0 | R55: 0 | S55: 0 | T55: 0.00 | X55: 0 | Y55: 0 | Z55: 0 | AA55: 0 | AB55: 0 | AC55: 0 | AD55: 0 | AE55: 0 | AF55: 0.00 | AJ55: 0 | AK55: 0 | AL55: 0 | AM55: 0 | AN55: 0 | AO55: 0 | AP55: 0 | AQ55: 0 | AR55: 0.00 | AV55: 0 | AW55: 0 | AX55: 0 | AY55: 0 | AZ55: 0 | BA55: 0 | BB55: 0 | BC55: 0 | BD55: 0.00 | BH55: 0 | BI55: 0 | BJ55: 0 | BK55: 0 | BL55: 0 | BM55: 0 | BN55: 0 | BO55: 0 | BP55: 0.00 | BT55: 0 | BU55: 0 | BV55: 0 | BW55: 0 | BX55: 0 | BY55: 0 | BZ55: 0 | CA55: 0 | CB55: 0.00 | CF55: 0 | CG55: 0 | CI55: 0 | CJ55: 0 | CK55: 0 | CL55: 0 | CM55: 0 | CN55: 0 | CO55: 0 | CP55: 0 | CQ55: 0.00 | CS55: 0 | CT55: 0 | CU55: 0 | CV55: 0 | CX55: 0 | DB55: 0 | DC55: 0 | DD55: 0 | DE55: 0 | DF55: 0 | DG55: 0 | DH55: 0 | DI55: 0 | DJ55: 0 | DK55: 0 | DL55: 0 | DM55: 0 | DN55: 0.00 | DP55: 0 | DQ55: 0 | DR55: 0 | DS55: 0 | DT55: 0.00 | DV55: 0 | DW55: 0 | DX55: 0 | DY55: 0 | DZ55: 0.00 | EB55: 0 | EC55: 0 | ED55: 0 | EE55: 0 | EF55: 0 | EG55: 0 | EH55: 0 | EI55: 0 | EJ55: 0.00 | FD55: 0 | FE55: 0 | FF55: 0 | FG55: 0 | FK55: 0 | FL55: / | FM55: 200 | FN55: 0/200 | FO55: 0 | FP55: / | FQ55: 200 | FR55: 0/200 | FS55: 0 | FT55: / | FU55: 100 | FV55: 0/100 | FW55: 0 | FX55: / | FY55: 100 | FZ55: 0/100 | GA55: 0 | GB55: / | GC55: 200 | GD55: 0/200
A56: 0 | B56: 48 | C56: 48 | D56: 0 | L56: 0 | M56: 0 | N56: 0 | O56: 0 | P56: 0 | Q56: 0 | R56: 0 | S56: 0 | T56: 0.00 | X56: 0 | Y56: 0 | Z56: 0 | AA56: 0 | AB56: 0 | AC56: 0 | AD56: 0 | AE56: 0 | AF56: 0.00 | AJ56: 0 | AK56: 0 | AL56: 0 | AM56: 0 | AN56: 0 | AO56: 0 | AP56: 0 | AQ56: 0 | AR56: 0.00 | AV56: 0 | AW56: 0 | AX56: 0 | AY56: 0 | AZ56: 0 | BA56: 0 | BB56: 0 | BC56: 0 | BD56: 0.00 | BH56: 0 | BI56: 0 | BJ56: 0 | BK56: 0 | BL56: 0 | BM56: 0 | BN56: 0 | BO56: 0 | BP56: 0.00 | BT56: 0 | BU56: 0 | BV56: 0 | BW56: 0 | BX56: 0 | BY56: 0 | BZ56: 0 | CA56: 0 | CB56: 0.00 | CF56: 0 | CG56: 0 | CI56: 0 | CJ56: 0 | CK56: 0 | CL56: 0 | CM56: 0 | CN56: 0 | CO56: 0 | CP56: 0 | CQ56: 0.00 | CS56: 0 | CT56: 0 | CU56: 0 | CV56: 0 | CX56: 0 | DB56: 0 | DC56: 0 | DD56: 0 | DE56: 0 | DF56: 0 | DG56: 0 | DH56: 0 | DI56: 0 | DJ56: 0 | DK56: 0 | DL56: 0 | DM56: 0 | DN56: 0.00 | DP56: 0 | DQ56: 0 | DR56: 0 | DS56: 0 | DT56: 0.00 | DV56: 0 | DW56: 0 | DX56: 0 | DY56: 0 | DZ56: 0.00 | EB56: 0 | EC56: 0 | ED56: 0 | EE56: 0 | EF56: 0 | EG56: 0 | EH56: 0 | EI56: 0 | EJ56: 0.00 | FD56: 0 | FE56: 0 | FF56: 0 | FG56: 0 | FK56: 0 | FL56: / | FM56: 200 | FN56: 0/200 | FO56: 0 | FP56: / | FQ56: 200 | FR56: 0/200 | FS56: 0 | FT56: / | FU56: 100 | FV56: 0/100 | FW56: 0 | FX56: / | FY56: 100 | FZ56: 0/100 | GA56: 0 | GB56: / | GC56: 200 | GD56: 0/200
A57: 0 | B57: 49 | C57: 49 | D57: 0 | L57: 0 | M57: 0 | N57: 0 | O57: 0 | P57: 0 | Q57: 0 | R57: 0 | S57: 0 | T57: 0.00 | X57: 0 | Y57: 0 | Z57: 0 | AA57: 0 | AB57: 0 | AC57: 0 | AD57: 0 | AE57: 0 | AF57: 0.00 | AJ57: 0 | AK57: 0 | AL57: 0 | AM57: 0 | AN57: 0 | AO57: 0 | AP57: 0 | AQ57: 0 | AR57: 0.00 | AV57: 0 | AW57: 0 | AX57: 0 | AY57: 0 | AZ57: 0 | BA57: 0 | BB57: 0 | BC57: 0 | BD57: 0.00 | BH57: 0 | BI57: 0 | BJ57: 0 | BK57: 0 | BL57: 0 | BM57: 0 | BN57: 0 | BO57: 0 | BP57: 0.00 | BT57: 0 | BU57: 0 | BV57: 0 | BW57: 0 | BX57: 0 | BY57: 0 | BZ57: 0 | CA57: 0 | CB57: 0.00 | CF57: 0 | CG57: 0 | CI57: 0 | CJ57: 0 | CK57: 0 | CL57: 0 | CM57: 0 | CN57: 0 | CO57: 0 | CP57: 0 | CQ57: 0.00 | CS57: 0 | CT57: 0 | CU57: 0 | CV57: 0 | CX57: 0 | DB57: 0 | DC57: 0 | DD57: 0 | DE57: 0 | DF57: 0 | DG57: 0 | DH57: 0 | DI57: 0 | DJ57: 0 | DK57: 0 | DL57: 0 | DM57: 0 | DN57: 0.00 | DP57: 0 | DQ57: 0 | DR57: 0 | DS57: 0 | DT57: 0.00 | DV57: 0 | DW57: 0 | DX57: 0 | DY57: 0 | DZ57: 0.00 | EB57: 0 | EC57: 0 | ED57: 0 | EE57: 0 | EF57: 0 | EG57: 0 | EH57: 0 | EI57: 0 | EJ57: 0.00 | FD57: 0 | FE57: 0 | FF57: 0 | FG57: 0 | FK57: 0 | FL57: / | FM57: 200 | FN57: 0/200 | FO57: 0 | FP57: / | FQ57: 200 | FR57: 0/200 | FS57: 0 | FT57: / | FU57: 100 | FV57: 0/100 | FW57: 0 | FX57: / | FY57: 100 | FZ57: 0/100 | GA57: 0 | GB57: / | GC57: 200 | GD57: 0/200
A58: 0 | B58: 50 | C58: 50 | D58: 0 | L58: 0 | M58: 0 | N58: 0 | O58: 0 | P58: 0 | Q58: 0 | R58: 0 | S58: 0 | T58: 0.00 | X58: 0 | Y58: 0 | Z58: 0 | AA58: 0 | AB58: 0 | AC58: 0 | AD58: 0 | AE58: 0 | AF58: 0.00 | AJ58: 0 | AK58: 0 | AL58: 0 | AM58: 0 | AN58: 0 | AO58: 0 | AP58: 0 | AQ58: 0 | AR58: 0.00 | AV58: 0 | AW58: 0 | AX58: 0 | AY58: 0 | AZ58: 0 | BA58: 0 | BB58: 0 | BC58: 0 | BD58: 0.00 | BH58: 0 | BI58: 0 | BJ58: 0 | BK58: 0 | BL58: 0 | BM58: 0 | BN58: 0 | BO58: 0 | BP58: 0.00 | BT58: 0 | BU58: 0 | BV58: 0 | BW58: 0 | BX58: 0 | BY58: 0 | BZ58: 0 | CA58: 0 | CB58: 0.00 | CF58: 0 | CG58: 0 | CI58: 0 | CJ58: 0 | CK58: 0 | CL58: 0 | CM58: 0 | CN58: 0 | CO58: 0 | CP58: 0 | CQ58: 0.00 | CS58: 0 | CT58: 0 | CU58: 0 | CV58: 0 | CX58: 0 | DB58: 0 | DC58: 0 | DD58: 0 | DE58: 0 | DF58: 0 | DG58: 0 | DH58: 0 | DI58: 0 | DJ58: 0 | DK58: 0 | DL58: 0 | DM58: 0 | DN58: 0.00 | DP58: 0 | DQ58: 0 | DR58: 0 | DS58: 0 | DT58: 0.00 | DV58: 0 | DW58: 0 | DX58: 0 | DY58: 0 | DZ58: 0.00 | EB58: 0 | EC58: 0 | ED58: 0 | EE58: 0 | EF58: 0 | EG58: 0 | EH58: 0 | EI58: 0 | EJ58: 0.00 | FD58: 0 | FE58: 0 | FF58: 0 | FG58: 0 | FK58: 0 | FL58: / | FM58: 200 | FN58: 0/200 | FO58: 0 | FP58: / | FQ58: 200 | FR58: 0/200 | FS58: 0 | FT58: / | FU58: 100 | FV58: 0/100 | FW58: 0 | FX58: / | FY58: 100 | FZ58: 0/100 | GA58: 0 | GB58: / | GC58: 200 | GD58: 0/200
A59: 0 | B59: 51 | C59: 51 | D59: 0 | L59: 0 | M59: 0 | N59: 0 | O59: 0 | P59: 0 | Q59: 0 | R59: 0 | S59: 0 | T59: 0.00 | X59: 0 | Y59: 0 | Z59: 0 | AA59: 0 | AB59: 0 | AC59: 0 | AD59: 0 | AE59: 0 | AF59: 0.00 | AJ59: 0 | AK59: 0 | AL59: 0 | AM59: 0 | AN59: 0 | AO59: 0 | AP59: 0 | AQ59: 0 | AR59: 0.00 | AV59: 0 | AW59: 0 | AX59: 0 | AY59: 0 | AZ59: 0 | BA59: 0 | BB59: 0 | BC59: 0 | BD59: 0.00 | BH59: 0 | BI59: 0 | BJ59: 0 | BK59: 0 | BL59: 0 | BM59: 0 | BN59: 0 | BO59: 0 | BP59: 0.00 | BT59: 0 | BU59: 0 | BV59: 0 | BW59: 0 | BX59: 0 | BY59: 0 | BZ59: 0 | CA59: 0 | CB59: 0.00 | CF59: 0 | CG59: 0 | CI59: 0 | CJ59: 0 | CK59: 0 | CL59: 0 | CM59: 0 | CN59: 0 | CO59: 0 | CP59: 0 | CQ59: 0.00 | CS59: 0 | CT59: 0 | CU59: 0 | CV59: 0 | CX59: 0 | DB59: 0 | DC59: 0 | DD59: 0 | DE59: 0 | DF59: 0 | DG59: 0 | DH59: 0 | DI59: 0 | DJ59: 0 | DK59: 0 | DL59: 0 | DM59: 0 | DN59: 0.00 | DP59: 0 | DQ59: 0 | DR59: 0 | DS59: 0 | DT59: 0.00 | DV59: 0 | DW59: 0 | DX59: 0 | DY59: 0 | DZ59: 0.00 | EB59: 0 | EC59: 0 | ED59: 0 | EE59: 0 | EF59: 0 | EG59: 0 | EH59: 0 | EI59: 0 | EJ59: 0.00 | FD59: 0 | FE59: 0 | FF59: 0 | FG59: 0 | FK59: 0 | FL59: / | FM59: 200 | FN59: 0/200 | FO59: 0 | FP59: / | FQ59: 200 | FR59: 0/200 | FS59: 0 | FT59: / | FU59: 100 | FV59: 0/100 | FW59: 0 | FX59: / | FY59: 100 | FZ59: 0/100 | GA59: 0 | GB59: / | GC59: 200 | GD59: 0/200
A60: 0 | B60: 52 | C60: 52 | D60: 0 | L60: 0 | M60: 0 | N60: 0 | O60: 0 | P60: 0 | Q60: 0 | R60: 0 | S60: 0 | T60: 0.00 | X60: 0 | Y60: 0 | Z60: 0 | AA60: 0 | AB60: 0 | AC60: 0 | AD60: 0 | AE60: 0 | AF60: 0.00 | AJ60: 0 | AK60: 0 | AL60: 0 | AM60: 0 | AN60: 0 | AO60: 0 | AP60: 0 | AQ60: 0 | AR60: 0.00 | AV60: 0 | AW60: 0 | AX60: 0 | AY60: 0 | AZ60: 0 | BA60: 0 | BB60: 0 | BC60: 0 | BD60: 0.00 | BH60: 0 | BI60: 0 | BJ60: 0 | BK60: 0 | BL60: 0 | BM60: 0 | BN60: 0 | BO60: 0 | BP60: 0.00 | BT60: 0 | BU60: 0 | BV60: 0 | BW60: 0 | BX60: 0 | BY60: 0 | BZ60: 0 | CA60: 0 | CB60: 0.00 | CF60: 0 | CG60: 0 | CI60: 0 | CJ60: 0 | CK60: 0 | CL60: 0 | CM60: 0 | CN60: 0 | CO60: 0 | CP60: 0 | CQ60: 0.00 | CS60: 0 | CT60: 0 | CU60: 0 | CV60: 0 | CX60: 0 | DB60: 0 | DC60: 0 | DD60: 0 | DE60: 0 | DF60: 0 | DG60: 0 | DH60: 0 | DI60: 0 | DJ60: 0 | DK60: 0 | DL60: 0 | DM60: 0 | DN60: 0.00 | DP60: 0 | DQ60: 0 | DR60: 0 | DS60: 0 | DT60: 0.00 | DV60: 0 | DW60: 0 | DX60: 0 | DY60: 0 | DZ60: 0.00 | EB60: 0 | EC60: 0 | ED60: 0 | EE60: 0 | EF60: 0 | EG60: 0 | EH60: 0 | EI60: 0 | EJ60: 0.00 | FD60: 0 | FE60: 0 | FF60: 0 | FG60: 0 | FK60: 0 | FL60: / | FM60: 200 | FN60: 0/200 | FO60: 0 | FP60: / | FQ60: 200 | FR60: 0/200 | FS60: 0 | FT60: / | FU60: 100 | FV60: 0/100 | FW60: 0 | FX60: / | FY60: 100 | FZ60: 0/100 | GA60: 0 | GB60: / | GC60: 200 | GD60: 0/200
A61: 0 | B61: 53 | C61: 53 | D61: 0 | L61: 0 | M61: 0 | N61: 0 | O61: 0 | P61: 0 | Q61: 0 | R61: 0 | S61: 0 | T61: 0.00 | X61: 0 | Y61: 0 | Z61: 0 | AA61: 0 | AB61: 0 | AC61: 0 | AD61: 0 | AE61: 0 | AF61: 0.00 | AJ61: 0 | AK61: 0 | AL61: 0 | AM61: 0 | AN61: 0 | AO61: 0 | AP61: 0 | AQ61: 0 | AR61: 0.00 | AV61: 0 | AW61: 0 | AX61: 0 | AY61: 0 | AZ61: 0 | BA61: 0 | BB61: 0 | BC61: 0 | BD61: 0.00 | BH61: 0 | BI61: 0 | BJ61: 0 | BK61: 0 | BL61: 0 | BM61: 0 | BN61: 0 | BO61: 0 | BP61: 0.00 | BT61: 0 | BU61: 0 | BV61: 0 | BW61: 0 | BX61: 0 | BY61: 0 | BZ61: 0 | CA61: 0 | CB61: 0.00 | CF61: 0 | CG61: 0 | CI61: 0 | CJ61: 0 | CK61: 0 | CL61: 0 | CM61: 0 | CN61: 0 | CO61: 0 | CP61: 0 | CQ61: 0.00 | CS61: 0 | CT61: 0 | CU61: 0 | CV61: 0 | CX61: 0 | DB61: 0 | DC61: 0 | DD61: 0 | DE61: 0 | DF61: 0 | DG61: 0 | DH61: 0 | DI61: 0 | DJ61: 0 | DK61: 0 | DL61: 0 | DM61: 0 | DN61: 0.00 | DP61: 0 | DQ61: 0 | DR61: 0 | DS61: 0 | DT61: 0.00 | DV61: 0 | DW61: 0 | DX61: 0 | DY61: 0 | DZ61: 0.00 | EB61: 0 | EC61: 0 | ED61: 0 | EE61: 0 | EF61: 0 | EG61: 0 | EH61: 0 | EI61: 0 | EJ61: 0.00 | FD61: 0 | FE61: 0 | FF61: 0 | FG61: 0 | FK61: 0 | FL61: / | FM61: 200 | FN61: 0/200 | FO61: 0 | FP61: / | FQ61: 200 | FR61: 0/200 | FS61: 0 | FT61: / | FU61: 100 | FV61: 0/100 | FW61: 0 | FX61: / | FY61: 100 | FZ61: 0/100 | GA61: 0 | GB61: / | GC61: 200 | GD61: 0/200
A62: 0 | B62: 54 | C62: 54 | D62: 0 | L62: 0 | M62: 0 | N62: 0 | O62: 0 | P62: 0 | Q62: 0 | R62: 0 | S62: 0 | T62: 0.00 | X62: 0 | Y62: 0 | Z62: 0 | AA62: 0 | AB62: 0 | AC62: 0 | AD62: 0 | AE62: 0 | AF62: 0.00 | AJ62: 0 | AK62: 0 | AL62: 0 | AM62: 0 | AN62: 0 | AO62: 0 | AP62: 0 | AQ62: 0 | AR62: 0.00 | AV62: 0 | AW62: 0 | AX62: 0 | AY62: 0 | AZ62: 0 | BA62: 0 | BB62: 0 | BC62: 0 | BD62: 0.00 | BH62: 0 | BI62: 0 | BJ62: 0 | BK62: 0 | BL62: 0 | BM62: 0 | BN62: 0 | BO62: 0 | BP62: 0.00 | BT62: 0 | BU62: 0 | BV62: 0 | BW62: 0 | BX62: 0 | BY62: 0 | BZ62: 0 | CA62: 0 | CB62: 0.00 | CF62: 0 | CG62: 0 | CI62: 0 | CJ62: 0 | CK62: 0 | CL62: 0 | CM62: 0 | CN62: 0 | CO62: 0 | CP62: 0 | CQ62: 0.00 | CS62: 0 | CT62: 0 | CU62: 0 | CV62: 0 | CX62: 0 | DB62: 0 | DC62: 0 | DD62: 0 | DE62: 0 | DF62: 0 | DG62: 0 | DH62: 0 | DI62: 0 | DJ62: 0 | DK62: 0 | DL62: 0 | DM62: 0 | DN62: 0.00 | DP62: 0 | DQ62: 0 | DR62: 0 | DS62: 0 | DT62: 0.00 | DV62: 0 | DW62: 0 | DX62: 0 | DY62: 0 | DZ62: 0.00 | EB62: 0 | EC62: 0 | ED62: 0 | EE62: 0 | EF62: 0 | EG62: 0 | EH62: 0 | EI62: 0 | EJ62: 0.00 | FD62: 0 | FE62: 0 | FF62: 0 | FG62: 0 | FK62: 0 | FL62: / | FM62: 200 | FN62: 0/200 | FO62: 0 | FP62: / | FQ62: 200 | FR62: 0/200 | FS62: 0 | FT62: / | FU62: 100 | FV62: 0/100 | FW62: 0 | FX62: / | FY62: 100 | FZ62: 0/100 | GA62: 0 | GB62: / | GC62: 200 | GD62: 0/200
A63: 0 | B63: 55 | C63: 55 | D63: 0 | L63: 0 | M63: 0 | N63: 0 | O63: 0 | P63: 0 | Q63: 0 | R63: 0 | S63: 0 | T63: 0.00 | X63: 0 | Y63: 0 | Z63: 0 | AA63: 0 | AB63: 0 | AC63: 0 | AD63: 0 | AE63: 0 | AF63: 0.00 | AJ63: 0 | AK63: 0 | AL63: 0 | AM63: 0 | AN63: 0 | AO63: 0 | AP63: 0 | AQ63: 0 | AR63: 0.00 | AV63: 0 | AW63: 0 | AX63: 0 | AY63: 0 | AZ63: 0 | BA63: 0 | BB63: 0 | BC63: 0 | BD63: 0.00 | BH63: 0 | BI63: 0 | BJ63: 0 | BK63: 0 | BL63: 0 | BM63: 0 | BN63: 0 | BO63: 0 | BP63: 0.00 | BT63: 0 | BU63: 0 | BV63: 0 | BW63: 0 | BX63: 0 | BY63: 0 | BZ63: 0 | CA63: 0 | CB63: 0.00 | CF63: 0 | CG63: 0 | CI63: 0 | CJ63: 0 | CK63: 0 | CL63: 0 | CM63: 0 | CN63: 0 | CO63: 0 | CP63: 0 | CQ63: 0.00 | CS63: 0 | CT63: 0 | CU63: 0 | CV63: 0 | CX63: 0 | DB63: 0 | DC63: 0 | DD63: 0 | DE63: 0 | DF63: 0 | DG63: 0 | DH63: 0 | DI63: 0 | DJ63: 0 | DK63: 0 | DL63: 0 | DM63: 0 | DN63: 0.00 | DP63: 0 | DQ63: 0 | DR63: 0 | DS63: 0 | DT63: 0.00 | DV63: 0 | DW63: 0 | DX63: 0 | DY63: 0 | DZ63: 0.00 | EB63: 0 | EC63: 0 | ED63: 0 | EE63: 0 | EF63: 0 | EG63: 0 | EH63: 0 | EI63: 0 | EJ63: 0.00 | FD63: 0 | FE63: 0 | FF63: 0 | FG63: 0 | FK63: 0 | FL63: / | FM63: 200 | FN63: 0/200 | FO63: 0 | FP63: / | FQ63: 200 | FR63: 0/200 | FS63: 0 | FT63: / | FU63: 100 | FV63: 0/100 | FW63: 0 | FX63: / | FY63: 100 | FZ63: 0/100 | GA63: 0 | GB63: / | GC63: 200 | GD63: 0/200
A64: 0 | B64: 56 | C64: 56 | D64: 0 | L64: 0 | M64: 0 | N64: 0 | O64: 0 | P64: 0 | Q64: 0 | R64: 0 | S64: 0 | T64: 0.00 | X64: 0 | Y64: 0 | Z64: 0 | AA64: 0 | AB64: 0 | AC64: 0 | AD64: 0 | AE64: 0 | AF64: 0.00 | AJ64: 0 | AK64: 0 | AL64: 0 | AM64: 0 | AN64: 0 | AO64: 0 | AP64: 0 | AQ64: 0 | AR64: 0.00 | AV64: 0 | AW64: 0 | AX64: 0 | AY64: 0 | AZ64: 0 | BA64: 0 | BB64: 0 | BC64: 0 | BD64: 0.00 | BH64: 0 | BI64: 0 | BJ64: 0 | BK64: 0 | BL64: 0 | BM64: 0 | BN64: 0 | BO64: 0 | BP64: 0.00 | BT64: 0 | BU64: 0 | BV64: 0 | BW64: 0 | BX64: 0 | BY64: 0 | BZ64: 0 | CA64: 0 | CB64: 0.00 | CF64: 0 | CG64: 0 | CI64: 0 | CJ64: 0 | CK64: 0 | CL64: 0 | CM64: 0 | CN64: 0 | CO64: 0 | CP64: 0 | CQ64: 0.00 | CS64: 0 | CT64: 0 | CU64: 0 | CV64: 0 | CX64: 0 | DB64: 0 | DC64: 0 | DD64: 0 | DE64: 0 | DF64: 0 | DG64: 0 | DH64: 0 | DI64: 0 | DJ64: 0 | DK64: 0 | DL64: 0 | DM64: 0 | DN64: 0.00 | DP64: 0 | DQ64: 0 | DR64: 0 | DS64: 0 | DT64: 0.00 | DV64: 0 | DW64: 0 | DX64: 0 | DY64: 0 | DZ64: 0.00 | EB64: 0 | EC64: 0 | ED64: 0 | EE64: 0 | EF64: 0 | EG64: 0 | EH64: 0 | EI64: 0 | EJ64: 0.00 | FD64: 0 | FE64: 0 | FF64: 0 | FG64: 0 | FK64: 0 | FL64: / | FM64: 200 | FN64: 0/200 | FO64: 0 | FP64: / | FQ64: 200 | FR64: 0/200 | FS64: 0 | FT64: / | FU64: 100 | FV64: 0/100 | FW64: 0 | FX64: / | FY64: 100 | FZ64: 0/100 | GA64: 0 | GB64: / | GC64: 200 | GD64: 0/200
A65: 0 | B65: 57 | C65: 57 | D65: 0 | L65: 0 | M65: 0 | N65: 0 | O65: 0 | P65: 0 | Q65: 0 | R65: 0 | S65: 0 | T65: 0.00 | X65: 0 | Y65: 0 | Z65: 0 | AA65: 0 | AB65: 0 | AC65: 0 | AD65: 0 | AE65: 0 | AF65: 0.00 | AJ65: 0 | AK65: 0 | AL65: 0 | AM65: 0 | AN65: 0 | AO65: 0 | AP65: 0 | AQ65: 0 | AR65: 0.00 | AV65: 0 | AW65: 0 | AX65: 0 | AY65: 0 | AZ65: 0 | BA65: 0 | BB65: 0 | BC65: 0 | BD65: 0.00 | BH65: 0 | BI65: 0 | BJ65: 0 | BK65: 0 | BL65: 0 | BM65: 0 | BN65: 0 | BO65: 0 | BP65: 0.00 | BT65: 0 | BU65: 0 | BV65: 0 | BW65: 0 | BX65: 0 | BY65: 0 | BZ65: 0 | CA65: 0 | CB65: 0.00 | CF65: 0 | CG65: 0 | CI65: 0 | CJ65: 0 | CK65: 0 | CL65: 0 | CM65: 0 | CN65: 0 | CO65: 0 | CP65: 0 | CQ65: 0.00 | CS65: 0 | CT65: 0 | CU65: 0 | CV65: 0 | CX65: 0 | DB65: 0 | DC65: 0 | DD65: 0 | DE65: 0 | DF65: 0 | DG65: 0 | DH65: 0 | DI65: 0 | DJ65: 0 | DK65: 0 | DL65: 0 | DM65: 0 | DN65: 0.00 | DP65: 0 | DQ65: 0 | DR65: 0 | DS65: 0 | DT65: 0.00 | DV65: 0 | DW65: 0 | DX65: 0 | DY65: 0 | DZ65: 0.00 | EB65: 0 | EC65: 0 | ED65: 0 | EE65: 0 | EF65: 0 | EG65: 0 | EH65: 0 | EI65: 0 | EJ65: 0.00 | FD65: 0 | FE65: 0 | FF65: 0 | FG65: 0 | FK65: 0 | FL65: / | FM65: 200 | FN65: 0/200 | FO65: 0 | FP65: / | FQ65: 200 | FR65: 0/200 | FS65: 0 | FT65: / | FU65: 100 | FV65: 0/100 | FW65: 0 | FX65: / | FY65: 100 | FZ65: 0/100 | GA65: 0 | GB65: / | GC65: 200 | GD65: 0/200
A66: 0 | B66: 58 | C66: 58 | D66: 0 | L66: 0 | M66: 0 | N66: 0 | O66: 0 | P66: 0 | Q66: 0 | R66: 0 | S66: 0 | T66: 0.00 | X66: 0 | Y66: 0 | Z66: 0 | AA66: 0 | AB66: 0 | AC66: 0 | AD66: 0 | AE66: 0 | AF66: 0.00 | AJ66: 0 | AK66: 0 | AL66: 0 | AM66: 0 | AN66: 0 | AO66: 0 | AP66: 0 | AQ66: 0 | AR66: 0.00 | AV66: 0 | AW66: 0 | AX66: 0 | AY66: 0 | AZ66: 0 | BA66: 0 | BB66: 0 | BC66: 0 | BD66: 0.00 | BH66: 0 | BI66: 0 | BJ66: 0 | BK66: 0 | BL66: 0 | BM66: 0 | BN66: 0 | BO66: 0 | BP66: 0.00 | BT66: 0 | BU66: 0 | BV66: 0 | BW66: 0 | BX66: 0 | BY66: 0 | BZ66: 0 | CA66: 0 | CB66: 0.00 | CF66: 0 | CG66: 0 | CI66: 0 | CJ66: 0 | CK66: 0 | CL66: 0 | CM66: 0 | CN66: 0 | CO66: 0 | CP66: 0 | CQ66: 0.00 | CS66: 0 | CT66: 0 | CU66: 0 | CV66: 0 | CX66: 0 | DB66: 0 | DC66: 0 | DD66: 0 | DE66: 0 | DF66: 0 | DG66: 0 | DH66: 0 | DI66: 0 | DJ66: 0 | DK66: 0 | DL66: 0 | DM66: 0 | DN66: 0.00 | DP66: 0 | DQ66: 0 | DR66: 0 | DS66: 0 | DT66: 0.00 | DV66: 0 | DW66: 0 | DX66: 0 | DY66: 0 | DZ66: 0.00 | EB66: 0 | EC66: 0 | ED66: 0 | EE66: 0 | EF66: 0 | EG66: 0 | EH66: 0 | EI66: 0 | EJ66: 0.00 | FD66: 0 | FE66: 0 | FF66: 0 | FG66: 0 | FK66: 0 | FL66: / | FM66: 200 | FN66: 0/200 | FO66: 0 | FP66: / | FQ66: 200 | FR66: 0/200 | FS66: 0 | FT66: / | FU66: 100 | FV66: 0/100 | FW66: 0 | FX66: / | FY66: 100 | FZ66: 0/100 | GA66: 0 | GB66: / | GC66: 200 | GD66: 0/200
A67: 0 | B67: 59 | C67: 59 | D67: 0 | L67: 0 | M67: 0 | N67: 0 | O67: 0 | P67: 0 | Q67: 0 | R67: 0 | S67: 0 | T67: 0.00 | X67: 0 | Y67: 0 | Z67: 0 | AA67: 0 | AB67: 0 | AC67: 0 | AD67: 0 | AE67: 0 | AF67: 0.00 | AJ67: 0 | AK67: 0 | AL67: 0 | AM67: 0 | AN67: 0 | AO67: 0 | AP67: 0 | AQ67: 0 | AR67: 0.00 | AV67: 0 | AW67: 0 | AX67: 0 | AY67: 0 | AZ67: 0 | BA67: 0 | BB67: 0 | BC67: 0 | BD67: 0.00 | BH67: 0 | BI67: 0 | BJ67: 0 | BK67: 0 | BL67: 0 | BM67: 0 | BN67: 0 | BO67: 0 | BP67: 0.00 | BT67: 0 | BU67: 0 | BV67: 0 | BW67: 0 | BX67: 0 | BY67: 0 | BZ67: 0 | CA67: 0 | CB67: 0.00 | CF67: 0 | CG67: 0 | CI67: 0 | CJ67: 0 | CK67: 0 | CL67: 0 | CM67: 0 | CN67: 0 | CO67: 0 | CP67: 0 | CQ67: 0.00 | CS67: 0 | CT67: 0 | CU67: 0 | CV67: 0 | CX67: 0 | DB67: 0 | DC67: 0 | DD67: 0 | DE67: 0 | DF67: 0 | DG67: 0 | DH67: 0 | DI67: 0 | DJ67: 0 | DK67: 0 | DL67: 0 | DM67: 0 | DN67: 0.00 | DP67: 0 | DQ67: 0 | DR67: 0 | DS67: 0 | DT67: 0.00 | DV67: 0 | DW67: 0 | DX67: 0 | DY67: 0 | DZ67: 0.00 | EB67: 0 | EC67: 0 | ED67: 0 | EE67: 0 | EF67: 0 | EG67: 0 | EH67: 0 | EI67: 0 | EJ67: 0.00 | FD67: 0 | FE67: 0 | FF67: 0 | FG67: 0 | FK67: 0 | FL67: / | FM67: 200 | FN67: 0/200 | FO67: 0 | FP67: / | FQ67: 200 | FR67: 0/200 | FS67: 0 | FT67: / | FU67: 100 | FV67: 0/100 | FW67: 0 | FX67: / | FY67: 100 | FZ67: 0/100 | GA67: 0 | GB67: / | GC67: 200 | GD67: 0/200
A68: 0 | B68: 60 | C68: 60 | D68: 0 | L68: 0 | M68: 0 | N68: 0 | O68: 0 | P68: 0 | Q68: 0 | R68: 0 | S68: 0 | T68: 0.00 | X68: 0 | Y68: 0 | Z68: 0 | AA68: 0 | AB68: 0 | AC68: 0 | AD68: 0 | AE68: 0 | AF68: 0.00 | AJ68: 0 | AK68: 0 | AL68: 0 | AM68: 0 | AN68: 0 | AO68: 0 | AP68: 0 | AQ68: 0 | AR68: 0.00 | AV68: 0 | AW68: 0 | AX68: 0 | AY68: 0 | AZ68: 0 | BA68: 0 | BB68: 0 | BC68: 0 | BD68: 0.00 | BH68: 0 | BI68: 0 | BJ68: 0 | BK68: 0 | BL68: 0 | BM68: 0 | BN68: 0 | BO68: 0 | BP68: 0.00 | BT68: 0 | BU68: 0 | BV68: 0 | BW68: 0 | BX68: 0 | BY68: 0 | BZ68: 0 | CA68: 0 | CB68: 0.00 | CF68: 0 | CG68: 0 | CI68: 0 | CJ68: 0 | CK68: 0 | CL68: 0 | CM68: 0 | CN68: 0 | CO68: 0 | CP68: 0 | CQ68: 0.00 | CS68: 0 | CT68: 0 | CU68: 0 | CV68: 0 | CX68: 0 | DB68: 0 | DC68: 0 | DD68: 0 | DE68: 0 | DF68: 0 | DG68: 0 | DH68: 0 | DI68: 0 | DJ68: 0 | DK68: 0 | DL68: 0 | DM68: 0 | DN68: 0.00 | DP68: 0 | DQ68: 0 | DR68: 0 | DS68: 0 | DT68: 0.00 | DV68: 0 | DW68: 0 | DX68: 0 | DY68: 0 | DZ68: 0.00 | EB68: 0 | EC68: 0 | ED68: 0 | EE68: 0 | EF68: 0 | EG68: 0 | EH68: 0 | EI68: 0 | EJ68: 0.00 | FD68: 0 | FE68: 0 | FF68: 0 | FG68: 0 | FK68: 0 | FL68: / | FM68: 200 | FN68: 0/200 | FO68: 0 | FP68: / | FQ68: 200 | FR68: 0/200 | FS68: 0 | FT68: / | FU68: 100 | FV68: 0/100 | FW68: 0 | FX68: / | FY68: 100 | FZ68: 0/100 | GA68: 0 | GB68: / | GC68: 200 | GD68: 0/200
A69: 0 | B69: 61 | C69: 61 | D69: 0 | L69: 0 | M69: 0 | N69: 0 | O69: 0 | P69: 0 | Q69: 0 | R69: 0 | S69: 0 | T69: 0.00 | X69: 0 | Y69: 0 | Z69: 0 | AA69: 0 | AB69: 0 | AC69: 0 | AD69: 0 | AE69: 0 | AF69: 0.00 | AJ69: 0 | AK69: 0 | AL69: 0 | AM69: 0 | AN69: 0 | AO69: 0 | AP69: 0 | AQ69: 0 | AR69: 0.00 | AV69: 0 | AW69: 0 | AX69: 0 | AY69: 0 | AZ69: 0 | BA69: 0 | BB69: 0 | BC69: 0 | BD69: 0.00 | BH69: 0 | BI69: 0 | BJ69: 0 | BK69: 0 | BL69: 0 | BM69: 0 | BN69: 0 | BO69: 0 | BP69: 0.00 | BT69: 0 | BU69: 0 | BV69: 0 | BW69: 0 | BX69: 0 | BY69: 0 | BZ69: 0 | CA69: 0 | CB69: 0.00 | CF69: 0 | CG69: 0 | CI69: 0 | CJ69: 0 | CK69: 0 | CL69: 0 | CM69: 0 | CN69: 0 | CO69: 0 | CP69: 0 | CQ69: 0.00 | CS69: 0 | CT69: 0 | CU69: 0 | CV69: 0 | CX69: 0 | DB69: 0 | DC69: 0 | DD69: 0 | DE69: 0 | DF69: 0 | DG69: 0 | DH69: 0 | DI69: 0 | DJ69: 0 | DK69: 0 | DL69: 0 | DM69: 0 | DN69: 0.00 | DP69: 0 | DQ69: 0 | DR69: 0 | DS69: 0 | DT69: 0.00 | DV69: 0 | DW69: 0 | DX69: 0 | DY69: 0 | DZ69: 0.00 | EB69: 0 | EC69: 0 | ED69: 0 | EE69: 0 | EF69: 0 | EG69: 0 | EH69: 0 | EI69: 0 | EJ69: 0.00 | FD69: 0 | FE69: 0 | FF69: 0 | FG69: 0 | FK69: 0 | FL69: / | FM69: 200 | FN69: 0/200 | FO69: 0 | FP69: / | FQ69: 200 | FR69: 0/200 | FS69: 0 | FT69: / | FU69: 100 | FV69: 0/100 | FW69: 0 | FX69: / | FY69: 100 | FZ69: 0/100 | GA69: 0 | GB69: / | GC69: 200 | GD69: 0/200
A70: 0 | B70: 62 | C70: 62 | D70: 0 | L70: 0 | M70: 0 | N70: 0 | O70: 0 | P70: 0 | Q70: 0 | R70: 0 | S70: 0 | T70: 0.00 | X70: 0 | Y70: 0 | Z70: 0 | AA70: 0 | AB70: 0 | AC70: 0 | AD70: 0 | AE70: 0 | AF70: 0.00 | AJ70: 0 | AK70: 0 | AL70: 0 | AM70: 0 | AN70: 0 | AO70: 0 | AP70: 0 | AQ70: 0 | AR70: 0.00 | AV70: 0 | AW70: 0 | AX70: 0 | AY70: 0 | AZ70: 0 | BA70: 0 | BB70: 0 | BC70: 0 | BD70: 0.00 | BH70: 0 | BI70: 0 | BJ70: 0 | BK70: 0 | BL70: 0 | BM70: 0 | BN70: 0 | BO70: 0 | BP70: 0.00 | BT70: 0 | BU70: 0 | BV70: 0 | BW70: 0 | BX70: 0 | BY70: 0 | BZ70: 0 | CA70: 0 | CB70: 0.00 | CF70: 0 | CG70: 0 | CI70: 0 | CJ70: 0 | CK70: 0 | CL70: 0 | CM70: 0 | CN70: 0 | CO70: 0 | CP70: 0 | CQ70: 0.00 | CS70: 0 | CT70: 0 | CU70: 0 | CV70: 0 | CX70: 0 | DB70: 0 | DC70: 0 | DD70: 0 | DE70: 0 | DF70: 0 | DG70: 0 | DH70: 0 | DI70: 0 | DJ70: 0 | DK70: 0 | DL70: 0 | DM70: 0 | DN70: 0.00 | DP70: 0 | DQ70: 0 | DR70: 0 | DS70: 0 | DT70: 0.00 | DV70: 0 | DW70: 0 | DX70: 0 | DY70: 0 | DZ70: 0.00 | EB70: 0 | EC70: 0 | ED70: 0 | EE70: 0 | EF70: 0 | EG70: 0 | EH70: 0 | EI70: 0 | EJ70: 0.00 | FD70: 0 | FE70: 0 | FF70: 0 | FG70: 0 | FK70: 0 | FL70: / | FM70: 200 | FN70: 0/200 | FO70: 0 | FP70: / | FQ70: 200 | FR70: 0/200 | FS70: 0 | FT70: / | FU70: 100 | FV70: 0/100 | FW70: 0 | FX70: / | FY70: 100 | FZ70: 0/100 | GA70: 0 | GB70: / | GC70: 200 | GD70: 0/200
A71: 0 | B71: 63 | C71: 63 | D71: 0 | L71: 0 | M71: 0 | N71: 0 | O71: 0 | P71: 0 | Q71: 0 | R71: 0 | S71: 0 | T71: 0.00 | X71: 0 | Y71: 0 | Z71: 0 | AA71: 0 | AB71: 0 | AC71: 0 | AD71: 0 | AE71: 0 | AF71: 0.00 | AJ71: 0 | AK71: 0 | AL71: 0 | AM71: 0 | AN71: 0 | AO71: 0 | AP71: 0 | AQ71: 0 | AR71: 0.00 | AV71: 0 | AW71: 0 | AX71: 0 | AY71: 0 | AZ71: 0 | BA71: 0 | BB71: 0 | BC71: 0 | BD71: 0.00 | BH71: 0 | BI71: 0 | BJ71: 0 | BK71: 0 | BL71: 0 | BM71: 0 | BN71: 0 | BO71: 0 | BP71: 0.00 | BT71: 0 | BU71: 0 | BV71: 0 | BW71: 0 | BX71: 0 | BY71: 0 | BZ71: 0 | CA71: 0 | CB71: 0.00 | CF71: 0 | CG71: 0 | CI71: 0 | CJ71: 0 | CK71: 0 | CL71: 0 | CM71: 0 | CN71: 0 | CO71: 0 | CP71: 0 | CQ71: 0.00 | CS71: 0 | CT71: 0 | CU71: 0 | CV71: 0 | CX71: 0 | DB71: 0 | DC71: 0 | DD71: 0 | DE71: 0 | DF71: 0 | DG71: 0 | DH71: 0 | DI71: 0 | DJ71: 0 | DK71: 0 | DL71: 0 | DM71: 0 | DN71: 0.00 | DP71: 0 | DQ71: 0 | DR71: 0 | DS71: 0 | DT71: 0.00 | DV71: 0 | DW71: 0 | DX71: 0 | DY71: 0 | DZ71: 0.00 | EB71: 0 | EC71: 0 | ED71: 0 | EE71: 0 | EF71: 0 | EG71: 0 | EH71: 0 | EI71: 0 | EJ71: 0.00 | FD71: 0 | FE71: 0 | FF71: 0 | FG71: 0 | FK71: 0 | FL71: / | FM71: 200 | FN71: 0/200 | FO71: 0 | FP71: / | FQ71: 200 | FR71: 0/200 | FS71: 0 | FT71: / | FU71: 100 | FV71: 0/100 | FW71: 0 | FX71: / | FY71: 100 | FZ71: 0/100 | GA71: 0 | GB71: / | GC71: 200 | GD71: 0/200
A72: 0 | B72: 64 | C72: 64 | D72: 0 | L72: 0 | M72: 0 | N72: 0 | O72: 0 | P72: 0 | Q72: 0 | R72: 0 | S72: 0 | T72: 0.00 | X72: 0 | Y72: 0 | Z72: 0 | AA72: 0 | AB72: 0 | AC72: 0 | AD72: 0 | AE72: 0 | AF72: 0.00 | AJ72: 0 | AK72: 0 | AL72: 0 | AM72: 0 | AN72: 0 | AO72: 0 | AP72: 0 | AQ72: 0 | AR72: 0.00 | AV72: 0 | AW72: 0 | AX72: 0 | AY72: 0 | AZ72: 0 | BA72: 0 | BB72: 0 | BC72: 0 | BD72: 0.00 | BH72: 0 | BI72: 0 | BJ72: 0 | BK72: 0 | BL72: 0 | BM72: 0 | BN72: 0 | BO72: 0 | BP72: 0.00 | BT72: 0 | BU72: 0 | BV72: 0 | BW72: 0 | BX72: 0 | BY72: 0 | BZ72: 0 | CA72: 0 | CB72: 0.00 | CF72: 0 | CG72: 0 | CI72: 0 | CJ72: 0 | CK72: 0 | CL72: 0 | CM72: 0 | CN72: 0 | CO72: 0 | CP72: 0 | CQ72: 0.00 | CS72: 0 | CT72: 0 | CU72: 0 | CV72: 0 | CX72: 0 | DB72: 0 | DC72: 0 | DD72: 0 | DE72: 0 | DF72: 0 | DG72: 0 | DH72: 0 | DI72: 0 | DJ72: 0 | DK72: 0 | DL72: 0 | DM72: 0 | DN72: 0.00 | DP72: 0 | DQ72: 0 | DR72: 0 | DS72: 0 | DT72: 0.00 | DV72: 0 | DW72: 0 | DX72: 0 | DY72: 0 | DZ72: 0.00 | EB72: 0 | EC72: 0 | ED72: 0 | EE72: 0 | EF72: 0 | EG72: 0 | EH72: 0 | EI72: 0 | EJ72: 0.00 | FD72: 0 | FE72: 0 | FF72: 0 | FG72: 0 | FK72: 0 | FL72: / | FM72: 200 | FN72: 0/200 | FO72: 0 | FP72: / | FQ72: 200 | FR72: 0/200 | FS72: 0 | FT72: / | FU72: 100 | FV72: 0/100 | FW72: 0 | FX72: / | FY72: 100 | FZ72: 0/100 | GA72: 0 | GB72: / | GC72: 200 | GD72: 0/200
A73: 0 | B73: 65 | C73: 65 | D73: 0 | L73: 0 | M73: 0 | N73: 0 | O73: =SUM(L73:N73) -> 0 | P73: 0 | Q73: =SUM(O73,P73) -> 0 | R73: 0 | S73: =SUM(Q73,R73) -> 0 | T73: 0.00 | X73: 0 | Y73: 0 | Z73: 0 | AA73: =SUM(X73:Z73) -> 0 | AB73: 0 | AC73: =SUM(AA73,AB73) -> 0 | AD73: 0 | AE73: =SUM(AC73,AD73) -> 0 | AF73: 0.00 | AJ73: 0 | AK73: 0 | AL73: 0 | AM73: =SUM(AJ73:AL73) -> 0 | AN73: 0 | AO73: =SUM(AM73,AN73) -> 0 | AP73: 0 | AQ73: =SUM(AO73,AP73) -> 0 | AR73: 0.00 | AV73: 0 | AW73: 0 | AX73: 0 | AY73: =SUM(AV73:AX73) -> 0 | AZ73: 0 | BA73: =SUM(AY73,AZ73) -> 0 | BB73: 0 | BC73: =SUM(BA73,BB73) -> 0 | BD73: 0.00 | BH73: 0 | BI73: 0 | BJ73: 0 | BK73: =SUM(BH73:BJ73) -> 0 | BL73: 0 | BM73: =SUM(BK73,BL73) -> 0 | BN73: 0 | BO73: =SUM(BM73,BN73) -> 0 | BP73: 0.00 | BT73: 0 | BU73: 0 | BV73: 0 | BW73: =SUM(BT73:BV73) -> 0 | BX73: 0 | BY73: =SUM(BW73,BX73) -> 0 | BZ73: 0 | CA73: =SUM(BY73,BZ73) -> 0 | CB73: 0.00 | CF73: 0 | CG73: 0 | CI73: 0 | CJ73: 0 | CK73: 0 | CL73: 0 | CM73: 0 | CN73: =IF($S$7="NA","NA",0) -> 0 | CO73: 0 | CP73: 0 | CQ73: 0.00 | CS73: 0 | CT73: 0 | CU73: 0 | CV73: 0 | CX73: 0 | DB73: 0 | DC73: 0 | DD73: 0 | DE73: 0 | DF73: 0 | DG73: 0 | DH73: 0 | DI73: =IF($S$7="NA","NA",0) -> 0 | DJ73: 0 | DK73: 0 | DL73: 0 | DM73: 0 | DN73: 0.00 | DP73: 0 | DQ73: 0 | DR73: 0 | DS73: 0 | DT73: 0.00 | DV73: 0 | DW73: 0 | DX73: 0 | DY73: 0 | DZ73: 0.00 | EB73: 0 | EC73: 0 | ED73: 0 | EE73: 0 | EF73: 0 | EG73: 0 | EH73: 0 | EI73: 0 | EJ73: 0.00 | FD73: 0 | FE73: 0 | FF73: 0 | FG73: 0 | FK73: 0 | FL73: / | FM73: 200 | FN73: 0/200 | FO73: 0 | FP73: / | FQ73: 200 | FR73: 0/200 | FS73: 0 | FT73: / | FU73: 100 | FV73: 0/100 | FW73: 0 | FX73: / | FY73: 100 | FZ73: 0/100 | GA73: 0 | GB73: / | GC73: 200 | GD73: =CONCATENATE(GA73,GB73,GC73) -> 0/200
A74: =G74 -> 0 | B74: 66 | C74: 66 | D74: =IF(E74>0,$G$4,0) -> 0 | L74: 0 | M74: 0 | N74: 0 | O74: 0 | P74: 0 | Q74: 0 | R74: 0 | S74: 0 | T74: =IF(OR(P74="",R74=""),"",S74/S$7*100) -> 0.00 | U74: =IF(R74="AB","AB",IF(AND(OR(L74="ab",L74="ml"),OR(M74="ab",M74="ml"),OR(O74="ab",O74="ml")),"AB",IF(AND(OR(L74="ab",L74="ml"),OR(O74="ab",O74="ml")),"AB",""))) ->  | V74: =IF(OR($G74="NSO",$G74="",R74=""),"",IF(OR(U74="AB",R74="ab"),"AB",IF(AND(T74>=36,R74>=20),"P",IF(AND(T74>=34,R74>=20,COUNTIF(N74:R74,"ml")=0),"G2",IF(AND(T74>=31,R74>=20,COUNTIF(N74:R74,"ml")=0),"G1",IF(T74>=25,"S","F")))))) ->  | W74: =IF(OR(V74="",V74=0,V74="S",V74="F",V74="AB"),V74,IF(T74>=75,"D",IF(T74>=60,"I",IF(T74>=48,"II",IF(T74>=36,"III",V74))))) ->  | X74: 0 | Y74: 0 | Z74: 0 | AA74: 0 | AB74: 0 | AC74: 0 | AD74: 0 | AE74: 0 | AF74: =IF(OR(AB74="",AD74=""),"",AE74/AE$7*100) -> 0.00 | AG74: =IF(AD74="AB","AB",IF(AND(OR(X74="ab",X74="ml"),OR(Y74="ab",Y74="ml"),OR(AA74="ab",AA74="ml")),"AB",IF(AND(OR(X74="ab",X74="ml"),OR(AA74="ab",AA74="ml")),"AB",""))) ->  | AH74: =IF(OR($G74="NSO",$G74="",AD74=""),"",IF(OR(AG74="AB",AD74="ab"),"AB",IF(AND(AF74>=36,AD74>=20),"P",IF(AND(AF74>=34,AD74>=20,COUNTIF(Z74:AD74,"ml")=0),"G2",IF(AND(AF74>=31,AD74>=20,COUNTIF(Z74:AD74,"ml")=0),"G1",IF(AF74>=25,"S","F")))))) ->  | AI74: =IF(OR(AH74="",AH74=0,AH74="S",AH74="F",AH74="AB"),AH74,IF(AF74>=75,"D",IF(AF74>=60,"I",IF(AF74>=48,"II",IF(AF74>=36,"III",AH74))))) ->  | AJ74: 0 | AK74: 0 | AL74: 0 | AM74: 0 | AN74: 0 | AO74: 0 | AP74: 0 | AQ74: 0 | AR74: =IF(OR(AN74="",AP74=""),"",AQ74/AQ$7*100) -> 0.00 | AS74: =IF(AP74="AB","AB",IF(AND(OR(AJ74="ab",AJ74="ml"),OR(AK74="ab",AK74="ml"),OR(AM74="ab",AM74="ml")),"AB",IF(AND(OR(AJ74="ab",AJ74="ml"),OR(AM74="ab",AM74="ml")),"AB",""))) ->  | AT74: =IF(OR($G74="NSO",$G74="",AP74=""),"",IF(OR(AS74="AB",AP74="ab"),"AB",IF(AND(AR74>=36,AP74>=20),"P",IF(AND(AR74>=34,AP74>=20,COUNTIF(AL74:AP74,"ml")=0),"G2",IF(AND(AR74>=31,AP74>=20,COUNTIF(AL74:AP74,"ml")=0),"G1",IF(AR74>=25,"S","F")))))) ->  | AU74: =IF(OR(AT74="",AT74=0,AT74="S",AT74="F",AT74="AB"),AT74,IF(AR74>=75,"D",IF(AR74>=60,"I",IF(AR74>=48,"II",IF(AR74>=36,"III",AT74))))) ->  | AV74: 0 | AW74: 0 | AX74: 0 | AY74: 0 | AZ74: 0 | BA74: 0 | BB74: 0 | BC74: 0 | BD74: =IF(OR(AZ74="",BB74=""),"",BC74/BC$7*100) -> 0.00 | BE74: =IF(BB74="AB","AB",IF(AND(OR(AV74="ab",AV74="ml"),OR(AW74="ab",AW74="ml"),OR(AY74="ab",AY74="ml")),"AB",IF(AND(OR(AV74="ab",AV74="ml"),OR(AY74="ab",AY74="ml")),"AB",""))) ->  | BF74: =IF(OR($G74="NSO",$G74="",BB74=""),"",IF(OR(BE74="AB",BB74="ab"),"AB",IF(AND(BD74>=36,BB74>=20),"P",IF(AND(BD74>=34,BB74>=20,COUNTIF(AX74:BB74,"ml")=0),"G2",IF(AND(BD74>=31,BB74>=20,COUNTIF(AX74:BB74,"ml")=0),"G1",IF(BD74>=25,"S","F")))))) ->  | BG74: =IF(OR(BF74="",BF74=0,BF74="S",BF74="F",BF74="AB"),BF74,IF(BD74>=75,"D",IF(BD74>=60,"I",IF(BD74>=48,"II",IF(BD74>=36,"III",BF74))))) ->  | BH74: 0 | BI74: 0 | BJ74: 0 | BK74: 0 | BL74: 0 | BM74: 0 | BN74: 0 | BO74: 0 | BP74: =IF(OR(BL74="",BN74=""),"",BO74/BO$7*100) -> 0.00 | BQ74: =IF(BN74="AB","AB",IF(AND(OR(BH74="ab",BH74="ml"),OR(BI74="ab",BI74="ml"),OR(BK74="ab",BK74="ml")),"AB",IF(AND(OR(BH74="ab",BH74="ml"),OR(BK74="ab",BK74="ml")),"AB",""))) ->  | BR74: =IF(OR($G74="NSO",$G74="",BN74=""),"",IF(OR(BQ74="AB",BN74="ab"),"AB",IF(AND(BP74>=36,BN74>=20),"P",IF(AND(BP74>=34,BN74>=20,COUNTIF(BJ74:BN74,"ml")=0),"G2",IF(AND(BP74>=31,BN74>=20,COUNTIF(BJ74:BN74,"ml")=0),"G1",IF(BP74>=25,"S","F")))))) ->  | BS74: =IF(OR(BR74="",BR74=0,BR74="S",BR74="F",BR74="AB"),BR74,IF(BP74>=75,"D",IF(BP74>=60,"I",IF(BP74>=48,"II",IF(BP74>=36,"III",BR74))))) ->  | BT74: 0 | BU74: 0 | BV74: 0 | BW74: 0 | BX74: 0 | BY74: 0 | BZ74: 0 | CA74: 0 | CB74: =IF(OR(BX74="",BZ74=""),"",CA74/CA$7*100) -> 0.00 | CC74: =IF(BZ74="AB","AB",IF(AND(OR(BT74="ab",BT74="ml"),OR(BU74="ab",BU74="ml"),OR(BW74="ab",BW74="ml")),"AB",IF(AND(OR(BT74="ab",BT74="ml"),OR(BW74="ab",BW74="ml")),"AB",""))) ->  | CD74: =IF(OR($G74="NSO",$G74="",BZ74=""),"",IF(OR(CC74="AB",BZ74="ab"),"AB",IF(AND(CB74>=36,BZ74>=20),"P",IF(AND(CB74>=34,BZ74>=20,COUNTIF(BV74:BZ74,"ml")=0),"G2",IF(AND(CB74>=31,BZ74>=20,COUNTIF(BV74:BZ74,"ml")=0),"G1",IF(CB74>=25,"S","F")))))) ->  | CE74: =IF(OR(CD74="",CD74=0,CD74="S",CD74="F",CD74="AB"),CD74,IF(CB74>=75,"D",IF(CB74>=60,"I",IF(CB74>=48,"II",IF(CB74>=36,"III",CD74))))) ->  | CF74: 0 | CG74: 0 | CI74: =SUM(CF74:CH74) -> 0 | CJ74: 0 | CK74: 0 | CL74: 0 | CM74: 0 | CN74: =IF($S$7="NA","NA",0) -> 0 | CO74: =SUM(CM74:CN74) -> 0 | CP74: =SUM(CI74,CL74,CO74) -> 0 | CQ74: =IF(OR(CL74="",CO74=""),"",CP74/CP$7*100) -> 0.00 | CR74: =IF(CQ74>=80,"A",IF(CQ74>=60,"B",IF(CQ74>=40,"C",IF(CQ74>=36,"D","")))) ->  | CS74: 0 | CT74: 0 | CU74: =IF(AND(CS74="",CT74=""),"",IF(AND(CS74="ml",CT74="ml"),"ml",IF(AND(CS74="AB",CT74="AB"),"AB",SUM(CS74:CT74)))) -> 0 | CV74: 0 | CX74: =IF(AND(CV74="",CW74=""),"",IF(AND(CV74="ml",CW74="ml"),"ml",IF(AND(CV74="AB",CW74="AB"),"AB",SUM(CV74:CW74)))) -> 0 | DA74: =IF(AND(CY74="",CZ74=""),"",IF(AND(CY74="ml",CZ74="ml"),"ml",IF(AND(CY74="AB",CZ74="AB"),"AB",SUM(CY74:CZ74)))) ->  | DB74: =SUM(CS74,CV74,CY74) -> 0 | DC74: =SUM(CT74,CW74,CZ74) -> 0 | DD74: =SUM(DB74:DC74) -> 0 | DE74: 0 | DF74: 0 | DG74: =IF(AND(DE74="",DF74=""),"",IF(AND(DE74="ml",DF74="ml"),"ml",IF(AND(DE74="AB",DF74="AB"),"AB",SUM(DE74:DF74)))) -> 0 | DH74: 0 | DI74: =IF($S$7="NA","NA",0) -> 0 | DJ74: =IF(AND(DH74="",DI74=""),"",IF(AND(DH74="ml",DI74="ml"),"ml",IF(AND(DH74="AB",DI74="AB"),"AB",SUM(DH74:DI74)))) -> 0 | DK74: =SUM(DB74,DE74,DH74) -> 0 | DL74: =SUM(DC74,DF74,DI74) -> 0 | DM74: =SUM(DK74:DL74) -> 0 | DN74: =IF(OR(DG74="",DJ74=""),"",DM74/DM$7*100) -> 0.00 | DO74: =IF(DN74>=80,"A",IF(DN74>=60,"B",IF(DN74>=40,"C",IF(DN74>=36,"D","")))) ->  | DP74: 0 | DQ74: 0 | DR74: 0 | DS74: 0 | DT74: =IF(OR(DS74="",DS$7=""),"",DS74/DS$7*100) -> 0.00 | DU74: =IF(DT74>=80,"A",IF(DT74>=60,"B",IF(DT74>=40,"C",IF(DT74>=21,"D","")))) ->  | DV74: 0 | DW74: 0 | DX74: 0 | DY74: 0 | DZ74: =IF(OR(DY74="",DY$7=""),"",DY74/DY$7*100) -> 0.00 | EA74: =IF(DZ74>=80,"A",IF(DZ74>=60,"B",IF(DZ74>=40,"C",IF(DZ74>=21,"D","")))) ->  | EB74: 0 | EC74: 0 | ED74: 0 | EE74: 0 | EF74: 0 | EG74: =SUM(EE74,EF74) -> 0 | EH74: 0 | EI74: =SUM(EG74:EH74) -> 0 | EJ74: =IF(OR(EF74="",EH74=""),"",EI74/EI$7*100) -> 0.00 | EK74: =IF(EJ74>=80,"A",IF(EJ74>=60,"B",IF(EJ74>=40,"C",IF(EJ74>=36,"D","")))) ->  | EO74: =IF(G74="","",SUM($S$7,$AE$7,$AQ$7,$BC$7,$BO$7,$CA$7)) ->  | EP74: =IF(G74="","",SUM(S74,AE74,AQ74,BC74,BO74,CA74)) ->  | EQ74: =IF(G74="","",IF(AND(ES74="Passed",EO74>0),EP74/EO74*100,"--")) ->  | ER74: =IF(G74="","",IF(AND(EQ74>=60,ES74="Passed"),"First",IF(AND(EQ74>=60,ES74="Passed with G"),"First",IF(AND(EQ74>=48,ES74="Passed"),"Second",IF(AND(EQ74>=48,ES74="Passed With G"),"Second",IF(OR(ES74="Passed",ES74="Passed With G"),"Third","--")))))) ->  | ES74: =IF(G74="TC","Transfered",IF($G74="NSO","NSO",IF(OR($G74="",$G74=0,O74="",P74="",R74="",AB74="",AD74="",AN74="",AP74="",AZ74="",BB74="",BL74="",BN74="",BX74="",BZ74=""),"",IF(OR(FD74>0,(FE74+FF74+FG74)>2),"FAILED",IF(OR(FE74>0,FF74>1),"SUPP.",IF(AND(FF74>0,FG74>0),"SUPP.",IF((FF74+FG74),"Passed With G","Passed"))))))) ->  | ET74: =IF(ES74="Passed",EQ74,"") ->  | EU74: =IF(ET74="","",SUMPRODUCT((ET74<ET$9:ET$108)/COUNTIF(ET$9:ET$108,ET$9:ET$108))) ->  | EV74: =IF(OR(G74="",G74="NSO",G74="TC"),"",IF(EQ74>81,"Excellent",IF(EQ74>60,"Very Good",IF(EQ74>48,"Good",IF(EQ74>36,"Average","Need Improvement"))))) ->  | EW74: =IF(G74="","",IF(G74="Tc","Transfered",IF(ES74="nso","Name Separated",IF(FD74>0,"Need Improvement",IF(FE74>0,"Need Improvement",IF(FF74>0,"Need Improvement",IF(EQ74>=80,"Excellent",IF(EQ74>=60,"Very Good",IF(EQ74>=48,"Good",IF(EQ74>=36,"Average",IF(EQ74=0,0,"Need Improvement"))))))))))) ->  | EX74: =W74 ->  | EY74: =AI74 ->  | EZ74: =AU74 ->  | FA74: =BG74 ->  | FB74: =BS74 ->  | FC74: =CE74 ->  | FD74: =COUNTIF(EX74:FC74,"F")+COUNTIF(EX74:FC74,"AB") -> 0 | FE74: =COUNTIF(EX74:FC74,"S") -> 0 | FF74: =COUNTIF(EX74:FC74,"G1") -> 0 | FG74: =COUNTIF(EX74:FC74,"G2") -> 0 | FK74: =CP74 -> 0 | FL74: / | FM74: =$CP$7 -> 200 | FN74: =CONCATENATE(FK74,FL74,FM74) -> 0/200 | FO74: =DM74 -> 0 | FP74: / | FQ74: =$DM$7 -> 200 | FR74: =CONCATENATE(FO74,FP74,FQ74) -> 0/200 | FS74: =DS74 -> 0 | FT74: / | FU74: =$DS$7 -> 100 | FV74: =CONCATENATE(FS74,FT74,FU74) -> 0/100 | FW74: =DY74 -> 0 | FX74: / | FY74: =$DY$7 -> 100 | FZ74: =CONCATENATE(FW74,FX74,FY74) -> 0/100 | GA74: =EI74 -> 0 | GB74: / | GC74: =$EI$7 -> 200 | GD74: 0/200
A75: 0 | B75: 67 | C75: 67 | D75: 0 | L75: 0 | M75: 0 | N75: 0 | O75: 0 | P75: 0 | Q75: 0 | R75: 0 | S75: 0 | T75: 0.00 | X75: 0 | Y75: 0 | Z75: 0 | AA75: 0 | AB75: 0 | AC75: 0 | AD75: 0 | AE75: 0 | AF75: 0.00 | AJ75: 0 | AK75: 0 | AL75: 0 | AM75: 0 | AN75: 0 | AO75: 0 | AP75: 0 | AQ75: 0 | AR75: 0.00 | AV75: 0 | AW75: 0 | AX75: 0 | AY75: 0 | AZ75: 0 | BA75: 0 | BB75: 0 | BC75: 0 | BD75: 0.00 | BH75: 0 | BI75: 0 | BJ75: 0 | BK75: 0 | BL75: 0 | BM75: 0 | BN75: 0 | BO75: 0 | BP75: 0.00 | BT75: 0 | BU75: 0 | BV75: 0 | BW75: 0 | BX75: 0 | BY75: 0 | BZ75: 0 | CA75: 0 | CB75: 0.00 | CF75: 0 | CG75: 0 | CI75: 0 | CJ75: 0 | CK75: 0 | CL75: =SUM(CJ75,CK75) -> 0 | CM75: 0 | CN75: =IF($S$7="NA","NA",0) -> 0 | CO75: 0 | CP75: 0 | CQ75: 0.00 | CS75: 0 | CT75: 0 | CU75: 0 | CV75: 0 | CX75: 0 | DB75: 0 | DC75: 0 | DD75: 0 | DE75: 0 | DF75: 0 | DG75: 0 | DH75: 0 | DI75: =IF($S$7="NA","NA",0) -> 0 | DJ75: 0 | DK75: 0 | DL75: 0 | DM75: 0 | DN75: 0.00 | DP75: 0 | DQ75: 0 | DR75: 0 | DS75: 0 | DT75: 0.00 | DV75: 0 | DW75: 0 | DX75: 0 | DY75: 0 | DZ75: 0.00 | EB75: 0 | EC75: 0 | ED75: 0 | EE75: =SUM(EB75:ED75) -> 0 | EF75: 0 | EG75: 0 | EH75: 0 | EI75: 0 | EJ75: 0.00 | FD75: 0 | FE75: 0 | FF75: 0 | FG75: 0 | FK75: 0 | FL75: / | FM75: 200 | FN75: 0/200 | FO75: 0 | FP75: / | FQ75: 200 | FR75: 0/200 | FS75: 0 | FT75: / | FU75: 100 | FV75: 0/100 | FW75: 0 | FX75: / | FY75: 100 | FZ75: 0/100 | GA75: 0 | GB75: / | GC75: 200 | GD75: 0/200
A76: 0 | B76: 68 | C76: 68 | D76: 0 | L76: 0 | M76: 0 | N76: 0 | O76: 0 | P76: 0 | Q76: 0 | R76: 0 | S76: 0 | T76: 0.00 | X76: 0 | Y76: 0 | Z76: 0 | AA76: 0 | AB76: 0 | AC76: 0 | AD76: 0 | AE76: 0 | AF76: 0.00 | AJ76: 0 | AK76: 0 | AL76: 0 | AM76: 0 | AN76: 0 | AO76: 0 | AP76: 0 | AQ76: 0 | AR76: 0.00 | AV76: 0 | AW76: 0 | AX76: 0 | AY76: 0 | AZ76: 0 | BA76: 0 | BB76: 0 | BC76: 0 | BD76: 0.00 | BH76: 0 | BI76: 0 | BJ76: 0 | BK76: 0 | BL76: 0 | BM76: 0 | BN76: 0 | BO76: 0 | BP76: 0.00 | BT76: 0 | BU76: 0 | BV76: 0 | BW76: 0 | BX76: 0 | BY76: 0 | BZ76: 0 | CA76: 0 | CB76: 0.00 | CF76: 0 | CG76: 0 | CI76: 0 | CJ76: 0 | CK76: 0 | CL76: 0 | CM76: 0 | CN76: 0 | CO76: 0 | CP76: 0 | CQ76: 0.00 | CS76: 0 | CT76: 0 | CU76: 0 | CV76: 0 | CX76: 0 | DB76: 0 | DC76: 0 | DD76: 0 | DE76: 0 | DF76: 0 | DG76: 0 | DH76: 0 | DI76: 0 | DJ76: 0 | DK76: 0 | DL76: 0 | DM76: 0 | DN76: 0.00 | DP76: 0 | DQ76: 0 | DR76: 0 | DS76: 0 | DT76: 0.00 | DV76: 0 | DW76: 0 | DX76: 0 | DY76: 0 | DZ76: 0.00 | EB76: 0 | EC76: 0 | ED76: 0 | EE76: 0 | EF76: 0 | EG76: 0 | EH76: 0 | EI76: 0 | EJ76: 0.00 | FD76: 0 | FE76: 0 | FF76: 0 | FG76: 0 | FK76: 0 | FL76: / | FM76: 200 | FN76: 0/200 | FO76: 0 | FP76: / | FQ76: 200 | FR76: 0/200 | FS76: 0 | FT76: / | FU76: 100 | FV76: 0/100 | FW76: 0 | FX76: / | FY76: 100 | FZ76: 0/100 | GA76: 0 | GB76: / | GC76: 200 | GD76: 0/200
A77: 0 | B77: 69 | C77: 69 | D77: 0 | L77: 0 | M77: 0 | N77: 0 | O77: 0 | P77: 0 | Q77: 0 | R77: 0 | S77: 0 | T77: 0.00 | X77: 0 | Y77: 0 | Z77: 0 | AA77: 0 | AB77: 0 | AC77: 0 | AD77: 0 | AE77: 0 | AF77: 0.00 | AJ77: 0 | AK77: 0 | AL77: 0 | AM77: 0 | AN77: 0 | AO77: 0 | AP77: 0 | AQ77: 0 | AR77: 0.00 | AV77: 0 | AW77: 0 | AX77: 0 | AY77: 0 | AZ77: 0 | BA77: 0 | BB77: 0 | BC77: 0 | BD77: 0.00 | BH77: 0 | BI77: 0 | BJ77: 0 | BK77: 0 | BL77: 0 | BM77: 0 | BN77: 0 | BO77: 0 | BP77: 0.00 | BT77: 0 | BU77: 0 | BV77: 0 | BW77: 0 | BX77: 0 | BY77: 0 | BZ77: 0 | CA77: 0 | CB77: 0.00 | CF77: 0 | CG77: 0 | CI77: 0 | CJ77: 0 | CK77: 0 | CL77: 0 | CM77: 0 | CN77: 0 | CO77: 0 | CP77: 0 | CQ77: 0.00 | CS77: 0 | CT77: 0 | CU77: 0 | CV77: 0 | CX77: 0 | DB77: 0 | DC77: 0 | DD77: 0 | DE77: 0 | DF77: 0 | DG77: 0 | DH77: 0 | DI77: 0 | DJ77: 0 | DK77: 0 | DL77: 0 | DM77: 0 | DN77: 0.00 | DP77: 0 | DQ77: 0 | DR77: 0 | DS77: 0 | DT77: 0.00 | DV77: 0 | DW77: 0 | DX77: 0 | DY77: 0 | DZ77: 0.00 | EB77: 0 | EC77: 0 | ED77: 0 | EE77: 0 | EF77: 0 | EG77: 0 | EH77: 0 | EI77: 0 | EJ77: 0.00 | FD77: 0 | FE77: 0 | FF77: 0 | FG77: 0 | FK77: 0 | FL77: / | FM77: 200 | FN77: 0/200 | FO77: 0 | FP77: / | FQ77: 200 | FR77: 0/200 | FS77: 0 | FT77: / | FU77: 100 | FV77: 0/100 | FW77: 0 | FX77: / | FY77: 100 | FZ77: 0/100 | GA77: 0 | GB77: / | GC77: 200 | GD77: 0/200
A78: 0 | B78: 70 | C78: 70 | D78: 0 | L78: 0 | M78: 0 | N78: 0 | O78: 0 | P78: 0 | Q78: 0 | R78: 0 | S78: 0 | T78: 0.00 | X78: 0 | Y78: 0 | Z78: 0 | AA78: 0 | AB78: 0 | AC78: 0 | AD78: 0 | AE78: 0 | AF78: 0.00 | AJ78: 0 | AK78: 0 | AL78: 0 | AM78: 0 | AN78: 0 | AO78: 0 | AP78: 0 | AQ78: 0 | AR78: 0.00 | AV78: 0 | AW78: 0 | AX78: 0 | AY78: 0 | AZ78: 0 | BA78: 0 | BB78: 0 | BC78: 0 | BD78: 0.00 | BH78: 0 | BI78: 0 | BJ78: 0 | BK78: 0 | BL78: 0 | BM78: 0 | BN78: 0 | BO78: 0 | BP78: 0.00 | BT78: 0 | BU78: 0 | BV78: 0 | BW78: 0 | BX78: 0 | BY78: 0 | BZ78: 0 | CA78: 0 | CB78: 0.00 | CF78: 0 | CG78: 0 | CI78: 0 | CJ78: 0 | CK78: 0 | CL78: 0 | CM78: 0 | CN78: 0 | CO78: 0 | CP78: 0 | CQ78: 0.00 | CS78: 0 | CT78: 0 | CU78: 0 | CV78: 0 | CX78: 0 | DB78: 0 | DC78: 0 | DD78: 0 | DE78: 0 | DF78: 0 | DG78: 0 | DH78: 0 | DI78: 0 | DJ78: 0 | DK78: 0 | DL78: 0 | DM78: 0 | DN78: 0.00 | DP78: 0 | DQ78: 0 | DR78: 0 | DS78: 0 | DT78: 0.00 | DV78: 0 | DW78: 0 | DX78: 0 | DY78: 0 | DZ78: 0.00 | EB78: 0 | EC78: 0 | ED78: 0 | EE78: 0 | EF78: 0 | EG78: 0 | EH78: 0 | EI78: 0 | EJ78: 0.00 | FD78: 0 | FE78: 0 | FF78: 0 | FG78: 0 | FK78: 0 | FL78: / | FM78: 200 | FN78: 0/200 | FO78: 0 | FP78: / | FQ78: 200 | FR78: 0/200 | FS78: 0 | FT78: / | FU78: 100 | FV78: 0/100 | FW78: 0 | FX78: / | FY78: 100 | FZ78: 0/100 | GA78: 0 | GB78: / | GC78: 200 | GD78: 0/200
A79: 0 | B79: 71 | C79: 71 | D79: 0 | L79: 0 | M79: 0 | N79: 0 | O79: 0 | P79: 0 | Q79: 0 | R79: 0 | S79: 0 | T79: 0.00 | X79: 0 | Y79: 0 | Z79: 0 | AA79: 0 | AB79: 0 | AC79: 0 | AD79: 0 | AE79: 0 | AF79: 0.00 | AJ79: 0 | AK79: 0 | AL79: 0 | AM79: 0 | AN79: 0 | AO79: 0 | AP79: 0 | AQ79: 0 | AR79: 0.00 | AV79: 0 | AW79: 0 | AX79: 0 | AY79: 0 | AZ79: 0 | BA79: 0 | BB79: 0 | BC79: 0 | BD79: 0.00 | BH79: 0 | BI79: 0 | BJ79: 0 | BK79: 0 | BL79: 0 | BM79: 0 | BN79: 0 | BO79: 0 | BP79: 0.00 | BT79: 0 | BU79: 0 | BV79: 0 | BW79: 0 | BX79: 0 | BY79: 0 | BZ79: 0 | CA79: 0 | CB79: 0.00 | CF79: 0 | CG79: 0 | CI79: 0 | CJ79: 0 | CK79: 0 | CL79: 0 | CM79: 0 | CN79: 0 | CO79: 0 | CP79: 0 | CQ79: 0.00 | CS79: 0 | CT79: 0 | CU79: 0 | CV79: 0 | CX79: 0 | DB79: 0 | DC79: 0 | DD79: 0 | DE79: 0 | DF79: 0 | DG79: 0 | DH79: 0 | DI79: 0 | DJ79: 0 | DK79: 0 | DL79: 0 | DM79: 0 | DN79: 0.00 | DP79: 0 | DQ79: 0 | DR79: 0 | DS79: 0 | DT79: 0.00 | DV79: 0 | DW79: 0 | DX79: 0 | DY79: 0 | DZ79: 0.00 | EB79: 0 | EC79: 0 | ED79: 0 | EE79: 0 | EF79: 0 | EG79: 0 | EH79: 0 | EI79: 0 | EJ79: 0.00 | FD79: 0 | FE79: 0 | FF79: 0 | FG79: 0 | FK79: 0 | FL79: / | FM79: 200 | FN79: 0/200 | FO79: 0 | FP79: / | FQ79: 200 | FR79: 0/200 | FS79: 0 | FT79: / | FU79: 100 | FV79: 0/100 | FW79: 0 | FX79: / | FY79: 100 | FZ79: 0/100 | GA79: 0 | GB79: / | GC79: 200 | GD79: 0/200
A80: 0 | B80: 72 | C80: 72 | D80: 0 | L80: 0 | M80: 0 | N80: 0 | O80: 0 | P80: 0 | Q80: 0 | R80: 0 | S80: 0 | T80: 0.00 | X80: 0 | Y80: 0 | Z80: 0 | AA80: 0 | AB80: 0 | AC80: 0 | AD80: 0 | AE80: 0 | AF80: 0.00 | AJ80: 0 | AK80: 0 | AL80: 0 | AM80: 0 | AN80: 0 | AO80: 0 | AP80: 0 | AQ80: 0 | AR80: 0.00 | AV80: 0 | AW80: 0 | AX80: 0 | AY80: 0 | AZ80: 0 | BA80: 0 | BB80: 0 | BC80: 0 | BD80: 0.00 | BH80: 0 | BI80: 0 | BJ80: 0 | BK80: 0 | BL80: 0 | BM80: 0 | BN80: 0 | BO80: 0 | BP80: 0.00 | BT80: 0 | BU80: 0 | BV80: 0 | BW80: 0 | BX80: 0 | BY80: 0 | BZ80: 0 | CA80: 0 | CB80: 0.00 | CF80: 0 | CG80: 0 | CI80: 0 | CJ80: 0 | CK80: 0 | CL80: 0 | CM80: 0 | CN80: 0 | CO80: 0 | CP80: 0 | CQ80: 0.00 | CS80: 0 | CT80: 0 | CU80: 0 | CV80: 0 | CX80: 0 | DB80: 0 | DC80: 0 | DD80: 0 | DE80: 0 | DF80: 0 | DG80: 0 | DH80: 0 | DI80: 0 | DJ80: 0 | DK80: 0 | DL80: 0 | DM80: 0 | DN80: 0.00 | DP80: 0 | DQ80: 0 | DR80: 0 | DS80: 0 | DT80: 0.00 | DV80: 0 | DW80: 0 | DX80: 0 | DY80: 0 | DZ80: 0.00 | EB80: 0 | EC80: 0 | ED80: 0 | EE80: 0 | EF80: 0 | EG80: 0 | EH80: 0 | EI80: 0 | EJ80: 0.00 | FD80: 0 | FE80: 0 | FF80: 0 | FG80: 0 | FK80: 0 | FL80: / | FM80: 200 | FN80: 0/200 | FO80: 0 | FP80: / | FQ80: 200 | FR80: 0/200 | FS80: 0 | FT80: / | FU80: 100 | FV80: 0/100 | FW80: 0 | FX80: / | FY80: 100 | FZ80: 0/100 | GA80: 0 | GB80: / | GC80: 200 | GD80: 0/200
A81: 0 | B81: 73 | C81: 73 | D81: 0 | L81: 0 | M81: 0 | N81: 0 | O81: 0 | P81: 0 | Q81: 0 | R81: 0 | S81: 0 | T81: 0.00 | X81: 0 | Y81: 0 | Z81: 0 | AA81: 0 | AB81: 0 | AC81: 0 | AD81: 0 | AE81: 0 | AF81: 0.00 | AJ81: 0 | AK81: 0 | AL81: 0 | AM81: 0 | AN81: 0 | AO81: 0 | AP81: 0 | AQ81: 0 | AR81: 0.00 | AV81: 0 | AW81: 0 | AX81: 0 | AY81: 0 | AZ81: 0 | BA81: 0 | BB81: 0 | BC81: 0 | BD81: 0.00 | BH81: 0 | BI81: 0 | BJ81: 0 | BK81: 0 | BL81: 0 | BM81: 0 | BN81: 0 | BO81: 0 | BP81: 0.00 | BT81: 0 | BU81: 0 | BV81: 0 | BW81: 0 | BX81: 0 | BY81: 0 | BZ81: 0 | CA81: 0 | CB81: 0.00 | CF81: 0 | CG81: 0 | CI81: 0 | CJ81: 0 | CK81: 0 | CL81: 0 | CM81: 0 | CN81: 0 | CO81: 0 | CP81: 0 | CQ81: 0.00 | CS81: 0 | CT81: 0 | CU81: 0 | CV81: 0 | CX81: 0 | DB81: 0 | DC81: 0 | DD81: 0 | DE81: 0 | DF81: 0 | DG81: 0 | DH81: 0 | DI81: 0 | DJ81: 0 | DK81: 0 | DL81: 0 | DM81: 0 | DN81: 0.00 | DP81: 0 | DQ81: 0 | DR81: 0 | DS81: 0 | DT81: 0.00 | DV81: 0 | DW81: 0 | DX81: 0 | DY81: 0 | DZ81: 0.00 | EB81: 0 | EC81: 0 | ED81: 0 | EE81: 0 | EF81: 0 | EG81: 0 | EH81: 0 | EI81: 0 | EJ81: 0.00 | FD81: 0 | FE81: 0 | FF81: 0 | FG81: 0 | FK81: 0 | FL81: / | FM81: 200 | FN81: 0/200 | FO81: 0 | FP81: / | FQ81: 200 | FR81: 0/200 | FS81: 0 | FT81: / | FU81: 100 | FV81: 0/100 | FW81: 0 | FX81: / | FY81: 100 | FZ81: 0/100 | GA81: 0 | GB81: / | GC81: 200 | GD81: 0/200
A82: 0 | B82: 74 | C82: 74 | D82: 0 | L82: 0 | M82: 0 | N82: 0 | O82: 0 | P82: 0 | Q82: 0 | R82: 0 | S82: 0 | T82: 0.00 | X82: 0 | Y82: 0 | Z82: 0 | AA82: 0 | AB82: 0 | AC82: 0 | AD82: 0 | AE82: 0 | AF82: 0.00 | AJ82: 0 | AK82: 0 | AL82: 0 | AM82: 0 | AN82: 0 | AO82: 0 | AP82: 0 | AQ82: 0 | AR82: 0.00 | AV82: 0 | AW82: 0 | AX82: 0 | AY82: 0 | AZ82: 0 | BA82: 0 | BB82: 0 | BC82: 0 | BD82: 0.00 | BH82: 0 | BI82: 0 | BJ82: 0 | BK82: 0 | BL82: 0 | BM82: 0 | BN82: 0 | BO82: 0 | BP82: 0.00 | BT82: 0 | BU82: 0 | BV82: 0 | BW82: 0 | BX82: 0 | BY82: 0 | BZ82: 0 | CA82: 0 | CB82: 0.00 | CF82: 0 | CG82: 0 | CI82: 0 | CJ82: 0 | CK82: 0 | CL82: 0 | CM82: 0 | CN82: 0 | CO82: 0 | CP82: 0 | CQ82: 0.00 | CS82: 0 | CT82: 0 | CU82: 0 | CV82: 0 | CX82: 0 | DB82: 0 | DC82: 0 | DD82: 0 | DE82: 0 | DF82: 0 | DG82: 0 | DH82: 0 | DI82: 0 | DJ82: 0 | DK82: 0 | DL82: 0 | DM82: 0 | DN82: 0.00 | DP82: 0 | DQ82: 0 | DR82: 0 | DS82: 0 | DT82: 0.00 | DV82: 0 | DW82: 0 | DX82: 0 | DY82: 0 | DZ82: 0.00 | EB82: 0 | EC82: 0 | ED82: 0 | EE82: 0 | EF82: 0 | EG82: 0 | EH82: 0 | EI82: 0 | EJ82: 0.00 | FD82: 0 | FE82: 0 | FF82: 0 | FG82: 0 | FK82: 0 | FL82: / | FM82: 200 | FN82: 0/200 | FO82: 0 | FP82: / | FQ82: 200 | FR82: 0/200 | FS82: 0 | FT82: / | FU82: 100 | FV82: 0/100 | FW82: 0 | FX82: / | FY82: 100 | FZ82: 0/100 | GA82: 0 | GB82: / | GC82: 200 | GD82: 0/200
A83: 0 | B83: 75 | C83: 75 | D83: 0 | L83: 0 | M83: 0 | N83: 0 | O83: 0 | P83: 0 | Q83: 0 | R83: 0 | S83: 0 | T83: 0.00 | X83: 0 | Y83: 0 | Z83: 0 | AA83: 0 | AB83: 0 | AC83: 0 | AD83: 0 | AE83: 0 | AF83: 0.00 | AJ83: 0 | AK83: 0 | AL83: 0 | AM83: 0 | AN83: 0 | AO83: 0 | AP83: 0 | AQ83: 0 | AR83: 0.00 | AV83: 0 | AW83: 0 | AX83: 0 | AY83: 0 | AZ83: 0 | BA83: 0 | BB83: 0 | BC83: 0 | BD83: 0.00 | BH83: 0 | BI83: 0 | BJ83: 0 | BK83: 0 | BL83: 0 | BM83: 0 | BN83: 0 | BO83: 0 | BP83: 0.00 | BT83: 0 | BU83: 0 | BV83: 0 | BW83: 0 | BX83: 0 | BY83: 0 | BZ83: 0 | CA83: 0 | CB83: 0.00 | CF83: 0 | CG83: 0 | CI83: 0 | CJ83: 0 | CK83: 0 | CL83: 0 | CM83: 0 | CN83: 0 | CO83: 0 | CP83: 0 | CQ83: 0.00 | CS83: 0 | CT83: 0 | CU83: 0 | CV83: 0 | CX83: 0 | DB83: 0 | DC83: 0 | DD83: 0 | DE83: 0 | DF83: 0 | DG83: 0 | DH83: 0 | DI83: 0 | DJ83: 0 | DK83: 0 | DL83: 0 | DM83: 0 | DN83: 0.00 | DP83: 0 | DQ83: 0 | DR83: 0 | DS83: 0 | DT83: 0.00 | DV83: 0 | DW83: 0 | DX83: 0 | DY83: 0 | DZ83: 0.00 | EB83: 0 | EC83: 0 | ED83: 0 | EE83: 0 | EF83: 0 | EG83: 0 | EH83: 0 | EI83: 0 | EJ83: 0.00 | FD83: 0 | FE83: 0 | FF83: 0 | FG83: 0 | FK83: 0 | FL83: / | FM83: 200 | FN83: 0/200 | FO83: 0 | FP83: / | FQ83: 200 | FR83: 0/200 | FS83: 0 | FT83: / | FU83: 100 | FV83: 0/100 | FW83: 0 | FX83: / | FY83: 100 | FZ83: 0/100 | GA83: 0 | GB83: / | GC83: 200 | GD83: 0/200
A84: 0 | B84: 76 | C84: 76 | D84: 0 | L84: 0 | M84: 0 | N84: 0 | O84: 0 | P84: 0 | Q84: 0 | R84: 0 | S84: 0 | T84: 0.00 | X84: 0 | Y84: 0 | Z84: 0 | AA84: 0 | AB84: 0 | AC84: 0 | AD84: 0 | AE84: 0 | AF84: 0.00 | AJ84: 0 | AK84: 0 | AL84: 0 | AM84: 0 | AN84: 0 | AO84: 0 | AP84: 0 | AQ84: 0 | AR84: 0.00 | AV84: 0 | AW84: 0 | AX84: 0 | AY84: 0 | AZ84: 0 | BA84: 0 | BB84: 0 | BC84: 0 | BD84: 0.00 | BH84: 0 | BI84: 0 | BJ84: 0 | BK84: 0 | BL84: 0 | BM84: 0 | BN84: 0 | BO84: 0 | BP84: 0.00 | BT84: 0 | BU84: 0 | BV84: 0 | BW84: 0 | BX84: 0 | BY84: 0 | BZ84: 0 | CA84: 0 | CB84: 0.00 | CF84: 0 | CG84: 0 | CI84: 0 | CJ84: 0 | CK84: 0 | CL84: 0 | CM84: 0 | CN84: 0 | CO84: 0 | CP84: 0 | CQ84: 0.00 | CS84: 0 | CT84: 0 | CU84: 0 | CV84: 0 | CX84: 0 | DB84: 0 | DC84: 0 | DD84: 0 | DE84: 0 | DF84: 0 | DG84: 0 | DH84: 0 | DI84: 0 | DJ84: 0 | DK84: 0 | DL84: 0 | DM84: 0 | DN84: 0.00 | DP84: 0 | DQ84: 0 | DR84: 0 | DS84: 0 | DT84: 0.00 | DV84: 0 | DW84: 0 | DX84: 0 | DY84: 0 | DZ84: 0.00 | EB84: 0 | EC84: 0 | ED84: 0 | EE84: 0 | EF84: 0 | EG84: 0 | EH84: 0 | EI84: 0 | EJ84: 0.00 | FD84: 0 | FE84: 0 | FF84: 0 | FG84: 0 | FK84: 0 | FL84: / | FM84: 200 | FN84: 0/200 | FO84: 0 | FP84: / | FQ84: 200 | FR84: 0/200 | FS84: 0 | FT84: / | FU84: 100 | FV84: 0/100 | FW84: 0 | FX84: / | FY84: 100 | FZ84: 0/100 | GA84: 0 | GB84: / | GC84: 200 | GD84: 0/200
A85: 0 | B85: 77 | C85: 77 | D85: 0 | L85: 0 | M85: 0 | N85: 0 | O85: 0 | P85: 0 | Q85: 0 | R85: 0 | S85: 0 | T85: 0.00 | X85: 0 | Y85: 0 | Z85: 0 | AA85: 0 | AB85: 0 | AC85: 0 | AD85: 0 | AE85: 0 | AF85: 0.00 | AJ85: 0 | AK85: 0 | AL85: 0 | AM85: 0 | AN85: 0 | AO85: 0 | AP85: 0 | AQ85: 0 | AR85: 0.00 | AV85: 0 | AW85: 0 | AX85: 0 | AY85: 0 | AZ85: 0 | BA85: 0 | BB85: 0 | BC85: 0 | BD85: 0.00 | BH85: 0 | BI85: 0 | BJ85: 0 | BK85: 0 | BL85: 0 | BM85: 0 | BN85: 0 | BO85: 0 | BP85: 0.00 | BT85: 0 | BU85: 0 | BV85: 0 | BW85: 0 | BX85: 0 | BY85: 0 | BZ85: 0 | CA85: 0 | CB85: 0.00 | CF85: 0 | CG85: 0 | CI85: 0 | CJ85: 0 | CK85: 0 | CL85: 0 | CM85: 0 | CN85: 0 | CO85: 0 | CP85: 0 | CQ85: 0.00 | CS85: 0 | CT85: 0 | CU85: 0 | CV85: 0 | CX85: 0 | DB85: 0 | DC85: 0 | DD85: 0 | DE85: 0 | DF85: 0 | DG85: 0 | DH85: 0 | DI85: 0 | DJ85: 0 | DK85: 0 | DL85: 0 | DM85: 0 | DN85: 0.00 | DP85: 0 | DQ85: 0 | DR85: 0 | DS85: 0 | DT85: 0.00 | DV85: 0 | DW85: 0 | DX85: 0 | DY85: 0 | DZ85: 0.00 | EB85: 0 | EC85: 0 | ED85: 0 | EE85: 0 | EF85: 0 | EG85: 0 | EH85: 0 | EI85: 0 | EJ85: 0.00 | FD85: 0 | FE85: 0 | FF85: 0 | FG85: 0 | FK85: 0 | FL85: / | FM85: 200 | FN85: 0/200 | FO85: 0 | FP85: / | FQ85: 200 | FR85: 0/200 | FS85: 0 | FT85: / | FU85: 100 | FV85: 0/100 | FW85: 0 | FX85: / | FY85: 100 | FZ85: 0/100 | GA85: 0 | GB85: / | GC85: 200 | GD85: 0/200
A86: 0 | B86: 78 | C86: 78 | D86: 0 | L86: 0 | M86: 0 | N86: 0 | O86: 0 | P86: 0 | Q86: 0 | R86: 0 | S86: 0 | T86: 0.00 | X86: 0 | Y86: 0 | Z86: 0 | AA86: 0 | AB86: 0 | AC86: 0 | AD86: 0 | AE86: 0 | AF86: 0.00 | AJ86: 0 | AK86: 0 | AL86: 0 | AM86: 0 | AN86: 0 | AO86: 0 | AP86: 0 | AQ86: 0 | AR86: 0.00 | AV86: 0 | AW86: 0 | AX86: 0 | AY86: 0 | AZ86: 0 | BA86: 0 | BB86: 0 | BC86: 0 | BD86: 0.00 | BH86: 0 | BI86: 0 | BJ86: 0 | BK86: 0 | BL86: 0 | BM86: 0 | BN86: 0 | BO86: 0 | BP86: 0.00 | BT86: 0 | BU86: 0 | BV86: 0 | BW86: 0 | BX86: 0 | BY86: 0 | BZ86: 0 | CA86: 0 | CB86: 0.00 | CF86: 0 | CG86: 0 | CI86: 0 | CJ86: 0 | CK86: 0 | CL86: 0 | CM86: 0 | CN86: 0 | CO86: 0 | CP86: 0 | CQ86: 0.00 | CS86: 0 | CT86: 0 | CU86: 0 | CV86: 0 | CX86: 0 | DB86: 0 | DC86: 0 | DD86: 0 | DE86: 0 | DF86: 0 | DG86: 0 | DH86: 0 | DI86: 0 | DJ86: 0 | DK86: 0 | DL86: 0 | DM86: 0 | DN86: 0.00 | DP86: 0 | DQ86: 0 | DR86: 0 | DS86: 0 | DT86: 0.00 | DV86: 0 | DW86: 0 | DX86: 0 | DY86: 0 | DZ86: 0.00 | EB86: 0 | EC86: 0 | ED86: 0 | EE86: 0 | EF86: 0 | EG86: 0 | EH86: 0 | EI86: 0 | EJ86: 0.00 | FD86: 0 | FE86: 0 | FF86: 0 | FG86: 0 | FK86: 0 | FL86: / | FM86: 200 | FN86: 0/200 | FO86: 0 | FP86: / | FQ86: 200 | FR86: 0/200 | FS86: 0 | FT86: / | FU86: 100 | FV86: 0/100 | FW86: 0 | FX86: / | FY86: 100 | FZ86: 0/100 | GA86: 0 | GB86: / | GC86: 200 | GD86: 0/200
A87: 0 | B87: 79 | C87: 79 | D87: 0 | L87: 0 | M87: 0 | N87: 0 | O87: 0 | P87: 0 | Q87: 0 | R87: 0 | S87: 0 | T87: 0.00 | X87: 0 | Y87: 0 | Z87: 0 | AA87: 0 | AB87: 0 | AC87: 0 | AD87: 0 | AE87: 0 | AF87: 0.00 | AJ87: 0 | AK87: 0 | AL87: 0 | AM87: 0 | AN87: 0 | AO87: 0 | AP87: 0 | AQ87: 0 | AR87: 0.00 | AV87: 0 | AW87: 0 | AX87: 0 | AY87: 0 | AZ87: 0 | BA87: 0 | BB87: 0 | BC87: 0 | BD87: 0.00 | BH87: 0 | BI87: 0 | BJ87: 0 | BK87: 0 | BL87: 0 | BM87: 0 | BN87: 0 | BO87: 0 | BP87: 0.00 | BT87: 0 | BU87: 0 | BV87: 0 | BW87: 0 | BX87: 0 | BY87: 0 | BZ87: 0 | CA87: 0 | CB87: 0.00 | CF87: 0 | CG87: 0 | CI87: 0 | CJ87: 0 | CK87: 0 | CL87: 0 | CM87: 0 | CN87: 0 | CO87: 0 | CP87: 0 | CQ87: 0.00 | CS87: 0 | CT87: 0 | CU87: 0 | CV87: 0 | CX87: 0 | DB87: 0 | DC87: 0 | DD87: 0 | DE87: 0 | DF87: 0 | DG87: 0 | DH87: 0 | DI87: 0 | DJ87: 0 | DK87: 0 | DL87: 0 | DM87: 0 | DN87: 0.00 | DP87: 0 | DQ87: 0 | DR87: 0 | DS87: 0 | DT87: 0.00 | DV87: 0 | DW87: 0 | DX87: 0 | DY87: 0 | DZ87: 0.00 | EB87: 0 | EC87: 0 | ED87: 0 | EE87: 0 | EF87: 0 | EG87: 0 | EH87: 0 | EI87: 0 | EJ87: 0.00 | FD87: 0 | FE87: 0 | FF87: 0 | FG87: 0 | FK87: 0 | FL87: / | FM87: 200 | FN87: 0/200 | FO87: 0 | FP87: / | FQ87: 200 | FR87: 0/200 | FS87: 0 | FT87: / | FU87: 100 | FV87: 0/100 | FW87: 0 | FX87: / | FY87: 100 | FZ87: 0/100 | GA87: 0 | GB87: / | GC87: 200 | GD87: 0/200
A88: 0 | B88: 80 | C88: 80 | D88: 0 | L88: 0 | M88: 0 | N88: 0 | O88: 0 | P88: 0 | Q88: 0 | R88: 0 | S88: 0 | T88: 0.00 | X88: 0 | Y88: 0 | Z88: 0 | AA88: 0 | AB88: 0 | AC88: 0 | AD88: 0 | AE88: 0 | AF88: 0.00 | AJ88: 0 | AK88: 0 | AL88: 0 | AM88: 0 | AN88: 0 | AO88: 0 | AP88: 0 | AQ88: 0 | AR88: 0.00 | AV88: 0 | AW88: 0 | AX88: 0 | AY88: 0 | AZ88: 0 | BA88: 0 | BB88: 0 | BC88: 0 | BD88: 0.00 | BH88: 0 | BI88: 0 | BJ88: 0 | BK88: 0 | BL88: 0 | BM88: 0 | BN88: 0 | BO88: 0 | BP88: 0.00 | BT88: 0 | BU88: 0 | BV88: 0 | BW88: 0 | BX88: 0 | BY88: 0 | BZ88: 0 | CA88: 0 | CB88: 0.00 | CF88: 0 | CG88: 0 | CI88: 0 | CJ88: 0 | CK88: 0 | CL88: 0 | CM88: 0 | CN88: 0 | CO88: 0 | CP88: 0 | CQ88: 0.00 | CS88: 0 | CT88: 0 | CU88: 0 | CV88: 0 | CX88: 0 | DB88: 0 | DC88: 0 | DD88: 0 | DE88: 0 | DF88: 0 | DG88: 0 | DH88: 0 | DI88: 0 | DJ88: 0 | DK88: 0 | DL88: 0 | DM88: 0 | DN88: 0.00 | DP88: 0 | DQ88: 0 | DR88: 0 | DS88: 0 | DT88: 0.00 | DV88: 0 | DW88: 0 | DX88: 0 | DY88: 0 | DZ88: 0.00 | EB88: 0 | EC88: 0 | ED88: 0 | EE88: 0 | EF88: 0 | EG88: 0 | EH88: 0 | EI88: 0 | EJ88: 0.00 | FD88: 0 | FE88: 0 | FF88: 0 | FG88: 0 | FK88: 0 | FL88: / | FM88: 200 | FN88: 0/200 | FO88: 0 | FP88: / | FQ88: 200 | FR88: 0/200 | FS88: 0 | FT88: / | FU88: 100 | FV88: 0/100 | FW88: 0 | FX88: / | FY88: 100 | FZ88: 0/100 | GA88: 0 | GB88: / | GC88: 200 | GD88: 0/200
A89: 0 | B89: 81 | C89: 81 | D89: 0 | L89: 0 | M89: 0 | N89: 0 | O89: 0 | P89: 0 | Q89: 0 | R89: 0 | S89: 0 | T89: 0.00 | X89: 0 | Y89: 0 | Z89: 0 | AA89: 0 | AB89: 0 | AC89: 0 | AD89: 0 | AE89: 0 | AF89: 0.00 | AJ89: 0 | AK89: 0 | AL89: 0 | AM89: 0 | AN89: 0 | AO89: 0 | AP89: 0 | AQ89: 0 | AR89: 0.00 | AV89: 0 | AW89: 0 | AX89: 0 | AY89: 0 | AZ89: 0 | BA89: 0 | BB89: 0 | BC89: 0 | BD89: 0.00 | BH89: 0 | BI89: 0 | BJ89: 0 | BK89: 0 | BL89: 0 | BM89: 0 | BN89: 0 | BO89: 0 | BP89: 0.00 | BT89: 0 | BU89: 0 | BV89: 0 | BW89: 0 | BX89: 0 | BY89: 0 | BZ89: 0 | CA89: 0 | CB89: 0.00 | CF89: 0 | CG89: 0 | CI89: 0 | CJ89: 0 | CK89: 0 | CL89: 0 | CM89: 0 | CN89: 0 | CO89: 0 | CP89: 0 | CQ89: 0.00 | CS89: 0 | CT89: 0 | CU89: 0 | CV89: 0 | CX89: 0 | DB89: 0 | DC89: 0 | DD89: 0 | DE89: 0 | DF89: 0 | DG89: 0 | DH89: 0 | DI89: 0 | DJ89: 0 | DK89: 0 | DL89: 0 | DM89: 0 | DN89: 0.00 | DP89: 0 | DQ89: 0 | DR89: 0 | DS89: 0 | DT89: 0.00 | DV89: 0 | DW89: 0 | DX89: 0 | DY89: 0 | DZ89: 0.00 | EB89: 0 | EC89: 0 | ED89: 0 | EE89: 0 | EF89: 0 | EG89: 0 | EH89: 0 | EI89: 0 | EJ89: 0.00 | FD89: 0 | FE89: 0 | FF89: 0 | FG89: 0 | FK89: 0 | FL89: / | FM89: 200 | FN89: 0/200 | FO89: 0 | FP89: / | FQ89: 200 | FR89: 0/200 | FS89: 0 | FT89: / | FU89: 100 | FV89: 0/100 | FW89: 0 | FX89: / | FY89: 100 | FZ89: 0/100 | GA89: 0 | GB89: / | GC89: 200 | GD89: 0/200
A90: 0 | B90: 82 | C90: 82 | D90: 0 | L90: 0 | M90: 0 | N90: 0 | O90: 0 | P90: 0 | Q90: 0 | R90: 0 | S90: 0 | T90: 0.00 | X90: 0 | Y90: 0 | Z90: 0 | AA90: 0 | AB90: 0 | AC90: 0 | AD90: 0 | AE90: 0 | AF90: 0.00 | AJ90: 0 | AK90: 0 | AL90: 0 | AM90: 0 | AN90: 0 | AO90: 0 | AP90: 0 | AQ90: 0 | AR90: 0.00 | AV90: 0 | AW90: 0 | AX90: 0 | AY90: 0 | AZ90: 0 | BA90: 0 | BB90: 0 | BC90: 0 | BD90: 0.00 | BH90: 0 | BI90: 0 | BJ90: 0 | BK90: 0 | BL90: 0 | BM90: 0 | BN90: 0 | BO90: 0 | BP90: 0.00 | BT90: 0 | BU90: 0 | BV90: 0 | BW90: 0 | BX90: 0 | BY90: 0 | BZ90: 0 | CA90: 0 | CB90: 0.00 | CF90: 0 | CG90: 0 | CI90: 0 | CJ90: 0 | CK90: 0 | CL90: 0 | CM90: 0 | CN90: 0 | CO90: 0 | CP90: 0 | CQ90: 0.00 | CS90: 0 | CT90: 0 | CU90: 0 | CV90: 0 | CX90: 0 | DB90: 0 | DC90: 0 | DD90: 0 | DE90: 0 | DF90: 0 | DG90: 0 | DH90: 0 | DI90: 0 | DJ90: 0 | DK90: 0 | DL90: 0 | DM90: 0 | DN90: 0.00 | DP90: 0 | DQ90: 0 | DR90: 0 | DS90: 0 | DT90: 0.00 | DV90: 0 | DW90: 0 | DX90: 0 | DY90: 0 | DZ90: 0.00 | EB90: 0 | EC90: 0 | ED90: 0 | EE90: 0 | EF90: 0 | EG90: 0 | EH90: 0 | EI90: 0 | EJ90: 0.00 | FD90: 0 | FE90: 0 | FF90: 0 | FG90: 0 | FK90: 0 | FL90: / | FM90: 200 | FN90: 0/200 | FO90: 0 | FP90: / | FQ90: 200 | FR90: 0/200 | FS90: 0 | FT90: / | FU90: 100 | FV90: 0/100 | FW90: 0 | FX90: / | FY90: 100 | FZ90: 0/100 | GA90: 0 | GB90: / | GC90: 200 | GD90: 0/200
A91: 0 | B91: 83 | C91: 83 | D91: 0 | L91: 0 | M91: 0 | N91: 0 | O91: 0 | P91: 0 | Q91: 0 | R91: 0 | S91: 0 | T91: 0.00 | X91: 0 | Y91: 0 | Z91: 0 | AA91: 0 | AB91: 0 | AC91: 0 | AD91: 0 | AE91: 0 | AF91: 0.00 | AJ91: 0 | AK91: 0 | AL91: 0 | AM91: 0 | AN91: 0 | AO91: 0 | AP91: 0 | AQ91: 0 | AR91: 0.00 | AV91: 0 | AW91: 0 | AX91: 0 | AY91: 0 | AZ91: 0 | BA91: 0 | BB91: 0 | BC91: 0 | BD91: 0.00 | BH91: 0 | BI91: 0 | BJ91: 0 | BK91: 0 | BL91: 0 | BM91: 0 | BN91: 0 | BO91: 0 | BP91: 0.00 | BT91: 0 | BU91: 0 | BV91: 0 | BW91: 0 | BX91: 0 | BY91: 0 | BZ91: 0 | CA91: 0 | CB91: 0.00 | CF91: 0 | CG91: 0 | CI91: 0 | CJ91: 0 | CK91: 0 | CL91: 0 | CM91: 0 | CN91: 0 | CO91: 0 | CP91: 0 | CQ91: 0.00 | CS91: 0 | CT91: 0 | CU91: 0 | CV91: 0 | CX91: 0 | DB91: 0 | DC91: 0 | DD91: 0 | DE91: 0 | DF91: 0 | DG91: 0 | DH91: 0 | DI91: 0 | DJ91: 0 | DK91: 0 | DL91: 0 | DM91: 0 | DN91: 0.00 | DP91: 0 | DQ91: 0 | DR91: 0 | DS91: 0 | DT91: 0.00 | DV91: 0 | DW91: 0 | DX91: 0 | DY91: 0 | DZ91: 0.00 | EB91: 0 | EC91: 0 | ED91: 0 | EE91: 0 | EF91: 0 | EG91: 0 | EH91: 0 | EI91: 0 | EJ91: 0.00 | FD91: 0 | FE91: 0 | FF91: 0 | FG91: 0 | FK91: 0 | FL91: / | FM91: 200 | FN91: 0/200 | FO91: 0 | FP91: / | FQ91: 200 | FR91: 0/200 | FS91: 0 | FT91: / | FU91: 100 | FV91: 0/100 | FW91: 0 | FX91: / | FY91: 100 | FZ91: 0/100 | GA91: 0 | GB91: / | GC91: 200 | GD91: 0/200
A92: 0 | B92: 84 | C92: 84 | D92: 0 | L92: 0 | M92: 0 | N92: 0 | O92: 0 | P92: 0 | Q92: 0 | R92: 0 | S92: 0 | T92: 0.00 | X92: 0 | Y92: 0 | Z92: 0 | AA92: 0 | AB92: 0 | AC92: 0 | AD92: 0 | AE92: 0 | AF92: 0.00 | AJ92: 0 | AK92: 0 | AL92: 0 | AM92: 0 | AN92: 0 | AO92: 0 | AP92: 0 | AQ92: 0 | AR92: 0.00 | AV92: 0 | AW92: 0 | AX92: 0 | AY92: 0 | AZ92: 0 | BA92: 0 | BB92: 0 | BC92: 0 | BD92: 0.00 | BH92: 0 | BI92: 0 | BJ92: 0 | BK92: 0 | BL92: 0 | BM92: 0 | BN92: 0 | BO92: 0 | BP92: 0.00 | BT92: 0 | BU92: 0 | BV92: 0 | BW92: 0 | BX92: 0 | BY92: 0 | BZ92: 0 | CA92: 0 | CB92: 0.00 | CF92: 0 | CG92: 0 | CI92: 0 | CJ92: 0 | CK92: 0 | CL92: 0 | CM92: 0 | CN92: 0 | CO92: 0 | CP92: 0 | CQ92: 0.00 | CS92: 0 | CT92: 0 | CU92: 0 | CV92: 0 | CX92: 0 | DB92: 0 | DC92: 0 | DD92: 0 | DE92: 0 | DF92: 0 | DG92: 0 | DH92: 0 | DI92: 0 | DJ92: 0 | DK92: 0 | DL92: 0 | DM92: 0 | DN92: 0.00 | DP92: 0 | DQ92: 0 | DR92: 0 | DS92: 0 | DT92: 0.00 | DV92: 0 | DW92: 0 | DX92: 0 | DY92: 0 | DZ92: 0.00 | EB92: 0 | EC92: 0 | ED92: 0 | EE92: 0 | EF92: 0 | EG92: 0 | EH92: 0 | EI92: 0 | EJ92: 0.00 | FD92: 0 | FE92: 0 | FF92: 0 | FG92: 0 | FK92: 0 | FL92: / | FM92: 200 | FN92: 0/200 | FO92: 0 | FP92: / | FQ92: 200 | FR92: 0/200 | FS92: 0 | FT92: / | FU92: 100 | FV92: 0/100 | FW92: 0 | FX92: / | FY92: 100 | FZ92: 0/100 | GA92: 0 | GB92: / | GC92: 200 | GD92: 0/200
A93: 0 | B93: 85 | C93: 85 | D93: 0 | L93: 0 | M93: 0 | N93: 0 | O93: 0 | P93: 0 | Q93: 0 | R93: 0 | S93: 0 | T93: 0.00 | X93: 0 | Y93: 0 | Z93: 0 | AA93: 0 | AB93: 0 | AC93: 0 | AD93: 0 | AE93: 0 | AF93: 0.00 | AJ93: 0 | AK93: 0 | AL93: 0 | AM93: 0 | AN93: 0 | AO93: 0 | AP93: 0 | AQ93: 0 | AR93: 0.00 | AV93: 0 | AW93: 0 | AX93: 0 | AY93: 0 | AZ93: 0 | BA93: 0 | BB93: 0 | BC93: 0 | BD93: 0.00 | BH93: 0 | BI93: 0 | BJ93: 0 | BK93: 0 | BL93: 0 | BM93: 0 | BN93: 0 | BO93: 0 | BP93: 0.00 | BT93: 0 | BU93: 0 | BV93: 0 | BW93: 0 | BX93: 0 | BY93: 0 | BZ93: 0 | CA93: 0 | CB93: 0.00 | CF93: 0 | CG93: 0 | CI93: 0 | CJ93: 0 | CK93: 0 | CL93: 0 | CM93: 0 | CN93: 0 | CO93: 0 | CP93: 0 | CQ93: 0.00 | CS93: 0 | CT93: 0 | CU93: 0 | CV93: 0 | CX93: 0 | DB93: 0 | DC93: 0 | DD93: 0 | DE93: 0 | DF93: 0 | DG93: 0 | DH93: 0 | DI93: 0 | DJ93: 0 | DK93: 0 | DL93: 0 | DM93: 0 | DN93: 0.00 | DP93: 0 | DQ93: 0 | DR93: 0 | DS93: 0 | DT93: 0.00 | DV93: 0 | DW93: 0 | DX93: 0 | DY93: 0 | DZ93: 0.00 | EB93: 0 | EC93: 0 | ED93: 0 | EE93: 0 | EF93: 0 | EG93: 0 | EH93: 0 | EI93: 0 | EJ93: 0.00 | FD93: 0 | FE93: 0 | FF93: 0 | FG93: 0 | FK93: 0 | FL93: / | FM93: 200 | FN93: 0/200 | FO93: 0 | FP93: / | FQ93: 200 | FR93: 0/200 | FS93: 0 | FT93: / | FU93: 100 | FV93: 0/100 | FW93: 0 | FX93: / | FY93: 100 | FZ93: 0/100 | GA93: 0 | GB93: / | GC93: 200 | GD93: 0/200
A94: 0 | B94: 86 | C94: 86 | D94: 0 | L94: 0 | M94: 0 | N94: 0 | O94: 0 | P94: 0 | Q94: 0 | R94: 0 | S94: 0 | T94: 0.00 | X94: 0 | Y94: 0 | Z94: 0 | AA94: 0 | AB94: 0 | AC94: 0 | AD94: 0 | AE94: 0 | AF94: 0.00 | AJ94: 0 | AK94: 0 | AL94: 0 | AM94: 0 | AN94: 0 | AO94: 0 | AP94: 0 | AQ94: 0 | AR94: 0.00 | AV94: 0 | AW94: 0 | AX94: 0 | AY94: 0 | AZ94: 0 | BA94: 0 | BB94: 0 | BC94: 0 | BD94: 0.00 | BH94: 0 | BI94: 0 | BJ94: 0 | BK94: 0 | BL94: 0 | BM94: 0 | BN94: 0 | BO94: 0 | BP94: 0.00 | BT94: 0 | BU94: 0 | BV94: 0 | BW94: 0 | BX94: 0 | BY94: 0 | BZ94: 0 | CA94: 0 | CB94: 0.00 | CF94: 0 | CG94: 0 | CI94: 0 | CJ94: 0 | CK94: 0 | CL94: 0 | CM94: 0 | CN94: 0 | CO94: 0 | CP94: 0 | CQ94: 0.00 | CS94: 0 | CT94: 0 | CU94: 0 | CV94: 0 | CX94: 0 | DB94: 0 | DC94: 0 | DD94: 0 | DE94: 0 | DF94: 0 | DG94: 0 | DH94: 0 | DI94: 0 | DJ94: 0 | DK94: 0 | DL94: 0 | DM94: 0 | DN94: 0.00 | DP94: 0 | DQ94: 0 | DR94: 0 | DS94: 0 | DT94: 0.00 | DV94: 0 | DW94: 0 | DX94: 0 | DY94: 0 | DZ94: 0.00 | EB94: 0 | EC94: 0 | ED94: 0 | EE94: 0 | EF94: 0 | EG94: 0 | EH94: 0 | EI94: 0 | EJ94: 0.00 | FD94: 0 | FE94: 0 | FF94: 0 | FG94: 0 | FK94: 0 | FL94: / | FM94: 200 | FN94: 0/200 | FO94: 0 | FP94: / | FQ94: 200 | FR94: 0/200 | FS94: 0 | FT94: / | FU94: 100 | FV94: 0/100 | FW94: 0 | FX94: / | FY94: 100 | FZ94: 0/100 | GA94: 0 | GB94: / | GC94: 200 | GD94: 0/200
A95: 0 | B95: 87 | C95: 87 | D95: 0 | L95: 0 | M95: 0 | N95: 0 | O95: 0 | P95: 0 | Q95: 0 | R95: 0 | S95: 0 | T95: 0.00 | X95: 0 | Y95: 0 | Z95: 0 | AA95: 0 | AB95: 0 | AC95: 0 | AD95: 0 | AE95: 0 | AF95: 0.00 | AJ95: 0 | AK95: 0 | AL95: 0 | AM95: 0 | AN95: 0 | AO95: 0 | AP95: 0 | AQ95: 0 | AR95: 0.00 | AV95: 0 | AW95: 0 | AX95: 0 | AY95: 0 | AZ95: 0 | BA95: 0 | BB95: 0 | BC95: 0 | BD95: 0.00 | BH95: 0 | BI95: 0 | BJ95: 0 | BK95: 0 | BL95: 0 | BM95: 0 | BN95: 0 | BO95: 0 | BP95: 0.00 | BT95: 0 | BU95: 0 | BV95: 0 | BW95: 0 | BX95: 0 | BY95: 0 | BZ95: 0 | CA95: 0 | CB95: 0.00 | CF95: 0 | CG95: 0 | CI95: 0 | CJ95: 0 | CK95: 0 | CL95: 0 | CM95: 0 | CN95: 0 | CO95: 0 | CP95: 0 | CQ95: 0.00 | CS95: 0 | CT95: 0 | CU95: 0 | CV95: 0 | CX95: 0 | DB95: 0 | DC95: 0 | DD95: 0 | DE95: 0 | DF95: 0 | DG95: 0 | DH95: 0 | DI95: 0 | DJ95: 0 | DK95: 0 | DL95: 0 | DM95: 0 | DN95: 0.00 | DP95: 0 | DQ95: 0 | DR95: 0 | DS95: 0 | DT95: 0.00 | DV95: 0 | DW95: 0 | DX95: 0 | DY95: 0 | DZ95: 0.00 | EB95: 0 | EC95: 0 | ED95: 0 | EE95: 0 | EF95: 0 | EG95: 0 | EH95: 0 | EI95: 0 | EJ95: 0.00 | FD95: 0 | FE95: 0 | FF95: 0 | FG95: 0 | FK95: 0 | FL95: / | FM95: 200 | FN95: 0/200 | FO95: 0 | FP95: / | FQ95: 200 | FR95: 0/200 | FS95: 0 | FT95: / | FU95: 100 | FV95: 0/100 | FW95: 0 | FX95: / | FY95: 100 | FZ95: 0/100 | GA95: 0 | GB95: / | GC95: 200 | GD95: 0/200
A96: 0 | B96: 88 | C96: 88 | D96: 0 | L96: 0 | M96: 0 | N96: 0 | O96: 0 | P96: 0 | Q96: 0 | R96: 0 | S96: 0 | T96: 0.00 | X96: 0 | Y96: 0 | Z96: 0 | AA96: 0 | AB96: 0 | AC96: 0 | AD96: 0 | AE96: 0 | AF96: 0.00 | AJ96: 0 | AK96: 0 | AL96: 0 | AM96: 0 | AN96: 0 | AO96: 0 | AP96: 0 | AQ96: 0 | AR96: 0.00 | AV96: 0 | AW96: 0 | AX96: 0 | AY96: 0 | AZ96: 0 | BA96: 0 | BB96: 0 | BC96: 0 | BD96: 0.00 | BH96: 0 | BI96: 0 | BJ96: 0 | BK96: 0 | BL96: 0 | BM96: 0 | BN96: 0 | BO96: 0 | BP96: 0.00 | BT96: 0 | BU96: 0 | BV96: 0 | BW96: 0 | BX96: 0 | BY96: 0 | BZ96: 0 | CA96: 0 | CB96: 0.00 | CF96: 0 | CG96: 0 | CI96: 0 | CJ96: 0 | CK96: 0 | CL96: 0 | CM96: 0 | CN96: 0 | CO96: 0 | CP96: 0 | CQ96: 0.00 | CS96: 0 | CT96: 0 | CU96: 0 | CV96: 0 | CX96: 0 | DB96: 0 | DC96: 0 | DD96: 0 | DE96: 0 | DF96: 0 | DG96: 0 | DH96: 0 | DI96: 0 | DJ96: 0 | DK96: 0 | DL96: 0 | DM96: 0 | DN96: 0.00 | DP96: 0 | DQ96: 0 | DR96: 0 | DS96: 0 | DT96: 0.00 | DV96: 0 | DW96: 0 | DX96: 0 | DY96: 0 | DZ96: 0.00 | EB96: 0 | EC96: 0 | ED96: 0 | EE96: 0 | EF96: 0 | EG96: 0 | EH96: 0 | EI96: 0 | EJ96: 0.00 | FD96: 0 | FE96: 0 | FF96: 0 | FG96: 0 | FK96: 0 | FL96: / | FM96: 200 | FN96: 0/200 | FO96: 0 | FP96: / | FQ96: 200 | FR96: 0/200 | FS96: 0 | FT96: / | FU96: 100 | FV96: 0/100 | FW96: 0 | FX96: / | FY96: 100 | FZ96: 0/100 | GA96: 0 | GB96: / | GC96: 200 | GD96: 0/200
A97: 0 | B97: 89 | C97: 89 | D97: 0 | L97: 0 | M97: 0 | N97: 0 | O97: 0 | P97: 0 | Q97: 0 | R97: 0 | S97: 0 | T97: 0.00 | X97: 0 | Y97: 0 | Z97: 0 | AA97: 0 | AB97: 0 | AC97: 0 | AD97: 0 | AE97: 0 | AF97: 0.00 | AJ97: 0 | AK97: 0 | AL97: 0 | AM97: 0 | AN97: 0 | AO97: 0 | AP97: 0 | AQ97: 0 | AR97: 0.00 | AV97: 0 | AW97: 0 | AX97: 0 | AY97: 0 | AZ97: 0 | BA97: 0 | BB97: 0 | BC97: 0 | BD97: 0.00 | BH97: 0 | BI97: 0 | BJ97: 0 | BK97: 0 | BL97: 0 | BM97: 0 | BN97: 0 | BO97: 0 | BP97: 0.00 | BT97: 0 | BU97: 0 | BV97: 0 | BW97: 0 | BX97: 0 | BY97: 0 | BZ97: 0 | CA97: 0 | CB97: 0.00 | CF97: 0 | CG97: 0 | CI97: 0 | CJ97: 0 | CK97: 0 | CL97: 0 | CM97: 0 | CN97: 0 | CO97: 0 | CP97: 0 | CQ97: 0.00 | CS97: 0 | CT97: 0 | CU97: 0 | CV97: 0 | CX97: 0 | DB97: 0 | DC97: 0 | DD97: 0 | DE97: 0 | DF97: 0 | DG97: 0 | DH97: 0 | DI97: 0 | DJ97: 0 | DK97: 0 | DL97: 0 | DM97: 0 | DN97: 0.00 | DP97: 0 | DQ97: 0 | DR97: 0 | DS97: 0 | DT97: 0.00 | DV97: 0 | DW97: 0 | DX97: 0 | DY97: 0 | DZ97: 0.00 | EB97: 0 | EC97: 0 | ED97: 0 | EE97: 0 | EF97: 0 | EG97: 0 | EH97: 0 | EI97: 0 | EJ97: 0.00 | FD97: 0 | FE97: 0 | FF97: 0 | FG97: 0 | FK97: 0 | FL97: / | FM97: 200 | FN97: 0/200 | FO97: 0 | FP97: / | FQ97: 200 | FR97: 0/200 | FS97: 0 | FT97: / | FU97: 100 | FV97: 0/100 | FW97: 0 | FX97: / | FY97: 100 | FZ97: 0/100 | GA97: 0 | GB97: / | GC97: 200 | GD97: 0/200
A98: 0 | B98: 90 | C98: 90 | D98: 0 | L98: 0 | M98: 0 | N98: 0 | O98: 0 | P98: 0 | Q98: 0 | R98: 0 | S98: 0 | T98: 0.00 | X98: 0 | Y98: 0 | Z98: 0 | AA98: 0 | AB98: 0 | AC98: 0 | AD98: 0 | AE98: 0 | AF98: 0.00 | AJ98: 0 | AK98: 0 | AL98: 0 | AM98: 0 | AN98: 0 | AO98: 0 | AP98: 0 | AQ98: 0 | AR98: 0.00 | AV98: 0 | AW98: 0 | AX98: 0 | AY98: 0 | AZ98: 0 | BA98: 0 | BB98: 0 | BC98: 0 | BD98: 0.00 | BH98: 0 | BI98: 0 | BJ98: 0 | BK98: 0 | BL98: 0 | BM98: 0 | BN98: 0 | BO98: 0 | BP98: 0.00 | BT98: 0 | BU98: 0 | BV98: 0 | BW98: 0 | BX98: 0 | BY98: 0 | BZ98: 0 | CA98: 0 | CB98: 0.00 | CF98: 0 | CG98: 0 | CI98: 0 | CJ98: 0 | CK98: 0 | CL98: 0 | CM98: 0 | CN98: 0 | CO98: 0 | CP98: 0 | CQ98: 0.00 | CS98: 0 | CT98: 0 | CU98: 0 | CV98: 0 | CX98: 0 | DB98: 0 | DC98: 0 | DD98: 0 | DE98: 0 | DF98: 0 | DG98: 0 | DH98: 0 | DI98: 0 | DJ98: 0 | DK98: 0 | DL98: 0 | DM98: 0 | DN98: 0.00 | DP98: 0 | DQ98: 0 | DR98: 0 | DS98: 0 | DT98: 0.00 | DV98: 0 | DW98: 0 | DX98: 0 | DY98: 0 | DZ98: 0.00 | EB98: 0 | EC98: 0 | ED98: 0 | EE98: 0 | EF98: 0 | EG98: 0 | EH98: 0 | EI98: 0 | EJ98: 0.00 | FD98: 0 | FE98: 0 | FF98: 0 | FG98: 0 | FK98: 0 | FL98: / | FM98: 200 | FN98: 0/200 | FO98: 0 | FP98: / | FQ98: 200 | FR98: 0/200 | FS98: 0 | FT98: / | FU98: 100 | FV98: 0/100 | FW98: 0 | FX98: / | FY98: 100 | FZ98: 0/100 | GA98: 0 | GB98: / | GC98: 200 | GD98: 0/200
A99: 0 | B99: 91 | C99: 91 | D99: 0 | L99: 0 | M99: 0 | N99: 0 | O99: 0 | P99: 0 | Q99: 0 | R99: 0 | S99: 0 | T99: 0.00 | X99: 0 | Y99: 0 | Z99: 0 | AA99: 0 | AB99: 0 | AC99: 0 | AD99: 0 | AE99: 0 | AF99: 0.00 | AJ99: 0 | AK99: 0 | AL99: 0 | AM99: 0 | AN99: 0 | AO99: 0 | AP99: 0 | AQ99: 0 | AR99: 0.00 | AV99: 0 | AW99: 0 | AX99: 0 | AY99: 0 | AZ99: 0 | BA99: 0 | BB99: 0 | BC99: 0 | BD99: 0.00 | BH99: 0 | BI99: 0 | BJ99: 0 | BK99: 0 | BL99: 0 | BM99: 0 | BN99: 0 | BO99: 0 | BP99: 0.00 | BT99: 0 | BU99: 0 | BV99: 0 | BW99: 0 | BX99: 0 | BY99: 0 | BZ99: 0 | CA99: 0 | CB99: 0.00 | CF99: 0 | CG99: 0 | CI99: 0 | CJ99: 0 | CK99: 0 | CL99: 0 | CM99: 0 | CN99: 0 | CO99: 0 | CP99: 0 | CQ99: 0.00 | CS99: 0 | CT99: 0 | CU99: 0 | CV99: 0 | CX99: 0 | DB99: 0 | DC99: 0 | DD99: 0 | DE99: 0 | DF99: 0 | DG99: 0 | DH99: 0 | DI99: 0 | DJ99: 0 | DK99: 0 | DL99: 0 | DM99: 0 | DN99: 0.00 | DP99: 0 | DQ99: 0 | DR99: 0 | DS99: 0 | DT99: 0.00 | DV99: 0 | DW99: 0 | DX99: 0 | DY99: 0 | DZ99: 0.00 | EB99: 0 | EC99: 0 | ED99: 0 | EE99: 0 | EF99: 0 | EG99: 0 | EH99: 0 | EI99: 0 | EJ99: 0.00 | FD99: 0 | FE99: 0 | FF99: 0 | FG99: 0 | FK99: 0 | FL99: / | FM99: 200 | FN99: 0/200 | FO99: 0 | FP99: / | FQ99: 200 | FR99: 0/200 | FS99: 0 | FT99: / | FU99: 100 | FV99: 0/100 | FW99: 0 | FX99: / | FY99: 100 | FZ99: 0/100 | GA99: 0 | GB99: / | GC99: 200 | GD99: 0/200
A100: 0 | B100: 92 | C100: 92 | D100: 0 | L100: 0 | M100: 0 | N100: 0 | O100: 0 | P100: 0 | Q100: 0 | R100: 0 | S100: 0 | T100: 0.00 | X100: 0 | Y100: 0 | Z100: 0 | AA100: 0 | AB100: 0 | AC100: 0 | AD100: 0 | AE100: 0 | AF100: 0.00 | AJ100: 0 | AK100: 0 | AL100: 0 | AM100: 0 | AN100: 0 | AO100: 0 | AP100: 0 | AQ100: 0 | AR100: 0.00 | AV100: 0 | AW100: 0 | AX100: 0 | AY100: 0 | AZ100: 0 | BA100: 0 | BB100: 0 | BC100: 0 | BD100: 0.00 | BH100: 0 | BI100: 0 | BJ100: 0 | BK100: 0 | BL100: 0 | BM100: 0 | BN100: 0 | BO100: 0 | BP100: 0.00 | BT100: 0 | BU100: 0 | BV100: 0 | BW100: 0 | BX100: 0 | BY100: 0 | BZ100: 0 | CA100: 0 | CB100: 0.00 | CF100: 0 | CG100: 0 | CI100: 0 | CJ100: 0 | CK100: 0 | CL100: 0 | CM100: 0 | CN100: 0 | CO100: 0 | CP100: 0 | CQ100: 0.00 | CS100: 0 | CT100: 0 | CU100: 0 | CV100: 0 | CX100: 0 | DB100: 0 | DC100: 0 | DD100: 0 | DE100: 0 | DF100: 0 | DG100: 0 | DH100: 0 | DI100: 0 | DJ100: 0 | DK100: 0 | DL100: 0 | DM100: 0 | DN100: 0.00 | DP100: 0 | DQ100: 0 | DR100: 0 | DS100: 0 | DT100: 0.00 | DV100: 0 | DW100: 0 | DX100: 0 | DY100: 0 | DZ100: 0.00 | EB100: 0 | EC100: 0 | ED100: 0 | EE100: 0 | EF100: 0 | EG100: 0 | EH100: 0 | EI100: 0 | EJ100: 0.00 | FD100: 0 | FE100: 0 | FF100: 0 | FG100: 0 | FK100: 0 | FL100: / | FM100: 200 | FN100: 0/200 | FO100: 0 | FP100: / | FQ100: 200 | FR100: 0/200 | FS100: 0 | FT100: / | FU100: 100 | FV100: 0/100 | FW100: 0 | FX100: / | FY100: 100 | FZ100: 0/100 | GA100: 0 | GB100: / | GC100: 200 | GD100: 0/200
A101: 0 | B101: 93 | C101: 93 | D101: 0 | L101: 0 | M101: 0 | N101: 0 | O101: 0 | P101: 0 | Q101: 0 | R101: 0 | S101: 0 | T101: 0.00 | X101: 0 | Y101: 0 | Z101: 0 | AA101: 0 | AB101: 0 | AC101: 0 | AD101: 0 | AE101: 0 | AF101: 0.00 | AJ101: 0 | AK101: 0 | AL101: 0 | AM101: 0 | AN101: 0 | AO101: 0 | AP101: 0 | AQ101: 0 | AR101: 0.00 | AV101: 0 | AW101: 0 | AX101: 0 | AY101: 0 | AZ101: 0 | BA101: 0 | BB101: 0 | BC101: 0 | BD101: 0.00 | BH101: 0 | BI101: 0 | BJ101: 0 | BK101: 0 | BL101: 0 | BM101: 0 | BN101: 0 | BO101: 0 | BP101: 0.00 | BT101: 0 | BU101: 0 | BV101: 0 | BW101: 0 | BX101: 0 | BY101: 0 | BZ101: 0 | CA101: 0 | CB101: 0.00 | CF101: 0 | CG101: 0 | CI101: 0 | CJ101: 0 | CK101: 0 | CL101: 0 | CM101: 0 | CN101: 0 | CO101: 0 | CP101: 0 | CQ101: 0.00 | CS101: 0 | CT101: 0 | CU101: 0 | CV101: 0 | CX101: 0 | DB101: 0 | DC101: 0 | DD101: 0 | DE101: 0 | DF101: 0 | DG101: 0 | DH101: 0 | DI101: 0 | DJ101: 0 | DK101: 0 | DL101: 0 | DM101: 0 | DN101: 0.00 | DP101: 0 | DQ101: 0 | DR101: 0 | DS101: 0 | DT101: 0.00 | DV101: 0 | DW101: 0 | DX101: 0 | DY101: 0 | DZ101: 0.00 | EB101: 0 | EC101: 0 | ED101: 0 | EE101: 0 | EF101: 0 | EG101: 0 | EH101: 0 | EI101: 0 | EJ101: 0.00 | FD101: 0 | FE101: 0 | FF101: 0 | FG101: 0 | FK101: 0 | FL101: / | FM101: 200 | FN101: 0/200 | FO101: 0 | FP101: / | FQ101: 200 | FR101: 0/200 | FS101: 0 | FT101: / | FU101: 100 | FV101: 0/100 | FW101: 0 | FX101: / | FY101: 100 | FZ101: 0/100 | GA101: 0 | GB101: / | GC101: 200 | GD101: 0/200
A102: 0 | B102: 94 | C102: 94 | D102: 0 | L102: 0 | M102: 0 | N102: 0 | O102: 0 | P102: 0 | Q102: 0 | R102: 0 | S102: 0 | T102: 0.00 | X102: 0 | Y102: 0 | Z102: 0 | AA102: 0 | AB102: 0 | AC102: 0 | AD102: 0 | AE102: 0 | AF102: 0.00 | AJ102: 0 | AK102: 0 | AL102: 0 | AM102: 0 | AN102: 0 | AO102: 0 | AP102: 0 | AQ102: 0 | AR102: 0.00 | AV102: 0 | AW102: 0 | AX102: 0 | AY102: 0 | AZ102: 0 | BA102: 0 | BB102: 0 | BC102: 0 | BD102: 0.00 | BH102: 0 | BI102: 0 | BJ102: 0 | BK102: 0 | BL102: 0 | BM102: 0 | BN102: 0 | BO102: 0 | BP102: 0.00 | BT102: 0 | BU102: 0 | BV102: 0 | BW102: 0 | BX102: 0 | BY102: 0 | BZ102: 0 | CA102: 0 | CB102: 0.00 | CF102: 0 | CG102: 0 | CI102: 0 | CJ102: 0 | CK102: 0 | CL102: 0 | CM102: 0 | CN102: 0 | CO102: 0 | CP102: 0 | CQ102: 0.00 | CS102: 0 | CT102: 0 | CU102: 0 | CV102: 0 | CX102: 0 | DB102: 0 | DC102: 0 | DD102: 0 | DE102: 0 | DF102: 0 | DG102: 0 | DH102: 0 | DI102: 0 | DJ102: 0 | DK102: 0 | DL102: 0 | DM102: 0 | DN102: 0.00 | DP102: 0 | DQ102: 0 | DR102: 0 | DS102: 0 | DT102: 0.00 | DV102: 0 | DW102: 0 | DX102: 0 | DY102: 0 | DZ102: 0.00 | EB102: 0 | EC102: 0 | ED102: 0 | EE102: 0 | EF102: 0 | EG102: 0 | EH102: 0 | EI102: 0 | EJ102: 0.00 | FD102: 0 | FE102: 0 | FF102: 0 | FG102: 0 | FK102: 0 | FL102: / | FM102: 200 | FN102: 0/200 | FO102: 0 | FP102: / | FQ102: 200 | FR102: 0/200 | FS102: 0 | FT102: / | FU102: 100 | FV102: 0/100 | FW102: 0 | FX102: / | FY102: 100 | FZ102: 0/100 | GA102: 0 | GB102: / | GC102: 200 | GD102: 0/200
A103: 0 | B103: 95 | C103: 95 | D103: 0 | L103: 0 | M103: 0 | N103: 0 | O103: 0 | P103: 0 | Q103: 0 | R103: 0 | S103: 0 | T103: 0.00 | X103: 0 | Y103: 0 | Z103: 0 | AA103: 0 | AB103: 0 | AC103: 0 | AD103: 0 | AE103: 0 | AF103: 0.00 | AJ103: 0 | AK103: 0 | AL103: 0 | AM103: 0 | AN103: 0 | AO103: 0 | AP103: 0 | AQ103: 0 | AR103: 0.00 | AV103: 0 | AW103: 0 | AX103: 0 | AY103: 0 | AZ103: 0 | BA103: 0 | BB103: 0 | BC103: 0 | BD103: 0.00 | BH103: 0 | BI103: 0 | BJ103: 0 | BK103: 0 | BL103: 0 | BM103: 0 | BN103: 0 | BO103: 0 | BP103: 0.00 | BT103: 0 | BU103: 0 | BV103: 0 | BW103: 0 | BX103: 0 | BY103: 0 | BZ103: 0 | CA103: 0 | CB103: 0.00 | CF103: 0 | CG103: 0 | CI103: 0 | CJ103: 0 | CK103: 0 | CL103: 0 | CM103: 0 | CN103: 0 | CO103: 0 | CP103: 0 | CQ103: 0.00 | CS103: 0 | CT103: 0 | CU103: 0 | CV103: 0 | CX103: 0 | DB103: 0 | DC103: 0 | DD103: 0 | DE103: 0 | DF103: 0 | DG103: 0 | DH103: 0 | DI103: 0 | DJ103: 0 | DK103: 0 | DL103: 0 | DM103: 0 | DN103: 0.00 | DP103: 0 | DQ103: 0 | DR103: 0 | DS103: 0 | DT103: 0.00 | DV103: 0 | DW103: 0 | DX103: 0 | DY103: 0 | DZ103: 0.00 | EB103: 0 | EC103: 0 | ED103: 0 | EE103: 0 | EF103: 0 | EG103: 0 | EH103: 0 | EI103: 0 | EJ103: 0.00 | FD103: 0 | FE103: 0 | FF103: 0 | FG103: 0 | FK103: 0 | FL103: / | FM103: 200 | FN103: 0/200 | FO103: 0 | FP103: / | FQ103: 200 | FR103: 0/200 | FS103: 0 | FT103: / | FU103: 100 | FV103: 0/100 | FW103: 0 | FX103: / | FY103: 100 | FZ103: 0/100 | GA103: 0 | GB103: / | GC103: 200 | GD103: 0/200
A104: 0 | B104: 96 | C104: 96 | D104: 0 | L104: 0 | M104: 0 | N104: 0 | O104: 0 | P104: 0 | Q104: 0 | R104: 0 | S104: 0 | T104: 0.00 | X104: 0 | Y104: 0 | Z104: 0 | AA104: 0 | AB104: 0 | AC104: 0 | AD104: 0 | AE104: 0 | AF104: 0.00 | AJ104: 0 | AK104: 0 | AL104: 0 | AM104: 0 | AN104: 0 | AO104: 0 | AP104: 0 | AQ104: 0 | AR104: 0.00 | AV104: 0 | AW104: 0 | AX104: 0 | AY104: 0 | AZ104: 0 | BA104: 0 | BB104: 0 | BC104: 0 | BD104: 0.00 | BH104: 0 | BI104: 0 | BJ104: 0 | BK104: 0 | BL104: 0 | BM104: 0 | BN104: 0 | BO104: 0 | BP104: 0.00 | BT104: 0 | BU104: 0 | BV104: 0 | BW104: 0 | BX104: 0 | BY104: 0 | BZ104: 0 | CA104: 0 | CB104: 0.00 | CF104: 0 | CG104: 0 | CI104: 0 | CJ104: 0 | CK104: 0 | CL104: 0 | CM104: 0 | CN104: 0 | CO104: 0 | CP104: 0 | CQ104: 0.00 | CS104: 0 | CT104: 0 | CU104: 0 | CV104: 0 | CX104: 0 | DB104: 0 | DC104: 0 | DD104: 0 | DE104: 0 | DF104: 0 | DG104: 0 | DH104: 0 | DI104: 0 | DJ104: 0 | DK104: 0 | DL104: 0 | DM104: 0 | DN104: 0.00 | DP104: 0 | DQ104: 0 | DR104: 0 | DS104: 0 | DT104: 0.00 | DV104: 0 | DW104: 0 | DX104: 0 | DY104: 0 | DZ104: 0.00 | EB104: 0 | EC104: 0 | ED104: 0 | EE104: 0 | EF104: 0 | EG104: 0 | EH104: 0 | EI104: 0 | EJ104: 0.00 | FD104: 0 | FE104: 0 | FF104: 0 | FG104: 0 | FK104: 0 | FL104: / | FM104: 200 | FN104: 0/200 | FO104: 0 | FP104: / | FQ104: 200 | FR104: 0/200 | FS104: 0 | FT104: / | FU104: 100 | FV104: 0/100 | FW104: 0 | FX104: / | FY104: 100 | FZ104: 0/100 | GA104: 0 | GB104: / | GC104: 200 | GD104: 0/200
A105: 0 | B105: 97 | C105: 97 | D105: 0 | L105: 0 | M105: 0 | N105: 0 | O105: 0 | P105: 0 | Q105: 0 | R105: 0 | S105: 0 | T105: 0.00 | X105: 0 | Y105: 0 | Z105: 0 | AA105: 0 | AB105: 0 | AC105: 0 | AD105: 0 | AE105: 0 | AF105: 0.00 | AJ105: 0 | AK105: 0 | AL105: 0 | AM105: 0 | AN105: 0 | AO105: 0 | AP105: 0 | AQ105: 0 | AR105: 0.00 | AV105: 0 | AW105: 0 | AX105: 0 | AY105: 0 | AZ105: 0 | BA105: 0 | BB105: 0 | BC105: 0 | BD105: 0.00 | BH105: 0 | BI105: 0 | BJ105: 0 | BK105: 0 | BL105: 0 | BM105: 0 | BN105: 0 | BO105: 0 | BP105: 0.00 | BT105: 0 | BU105: 0 | BV105: 0 | BW105: 0 | BX105: 0 | BY105: 0 | BZ105: 0 | CA105: 0 | CB105: 0.00 | CF105: 0 | CG105: 0 | CI105: 0 | CJ105: 0 | CK105: 0 | CL105: 0 | CM105: 0 | CN105: =IF($S$7="NA","NA",0) -> 0 | CO105: 0 | CP105: 0 | CQ105: 0.00 | CS105: 0 | CT105: 0 | CU105: 0 | CV105: 0 | CX105: 0 | DB105: 0 | DC105: 0 | DD105: 0 | DE105: 0 | DF105: 0 | DG105: 0 | DH105: 0 | DI105: =IF($S$7="NA","NA",0) -> 0 | DJ105: 0 | DK105: 0 | DL105: 0 | DM105: 0 | DN105: 0.00 | DP105: 0 | DQ105: 0 | DR105: 0 | DS105: 0 | DT105: 0.00 | DV105: 0 | DW105: 0 | DX105: 0 | DY105: 0 | DZ105: 0.00 | EB105: 0 | EC105: 0 | ED105: 0 | EE105: 0 | EF105: 0 | EG105: 0 | EH105: 0 | EI105: 0 | EJ105: 0.00 | FD105: 0 | FE105: 0 | FF105: 0 | FG105: 0 | FK105: 0 | FL105: / | FM105: 200 | FN105: 0/200 | FO105: 0 | FP105: / | FQ105: 200 | FR105: 0/200 | FS105: 0 | FT105: / | FU105: 100 | FV105: 0/100 | FW105: 0 | FX105: / | FY105: 100 | FZ105: 0/100 | GA105: 0 | GB105: / | GC105: 200 | GD105: 0/200
A106: 0 | B106: 98 | C106: 98 | D106: 0 | L106: 0 | M106: 0 | N106: 0 | O106: 0 | P106: 0 | Q106: 0 | R106: 0 | S106: 0 | T106: 0.00 | X106: 0 | Y106: 0 | Z106: 0 | AA106: 0 | AB106: 0 | AC106: 0 | AD106: 0 | AE106: 0 | AF106: 0.00 | AJ106: 0 | AK106: 0 | AL106: 0 | AM106: 0 | AN106: 0 | AO106: 0 | AP106: 0 | AQ106: 0 | AR106: 0.00 | AV106: 0 | AW106: 0 | AX106: 0 | AY106: 0 | AZ106: 0 | BA106: 0 | BB106: 0 | BC106: 0 | BD106: 0.00 | BH106: 0 | BI106: 0 | BJ106: 0 | BK106: 0 | BL106: 0 | BM106: 0 | BN106: 0 | BO106: 0 | BP106: 0.00 | BT106: 0 | BU106: 0 | BV106: 0 | BW106: 0 | BX106: 0 | BY106: 0 | BZ106: 0 | CA106: 0 | CB106: 0.00 | CF106: 0 | CG106: 0 | CI106: 0 | CJ106: 0 | CK106: 0 | CL106: 0 | CM106: 0 | CN106: =IF($S$7="NA","NA",0) -> 0 | CO106: 0 | CP106: 0 | CQ106: 0.00 | CS106: 0 | CT106: 0 | CU106: 0 | CV106: 0 | CX106: 0 | DB106: 0 | DC106: 0 | DD106: 0 | DE106: 0 | DF106: 0 | DG106: 0 | DH106: 0 | DI106: =IF($S$7="NA","NA",0) -> 0 | DJ106: 0 | DK106: 0 | DL106: 0 | DM106: 0 | DN106: 0.00 | DP106: 0 | DQ106: 0 | DR106: 0 | DS106: 0 | DT106: 0.00 | DV106: 0 | DW106: 0 | DX106: 0 | DY106: 0 | DZ106: 0.00 | EB106: 0 | EC106: 0 | ED106: 0 | EE106: 0 | EF106: 0 | EG106: 0 | EH106: 0 | EI106: 0 | EJ106: 0.00 | FD106: 0 | FE106: 0 | FF106: 0 | FG106: 0 | FK106: 0 | FL106: / | FM106: 200 | FN106: 0/200 | FO106: 0 | FP106: / | FQ106: 200 | FR106: 0/200 | FS106: 0 | FT106: / | FU106: 100 | FV106: 0/100 | FW106: 0 | FX106: / | FY106: 100 | FZ106: 0/100 | GA106: 0 | GB106: / | GC106: 200 | GD106: 0/200
A107: 0 | B107: 99 | C107: 99 | D107: 0 | L107: 0 | M107: 0 | N107: 0 | O107: 0 | P107: 0 | Q107: 0 | R107: 0 | S107: 0 | T107: 0.00 | X107: 0 | Y107: 0 | Z107: 0 | AA107: 0 | AB107: 0 | AC107: 0 | AD107: 0 | AE107: 0 | AF107: 0.00 | AJ107: 0 | AK107: 0 | AL107: 0 | AM107: 0 | AN107: 0 | AO107: 0 | AP107: 0 | AQ107: 0 | AR107: 0.00 | AV107: 0 | AW107: 0 | AX107: 0 | AY107: 0 | AZ107: 0 | BA107: 0 | BB107: 0 | BC107: 0 | BD107: 0.00 | BH107: 0 | BI107: 0 | BJ107: 0 | BK107: 0 | BL107: 0 | BM107: 0 | BN107: 0 | BO107: 0 | BP107: 0.00 | BT107: 0 | BU107: 0 | BV107: 0 | BW107: 0 | BX107: 0 | BY107: 0 | BZ107: 0 | CA107: 0 | CB107: 0.00 | CF107: 0 | CG107: 0 | CI107: 0 | CJ107: 0 | CK107: 0 | CL107: 0 | CM107: 0 | CN107: =IF($S$7="NA","NA",0) -> 0 | CO107: 0 | CP107: 0 | CQ107: 0.00 | CS107: 0 | CT107: 0 | CU107: 0 | CV107: 0 | CX107: 0 | DB107: 0 | DC107: 0 | DD107: 0 | DE107: 0 | DF107: 0 | DG107: 0 | DH107: 0 | DI107: =IF($S$7="NA","NA",0) -> 0 | DJ107: 0 | DK107: 0 | DL107: 0 | DM107: 0 | DN107: 0.00 | DP107: 0 | DQ107: 0 | DR107: 0 | DS107: 0 | DT107: 0.00 | DV107: 0 | DW107: 0 | DX107: 0 | DY107: 0 | DZ107: 0.00 | EB107: 0 | EC107: 0 | ED107: 0 | EE107: 0 | EF107: 0 | EG107: 0 | EH107: 0 | EI107: 0 | EJ107: 0.00 | FD107: 0 | FE107: 0 | FF107: 0 | FG107: 0 | FK107: 0 | FL107: / | FM107: 200 | FN107: 0/200 | FO107: 0 | FP107: / | FQ107: 200 | FR107: 0/200 | FS107: 0 | FT107: / | FU107: 100 | FV107: 0/100 | FW107: 0 | FX107: / | FY107: 100 | FZ107: 0/100 | GA107: 0 | GB107: / | GC107: 200 | GD107: 0/200
A108: 0 | B108: 100 | C108: 100 | D108: 0 | L108: 0 | M108: 0 | N108: 0 | O108: 0 | P108: 0 | Q108: 0 | R108: 0 | S108: 0 | T108: 0.00 | X108: 0 | Y108: 0 | Z108: 0 | AA108: 0 | AB108: 0 | AC108: 0 | AD108: 0 | AE108: 0 | AF108: 0.00 | AJ108: 0 | AK108: 0 | AL108: 0 | AM108: 0 | AN108: 0 | AO108: 0 | AP108: 0 | AQ108: 0 | AR108: 0.00 | AV108: 0 | AW108: 0 | AX108: 0 | AY108: 0 | AZ108: 0 | BA108: 0 | BB108: 0 | BC108: 0 | BD108: 0.00 | BH108: 0 | BI108: 0 | BJ108: 0 | BK108: 0 | BL108: 0 | BM108: 0 | BN108: 0 | BO108: 0 | BP108: 0.00 | BT108: 0 | BU108: 0 | BV108: 0 | BW108: 0 | BX108: 0 | BY108: 0 | BZ108: 0 | CA108: 0 | CB108: 0.00 | CF108: 0 | CG108: 0 | CI108: 0 | CJ108: 0 | CK108: 0 | CL108: 0 | CM108: 0 | CN108: =IF($S$7="NA","NA",0) -> 0 | CO108: 0 | CP108: 0 | CQ108: 0.00 | CS108: 0 | CT108: 0 | CU108: 0 | CV108: 0 | CX108: 0 | DB108: 0 | DC108: 0 | DD108: 0 | DE108: 0 | DF108: 0 | DG108: 0 | DH108: 0 | DI108: =IF($S$7="NA","NA",0) -> 0 | DJ108: 0 | DK108: 0 | DL108: 0 | DM108: 0 | DN108: 0.00 | DP108: 0 | DQ108: 0 | DR108: 0 | DS108: 0 | DT108: 0.00 | DV108: 0 | DW108: 0 | DX108: 0 | DY108: 0 | DZ108: 0.00 | EB108: 0 | EC108: 0 | ED108: 0 | EE108: 0 | EF108: 0 | EG108: 0 | EH108: 0 | EI108: 0 | EJ108: 0.00 | FD108: 0 | FE108: 0 | FF108: 0 | FG108: 0 | FK108: 0 | FL108: / | FM108: 200 | FN108: 0/200 | FO108: 0 | FP108: / | FQ108: 200 | FR108: 0/200 | FS108: 0 | FT108: / | FU108: 100 | FV108: 0/100 | FW108: 0 | FX108: / | FY108: 100 | FZ108: 0/100 | GA108: 0 | GB108: / | GC108: 200 | GD108: 0/200
